Workbook

Sheet Net12 (2)
B1: =SUM(F22:O22) -> 0 | D1: =IF(O21<'AUX2'!B6,1,0) -> 0 | E1: =+'AUX2'!J5 -> m
B2: =+'AUX2'!M8 -> 47.09811896 | C2: U start, V | D2: =+O5*1 -> 0.6175122274 | F2: 1 | G2: 2 | H2: 3 | I2: 4 | J2: 5 | K2: 6 | L2: 7 | M2: 8 | N2: 9 | O2: iteration10
E3: mult. | F3: =F6+F5*F4 -> 47.48940337 | G3: =G6+G5*G4 -> 47.10139692 | H3: 47.09814665 | I3: 47.09811919 | J3: 47.09811896 | K3: 47.09811896 | L3: 47.09811896 | M3: 47.09811896 | N3: 47.09811896 | O3: 47.09811896
C4: cable type | D4: C565 | E4: 0 | F4: =VLOOKUP($D4,specs!$K$5:$L$19,2)*IF($E$1="m",$D5,($D5*0.3048))/1000 -> 0.639 | G4: =VLOOKUP($D4,specs!$K$5:$L$19,2)*IF($E$1="m",$D5,($D5*0.3048))/1000 -> 0.639 | H4: =VLOOKUP($D4,specs!$K$5:$L$19,2)*IF($E$1="m",$D5,($D5*0.3048))/1000 -> 0.639 | I4: =VLOOKUP($D4,specs!$K$5:$L$19,2)*IF($E$1="m",$D5,($D5*0.3048))/1000 -> 0.639 | J4: =VLOOKUP($D4,specs!$K$5:$L$19,2)*IF($E$1="m",$D5,($D5*0.3048))/1000 -> 0.639 | K4: =VLOOKUP($D4,specs!$K$5:$L$19,2)*IF($E$1="m",$D5,($D5*0.3048))/1000 -> 0.639 | L4: =VLOOKUP($D4,specs!$K$5:$L$19,2)*IF($E$1="m",$D5,($D5*0.3048))/1000 -> 0.639 | M4: =VLOOKUP($D4,specs!$K$5:$L$19,2)*IF($E$1="m",$D5,($D5*0.3048))/1000 -> 0.639 | N4: =VLOOKUP($D4,specs!$K$5:$L$19,2)*IF($E$1="m",$D5,($D5*0.3048))/1000 -> 0.639 | O4: =VLOOKUP($D4,specs!$K$5:$L$19,2)*IF($E$1="m",$D5,($D5*0.3048))/1000 -> 0.639
C5: span length,m | D5: 150 | E5: 0 | F5: =VLOOKUP($D6,specs!$D$5:$H$17,4)/IF(F6<67,(F6/1.03),65)*$E6+F8 -> 0.6123386802 | G5: =VLOOKUP($D6,specs!$D$5:$H$17,4)/IF(G6<67,(G6/1.03),65)*$E6+G8 -> 0.6174685201 | H5: =VLOOKUP($D6,specs!$D$5:$H$17,4)/IF(H6<67,(H6/1.03),65)*$E6+H8 -> 0.6175118581 | I5: =VLOOKUP($D6,specs!$D$5:$H$17,4)/IF(I6<67,(I6/1.03),65)*$E6+I8 -> 0.6175122243 | J5: =VLOOKUP($D6,specs!$D$5:$H$17,4)/IF(J6<67,(J6/1.03),65)*$E6+J8 -> 0.6175122274 | K5: =VLOOKUP($D6,specs!$D$5:$H$17,4)/IF(K6<67,(K6/1.03),65)*$E6+K8 -> 0.6175122274 | L5: =VLOOKUP($D6,specs!$D$5:$H$17,4)/IF(L6<67,(L6/1.03),65)*$E6+L8 -> 0.6175122274 | M5: =VLOOKUP($D6,specs!$D$5:$H$17,4)/IF(M6<67,(M6/1.03),65)*$E6+M8 -> 0.6175122274 | N5: =VLOOKUP($D6,specs!$D$5:$H$17,4)/IF(N6<67,(N6/1.03),65)*$E6+N8 -> 0.6175122274 | O5: =VLOOKUP($D6,specs!$D$5:$H$17,4)/IF(O6<67,(O6/1.03),65)*$E6+O8 -> 0.6175122274
C6: amplifier | D6: DBLE | E6: 1 | F6: =F9+F8*F7 -> 47.09811896 | G6: =G9+G8*G7 -> 46.70683454 | H6: 46.70355657 | I6: 46.70352888 | J6: 46.70352864 | K6: 46.70352864 | L6: 46.70352864 | M6: 46.70352864 | N6: 46.70352864 | O6: 46.70352864
C7: cable type | D7: cable | E7: 0 | F7: =VLOOKUP($D7,specs!$K$5:$L$19,2)*IF($E$1="m",$D8,($D8*0.3048))/1000 -> 0 | G7: =VLOOKUP($D7,specs!$K$5:$L$19,2)*IF($E$1="m",$D8,($D8*0.3048))/1000 -> 0 | H7: =VLOOKUP($D7,specs!$K$5:$L$19,2)*IF($E$1="m",$D8,($D8*0.3048))/1000 -> 0 | I7: =VLOOKUP($D7,specs!$K$5:$L$19,2)*IF($E$1="m",$D8,($D8*0.3048))/1000 -> 0 | J7: =VLOOKUP($D7,specs!$K$5:$L$19,2)*IF($E$1="m",$D8,($D8*0.3048))/1000 -> 0 | K7: =VLOOKUP($D7,specs!$K$5:$L$19,2)*IF($E$1="m",$D8,($D8*0.3048))/1000 -> 0 | L7: =VLOOKUP($D7,specs!$K$5:$L$19,2)*IF($E$1="m",$D8,($D8*0.3048))/1000 -> 0 | M7: =VLOOKUP($D7,specs!$K$5:$L$19,2)*IF($E$1="m",$D8,($D8*0.3048))/1000 -> 0 | N7: =VLOOKUP($D7,specs!$K$5:$L$19,2)*IF($E$1="m",$D8,($D8*0.3048))/1000 -> 0 | O7: =VLOOKUP($D7,specs!$K$5:$L$19,2)*IF($E$1="m",$D8,($D8*0.3048))/1000 -> 0
C8: span length,m | D8: 0 | E8: 0 | F8: =VLOOKUP($D9,specs!$D$5:$H$17,4)/IF(F9<67,(F9/1.03),65)*$E9+F11 -> 0 | G8: =VLOOKUP($D9,specs!$D$5:$H$17,4)/IF(G9<67,(G9/1.03),65)*$E9+G11 -> 0 | H8: =VLOOKUP($D9,specs!$D$5:$H$17,4)/IF(H9<67,(H9/1.03),65)*$E9+H11 -> 0 | I8: =VLOOKUP($D9,specs!$D$5:$H$17,4)/IF(I9<67,(I9/1.03),65)*$E9+I11 -> 0 | J8: =VLOOKUP($D9,specs!$D$5:$H$17,4)/IF(J9<67,(J9/1.03),65)*$E9+J11 -> 0 | K8: =VLOOKUP($D9,specs!$D$5:$H$17,4)/IF(K9<67,(K9/1.03),65)*$E9+K11 -> 0 | L8: =VLOOKUP($D9,specs!$D$5:$H$17,4)/IF(L9<67,(L9/1.03),65)*$E9+L11 -> 0 | M8: =VLOOKUP($D9,specs!$D$5:$H$17,4)/IF(M9<67,(M9/1.03),65)*$E9+M11 -> 0 | N8: =VLOOKUP($D9,specs!$D$5:$H$17,4)/IF(N9<67,(N9/1.03),65)*$E9+N11 -> 0 | O8: =VLOOKUP($D9,specs!$D$5:$H$17,4)/IF(O9<67,(O9/1.03),65)*$E9+O11 -> 0
C9: amplifier | D9: load | E9: 0 | F9: =F12+F11*F10 -> 47.09811896 | G9: =G12+G11*G10 -> 46.70683454 | H9: 46.70355657 | I9: 46.70352888 | J9: 46.70352864 | K9: 46.70352864 | L9: 46.70352864 | M9: 46.70352864 | N9: 46.70352864 | O9: 46.70352864
C10: cable type | D10: cable | E10: 0 | F10: =VLOOKUP($D10,specs!$K$5:$L$19,2)*IF($E$1="m",$D11,($D11*0.3048))/1000 -> 0 | G10: =VLOOKUP($D10,specs!$K$5:$L$19,2)*IF($E$1="m",$D11,($D11*0.3048))/1000 -> 0 | H10: =VLOOKUP($D10,specs!$K$5:$L$19,2)*IF($E$1="m",$D11,($D11*0.3048))/1000 -> 0 | I10: =VLOOKUP($D10,specs!$K$5:$L$19,2)*IF($E$1="m",$D11,($D11*0.3048))/1000 -> 0 | J10: =VLOOKUP($D10,specs!$K$5:$L$19,2)*IF($E$1="m",$D11,($D11*0.3048))/1000 -> 0 | K10: =VLOOKUP($D10,specs!$K$5:$L$19,2)*IF($E$1="m",$D11,($D11*0.3048))/1000 -> 0 | L10: =VLOOKUP($D10,specs!$K$5:$L$19,2)*IF($E$1="m",$D11,($D11*0.3048))/1000 -> 0 | M10: =VLOOKUP($D10,specs!$K$5:$L$19,2)*IF($E$1="m",$D11,($D11*0.3048))/1000 -> 0 | N10: =VLOOKUP($D10,specs!$K$5:$L$19,2)*IF($E$1="m",$D11,($D11*0.3048))/1000 -> 0 | O10: =VLOOKUP($D10,specs!$K$5:$L$19,2)*IF($E$1="m",$D11,($D11*0.3048))/1000 -> 0
C11: span length,m | D11: 0 | E11: 0 | F11: =VLOOKUP($D12,specs!$D$5:$H$17,4)/IF(F12<67,(F12/1.03),65)*$E12+F14 -> 0 | G11: =VLOOKUP($D12,specs!$D$5:$H$17,4)/IF(G12<67,(G12/1.03),65)*$E12+G14 -> 0 | H11: =VLOOKUP($D12,specs!$D$5:$H$17,4)/IF(H12<67,(H12/1.03),65)*$E12+H14 -> 0 | I11: =VLOOKUP($D12,specs!$D$5:$H$17,4)/IF(I12<67,(I12/1.03),65)*$E12+I14 -> 0 | J11: =VLOOKUP($D12,specs!$D$5:$H$17,4)/IF(J12<67,(J12/1.03),65)*$E12+J14 -> 0 | K11: =VLOOKUP($D12,specs!$D$5:$H$17,4)/IF(K12<67,(K12/1.03),65)*$E12+K14 -> 0 | L11: =VLOOKUP($D12,specs!$D$5:$H$17,4)/IF(L12<67,(L12/1.03),65)*$E12+L14 -> 0 | M11: =VLOOKUP($D12,specs!$D$5:$H$17,4)/IF(M12<67,(M12/1.03),65)*$E12+M14 -> 0 | N11: =VLOOKUP($D12,specs!$D$5:$H$17,4)/IF(N12<67,(N12/1.03),65)*$E12+N14 -> 0 | O11: =VLOOKUP($D12,specs!$D$5:$H$17,4)/IF(O12<67,(O12/1.03),65)*$E12+O14 -> 0
C12: amplifier | D12: load | E12: 0 | F12: =F15+F14*F13 -> 47.09811896 | G12: =G15+G14*G13 -> 46.70683454 | H12: 46.70355657 | I12: 46.70352888 | J12: 46.70352864 | K12: 46.70352864 | L12: 46.70352864 | M12: 46.70352864 | N12: 46.70352864 | O12: 46.70352864
C13: cable type | D13: cable | E13: 0 | F13: =VLOOKUP($D13,specs!$K$5:$L$19,2)*IF($E$1="m",$D14,($D14*0.3048))/1000 -> 0 | G13: =VLOOKUP($D13,specs!$K$5:$L$19,2)*IF($E$1="m",$D14,($D14*0.3048))/1000 -> 0 | H13: =VLOOKUP($D13,specs!$K$5:$L$19,2)*IF($E$1="m",$D14,($D14*0.3048))/1000 -> 0 | I13: =VLOOKUP($D13,specs!$K$5:$L$19,2)*IF($E$1="m",$D14,($D14*0.3048))/1000 -> 0 | J13: =VLOOKUP($D13,specs!$K$5:$L$19,2)*IF($E$1="m",$D14,($D14*0.3048))/1000 -> 0 | K13: =VLOOKUP($D13,specs!$K$5:$L$19,2)*IF($E$1="m",$D14,($D14*0.3048))/1000 -> 0 | L13: =VLOOKUP($D13,specs!$K$5:$L$19,2)*IF($E$1="m",$D14,($D14*0.3048))/1000 -> 0 | M13: =VLOOKUP($D13,specs!$K$5:$L$19,2)*IF($E$1="m",$D14,($D14*0.3048))/1000 -> 0 | N13: =VLOOKUP($D13,specs!$K$5:$L$19,2)*IF($E$1="m",$D14,($D14*0.3048))/1000 -> 0 | O13: =VLOOKUP($D13,specs!$K$5:$L$19,2)*IF($E$1="m",$D14,($D14*0.3048))/1000 -> 0
C14: span length,m | D14: 0 | E14: 0 | F14: =VLOOKUP($D15,specs!$D$5:$H$17,4)/IF(F15<67,(F15/1.03),65)*$E15+F17 -> 0 | G14: =VLOOKUP($D15,specs!$D$5:$H$17,4)/IF(G15<67,(G15/1.03),65)*$E15+G17 -> 0 | H14: =VLOOKUP($D15,specs!$D$5:$H$17,4)/IF(H15<67,(H15/1.03),65)*$E15+H17 -> 0 | I14: =VLOOKUP($D15,specs!$D$5:$H$17,4)/IF(I15<67,(I15/1.03),65)*$E15+I17 -> 0 | J14: =VLOOKUP($D15,specs!$D$5:$H$17,4)/IF(J15<67,(J15/1.03),65)*$E15+J17 -> 0 | K14: =VLOOKUP($D15,specs!$D$5:$H$17,4)/IF(K15<67,(K15/1.03),65)*$E15+K17 -> 0 | L14: =VLOOKUP($D15,specs!$D$5:$H$17,4)/IF(L15<67,(L15/1.03),65)*$E15+L17 -> 0 | M14: =VLOOKUP($D15,specs!$D$5:$H$17,4)/IF(M15<67,(M15/1.03),65)*$E15+M17 -> 0 | N14: =VLOOKUP($D15,specs!$D$5:$H$17,4)/IF(N15<67,(N15/1.03),65)*$E15+N17 -> 0 | O14: =VLOOKUP($D15,specs!$D$5:$H$17,4)/IF(O15<67,(O15/1.03),65)*$E15+O17 -> 0
C15: amplifier | D15: load | E15: 0 | F15: =F18+F17*F16 -> 47.09811896 | G15: =G18+G17*G16 -> 46.70683454 | H15: 46.70355657 | I15: 46.70352888 | J15: 46.70352864 | K15: 46.70352864 | L15: 46.70352864 | M15: 46.70352864 | N15: 46.70352864 | O15: 46.70352864
C16: cable type | D16: cable | E16: 0 | F16: =VLOOKUP($D16,specs!$K$5:$L$19,2)*IF($E$1="m",$D17,($D17*0.3048))/1000 -> 0 | G16: =VLOOKUP($D16,specs!$K$5:$L$19,2)*IF($E$1="m",$D17,($D17*0.3048))/1000 -> 0 | H16: =VLOOKUP($D16,specs!$K$5:$L$19,2)*IF($E$1="m",$D17,($D17*0.3048))/1000 -> 0 | I16: =VLOOKUP($D16,specs!$K$5:$L$19,2)*IF($E$1="m",$D17,($D17*0.3048))/1000 -> 0 | J16: =VLOOKUP($D16,specs!$K$5:$L$19,2)*IF($E$1="m",$D17,($D17*0.3048))/1000 -> 0 | K16: =VLOOKUP($D16,specs!$K$5:$L$19,2)*IF($E$1="m",$D17,($D17*0.3048))/1000 -> 0 | L16: =VLOOKUP($D16,specs!$K$5:$L$19,2)*IF($E$1="m",$D17,($D17*0.3048))/1000 -> 0 | M16: =VLOOKUP($D16,specs!$K$5:$L$19,2)*IF($E$1="m",$D17,($D17*0.3048))/1000 -> 0 | N16: =VLOOKUP($D16,specs!$K$5:$L$19,2)*IF($E$1="m",$D17,($D17*0.3048))/1000 -> 0 | O16: =VLOOKUP($D16,specs!$K$5:$L$19,2)*IF($E$1="m",$D17,($D17*0.3048))/1000 -> 0
C17: span length,m | D17: 0 | E17: 0 | F17: =VLOOKUP($D18,specs!$D$5:$H$17,4)/IF(F18<67,(F18/1.03),65)*$E18+F20 -> 0 | G17: =VLOOKUP($D18,specs!$D$5:$H$17,4)/IF(G18<67,(G18/1.03),65)*$E18+G20 -> 0 | H17: =VLOOKUP($D18,specs!$D$5:$H$17,4)/IF(H18<67,(H18/1.03),65)*$E18+H20 -> 0 | I17: =VLOOKUP($D18,specs!$D$5:$H$17,4)/IF(I18<67,(I18/1.03),65)*$E18+I20 -> 0 | J17: =VLOOKUP($D18,specs!$D$5:$H$17,4)/IF(J18<67,(J18/1.03),65)*$E18+J20 -> 0 | K17: =VLOOKUP($D18,specs!$D$5:$H$17,4)/IF(K18<67,(K18/1.03),65)*$E18+K20 -> 0 | L17: =VLOOKUP($D18,specs!$D$5:$H$17,4)/IF(L18<67,(L18/1.03),65)*$E18+L20 -> 0 | M17: =VLOOKUP($D18,specs!$D$5:$H$17,4)/IF(M18<67,(M18/1.03),65)*$E18+M20 -> 0 | N17: =VLOOKUP($D18,specs!$D$5:$H$17,4)/IF(N18<67,(N18/1.03),65)*$E18+N20 -> 0 | O17: =VLOOKUP($D18,specs!$D$5:$H$17,4)/IF(O18<67,(O18/1.03),65)*$E18+O20 -> 0
C18: amplifier | D18: load | E18: 0 | F18: =F21+F20*F19 -> 47.09811896 | G18: =G21+G20*G19 -> 46.70683454 | H18: 46.70355657 | I18: 46.70352888 | J18: 46.70352864 | K18: 46.70352864 | L18: 46.70352864 | M18: 46.70352864 | N18: 46.70352864 | O18: 46.70352864
C19: cable type | D19: cable | E19: 0 | F19: =VLOOKUP($D19,specs!$K$5:$L$19,2)*IF($E$1="m",$D20,($D20*0.3048))/1000 -> 0 | G19: =VLOOKUP($D19,specs!$K$5:$L$19,2)*IF($E$1="m",$D20,($D20*0.3048))/1000 -> 0 | H19: =VLOOKUP($D19,specs!$K$5:$L$19,2)*IF($E$1="m",$D20,($D20*0.3048))/1000 -> 0 | I19: =VLOOKUP($D19,specs!$K$5:$L$19,2)*IF($E$1="m",$D20,($D20*0.3048))/1000 -> 0 | J19: =VLOOKUP($D19,specs!$K$5:$L$19,2)*IF($E$1="m",$D20,($D20*0.3048))/1000 -> 0 | K19: =VLOOKUP($D19,specs!$K$5:$L$19,2)*IF($E$1="m",$D20,($D20*0.3048))/1000 -> 0 | L19: =VLOOKUP($D19,specs!$K$5:$L$19,2)*IF($E$1="m",$D20,($D20*0.3048))/1000 -> 0 | M19: =VLOOKUP($D19,specs!$K$5:$L$19,2)*IF($E$1="m",$D20,($D20*0.3048))/1000 -> 0 | N19: =VLOOKUP($D19,specs!$K$5:$L$19,2)*IF($E$1="m",$D20,($D20*0.3048))/1000 -> 0 | O19: =VLOOKUP($D19,specs!$K$5:$L$19,2)*IF($E$1="m",$D20,($D20*0.3048))/1000 -> 0
C20: span length,m | D20: 0 | E20: 0 | F20: =$E21*VLOOKUP($D21,specs!$D$5:$H$17,4)/IF(F21<67,(F21/1.03),65) -> 0 | G20: =$E21*VLOOKUP($D21,specs!$D$5:$H$17,4)/IF(G21<67,(G21/1.03),65) -> 0 | H20: =$E21*VLOOKUP($D21,specs!$D$5:$H$17,4)/IF(H21<67,(H21/1.03),65) -> 0 | I20: =$E21*VLOOKUP($D21,specs!$D$5:$H$17,4)/IF(I21<67,(I21/1.03),65) -> 0 | J20: =$E21*VLOOKUP($D21,specs!$D$5:$H$17,4)/IF(J21<67,(J21/1.03),65) -> 0 | K20: =$E21*VLOOKUP($D21,specs!$D$5:$H$17,4)/IF(K21<67,(K21/1.03),65) -> 0 | L20: =$E21*VLOOKUP($D21,specs!$D$5:$H$17,4)/IF(L21<67,(L21/1.03),65) -> 0 | M20: =$E21*VLOOKUP($D21,specs!$D$5:$H$17,4)/IF(M21<67,(M21/1.03),65) -> 0 | N20: =$E21*VLOOKUP($D21,specs!$D$5:$H$17,4)/IF(N21<67,(N21/1.03),65) -> 0 | O20: =$E21*VLOOKUP($D21,specs!$D$5:$H$17,4)/IF(O21<67,(O21/1.03),65) -> 0
C21: amplifier | D21: load | E21: 0 | F21: =B2 -> 47.09811896 | G21: =F21-(F3-$B$2) -> 46.70683454 | H21: 46.70355657 | I21: 46.70352888 | J21: 46.70352864 | K21: 46.70352864 | L21: 46.70352864 | M21: 46.70352864 | N21: 46.70352864 | O21: 46.70352864
F22: =IF(F21<0,1,0) -> 0 | G22: =IF(G21<0,1,0) -> 0 | H22: 0 | I22: 0 | J22: 0 | K22: 0 | L22: 0 | M22: 0 | N22: 0 | O22: 0
C24: User added Branch Net12 (2)
M27: =O21 -> 46.70352864
F34: Main Branch Net12

Sheet Net11 (2)
B1: =SUM(F22:O22) -> 0 | D1: =IF(O21<'AUX2'!B6,1,0) -> 0 | E1: =+'AUX2'!J5 -> m
B2: =+'AUX2'!M7 -> 46.88609152 | C2: U start, V | D2: =+O5*1 -> 0.616593146 | F2: 1 | G2: 2 | H2: 3 | I2: 4 | J2: 5 | K2: 6 | L2: 7 | M2: 8 | N2: 9 | O2: iteration10
E3: mult. | F3: =F6+F5*F4 -> 46.99876696 | G3: =G6+G5*G4 -> 46.88636295 | H3: 46.88609217 | I3: 46.88609152 | J3: 46.88609152 | K3: 46.88609152 | L3: 46.88609152 | M3: 46.88609152 | N3: 46.88609152 | O3: =O6+O5*O4 -> 46.88609152
C4: cable type | D4: C565 | E4: 0 | F4: =VLOOKUP($D4,specs!$K$5:$L$19,2)*IF($E$1="m",$D5,($D5*0.3048))/1000 -> 0.18318 | G4: =VLOOKUP($D4,specs!$K$5:$L$19,2)*IF($E$1="m",$D5,($D5*0.3048))/1000 -> 0.18318 | H4: =VLOOKUP($D4,specs!$K$5:$L$19,2)*IF($E$1="m",$D5,($D5*0.3048))/1000 -> 0.18318 | I4: =VLOOKUP($D4,specs!$K$5:$L$19,2)*IF($E$1="m",$D5,($D5*0.3048))/1000 -> 0.18318 | J4: =VLOOKUP($D4,specs!$K$5:$L$19,2)*IF($E$1="m",$D5,($D5*0.3048))/1000 -> 0.18318 | K4: =VLOOKUP($D4,specs!$K$5:$L$19,2)*IF($E$1="m",$D5,($D5*0.3048))/1000 -> 0.18318 | L4: =VLOOKUP($D4,specs!$K$5:$L$19,2)*IF($E$1="m",$D5,($D5*0.3048))/1000 -> 0.18318 | M4: =VLOOKUP($D4,specs!$K$5:$L$19,2)*IF($E$1="m",$D5,($D5*0.3048))/1000 -> 0.18318 | N4: =VLOOKUP($D4,specs!$K$5:$L$19,2)*IF($E$1="m",$D5,($D5*0.3048))/1000 -> 0.18318 | O4: =VLOOKUP($D4,specs!$K$5:$L$19,2)*IF($E$1="m",$D5,($D5*0.3048))/1000 -> 0.18318
C5: span length,m | D5: 43 | E5: 0 | F5: =VLOOKUP($D6,specs!$D$5:$H$17,4)/IF(F6<67,(F6/1.03),65)*$E6+F8 -> 0.6151077871 | G5: =VLOOKUP($D6,specs!$D$5:$H$17,4)/IF(G6<67,(G6/1.03),65)*$E6+G8 -> 0.6165895592 | H5: =VLOOKUP($D6,specs!$D$5:$H$17,4)/IF(H6<67,(H6/1.03),65)*$E6+H8 -> 0.6165931374 | I5: =VLOOKUP($D6,specs!$D$5:$H$17,4)/IF(I6<67,(I6/1.03),65)*$E6+I8 -> 0.616593146 | J5: =VLOOKUP($D6,specs!$D$5:$H$17,4)/IF(J6<67,(J6/1.03),65)*$E6+J8 -> 0.616593146 | K5: =VLOOKUP($D6,specs!$D$5:$H$17,4)/IF(K6<67,(K6/1.03),65)*$E6+K8 -> 0.616593146 | L5: =VLOOKUP($D6,specs!$D$5:$H$17,4)/IF(L6<67,(L6/1.03),65)*$E6+L8 -> 0.616593146 | M5: =VLOOKUP($D6,specs!$D$5:$H$17,4)/IF(M6<67,(M6/1.03),65)*$E6+M8 -> 0.616593146 | N5: =VLOOKUP($D6,specs!$D$5:$H$17,4)/IF(N6<67,(N6/1.03),65)*$E6+N8 -> 0.616593146 | O5: =VLOOKUP($D6,specs!$D$5:$H$17,4)/IF(O6<67,(O6/1.03),65)*$E6+O8 -> 0.616593146
C6: amplifier | D6: DBLE | E6: 1 | F6: =F9+F8*F7 -> 46.88609152 | G6: =G9+G8*G7 -> 46.77341607 | H6: 46.77314464 | I6: 46.77314399 | J6: 46.77314399 | K6: 46.77314399 | L6: 46.77314399 | M6: 46.77314399 | N6: 46.77314399 | O6: =O9+O8*O7 -> 46.77314399
C7: cable type | D7: cable | E7: 0 | F7: =VLOOKUP($D7,specs!$K$5:$L$19,2)*IF($E$1="m",$D8,($D8*0.3048))/1000 -> 0 | G7: =VLOOKUP($D7,specs!$K$5:$L$19,2)*IF($E$1="m",$D8,($D8*0.3048))/1000 -> 0 | H7: =VLOOKUP($D7,specs!$K$5:$L$19,2)*IF($E$1="m",$D8,($D8*0.3048))/1000 -> 0 | I7: =VLOOKUP($D7,specs!$K$5:$L$19,2)*IF($E$1="m",$D8,($D8*0.3048))/1000 -> 0 | J7: =VLOOKUP($D7,specs!$K$5:$L$19,2)*IF($E$1="m",$D8,($D8*0.3048))/1000 -> 0 | K7: =VLOOKUP($D7,specs!$K$5:$L$19,2)*IF($E$1="m",$D8,($D8*0.3048))/1000 -> 0 | L7: =VLOOKUP($D7,specs!$K$5:$L$19,2)*IF($E$1="m",$D8,($D8*0.3048))/1000 -> 0 | M7: =VLOOKUP($D7,specs!$K$5:$L$19,2)*IF($E$1="m",$D8,($D8*0.3048))/1000 -> 0 | N7: =VLOOKUP($D7,specs!$K$5:$L$19,2)*IF($E$1="m",$D8,($D8*0.3048))/1000 -> 0 | O7: =VLOOKUP($D7,specs!$K$5:$L$19,2)*IF($E$1="m",$D8,($D8*0.3048))/1000 -> 0
C8: span length,m | D8: 0 | E8: 0 | F8: =VLOOKUP($D9,specs!$D$5:$H$17,4)/IF(F9<67,(F9/1.03),65)*$E9+F11 -> 0 | G8: =VLOOKUP($D9,specs!$D$5:$H$17,4)/IF(G9<67,(G9/1.03),65)*$E9+G11 -> 0 | H8: =VLOOKUP($D9,specs!$D$5:$H$17,4)/IF(H9<67,(H9/1.03),65)*$E9+H11 -> 0 | I8: =VLOOKUP($D9,specs!$D$5:$H$17,4)/IF(I9<67,(I9/1.03),65)*$E9+I11 -> 0 | J8: =VLOOKUP($D9,specs!$D$5:$H$17,4)/IF(J9<67,(J9/1.03),65)*$E9+J11 -> 0 | K8: =VLOOKUP($D9,specs!$D$5:$H$17,4)/IF(K9<67,(K9/1.03),65)*$E9+K11 -> 0 | L8: =VLOOKUP($D9,specs!$D$5:$H$17,4)/IF(L9<67,(L9/1.03),65)*$E9+L11 -> 0 | M8: =VLOOKUP($D9,specs!$D$5:$H$17,4)/IF(M9<67,(M9/1.03),65)*$E9+M11 -> 0 | N8: =VLOOKUP($D9,specs!$D$5:$H$17,4)/IF(N9<67,(N9/1.03),65)*$E9+N11 -> 0 | O8: =VLOOKUP($D9,specs!$D$5:$H$17,4)/IF(O9<67,(O9/1.03),65)*$E9+O11 -> 0
C9: amplifier | D9: load | E9: 0 | F9: =F12+F11*F10 -> 46.88609152 | G9: =G12+G11*G10 -> 46.77341607 | H9: 46.77314464 | I9: 46.77314399 | J9: 46.77314399 | K9: 46.77314399 | L9: 46.77314399 | M9: 46.77314399 | N9: 46.77314399 | O9: =O12+O11*O10 -> 46.77314399
C10: cable type | D10: cable | E10: 0 | F10: =VLOOKUP($D10,specs!$K$5:$L$19,2)*IF($E$1="m",$D11,($D11*0.3048))/1000 -> 0 | G10: =VLOOKUP($D10,specs!$K$5:$L$19,2)*IF($E$1="m",$D11,($D11*0.3048))/1000 -> 0 | H10: =VLOOKUP($D10,specs!$K$5:$L$19,2)*IF($E$1="m",$D11,($D11*0.3048))/1000 -> 0 | I10: =VLOOKUP($D10,specs!$K$5:$L$19,2)*IF($E$1="m",$D11,($D11*0.3048))/1000 -> 0 | J10: =VLOOKUP($D10,specs!$K$5:$L$19,2)*IF($E$1="m",$D11,($D11*0.3048))/1000 -> 0 | K10: =VLOOKUP($D10,specs!$K$5:$L$19,2)*IF($E$1="m",$D11,($D11*0.3048))/1000 -> 0 | L10: =VLOOKUP($D10,specs!$K$5:$L$19,2)*IF($E$1="m",$D11,($D11*0.3048))/1000 -> 0 | M10: =VLOOKUP($D10,specs!$K$5:$L$19,2)*IF($E$1="m",$D11,($D11*0.3048))/1000 -> 0 | N10: =VLOOKUP($D10,specs!$K$5:$L$19,2)*IF($E$1="m",$D11,($D11*0.3048))/1000 -> 0 | O10: =VLOOKUP($D10,specs!$K$5:$L$19,2)*IF($E$1="m",$D11,($D11*0.3048))/1000 -> 0
C11: span length,m | D11: 0 | E11: 0 | F11: =VLOOKUP($D12,specs!$D$5:$H$17,4)/IF(F12<67,(F12/1.03),65)*$E12+F14 -> 0 | G11: =VLOOKUP($D12,specs!$D$5:$H$17,4)/IF(G12<67,(G12/1.03),65)*$E12+G14 -> 0 | H11: =VLOOKUP($D12,specs!$D$5:$H$17,4)/IF(H12<67,(H12/1.03),65)*$E12+H14 -> 0 | I11: =VLOOKUP($D12,specs!$D$5:$H$17,4)/IF(I12<67,(I12/1.03),65)*$E12+I14 -> 0 | J11: =VLOOKUP($D12,specs!$D$5:$H$17,4)/IF(J12<67,(J12/1.03),65)*$E12+J14 -> 0 | K11: =VLOOKUP($D12,specs!$D$5:$H$17,4)/IF(K12<67,(K12/1.03),65)*$E12+K14 -> 0 | L11: =VLOOKUP($D12,specs!$D$5:$H$17,4)/IF(L12<67,(L12/1.03),65)*$E12+L14 -> 0 | M11: =VLOOKUP($D12,specs!$D$5:$H$17,4)/IF(M12<67,(M12/1.03),65)*$E12+M14 -> 0 | N11: =VLOOKUP($D12,specs!$D$5:$H$17,4)/IF(N12<67,(N12/1.03),65)*$E12+N14 -> 0 | O11: =VLOOKUP($D12,specs!$D$5:$H$17,4)/IF(O12<67,(O12/1.03),65)*$E12+O14 -> 0
C12: amplifier | D12: load | E12: 0 | F12: =F15+F14*F13 -> 46.88609152 | G12: =G15+G14*G13 -> 46.77341607 | H12: 46.77314464 | I12: 46.77314399 | J12: 46.77314399 | K12: 46.77314399 | L12: 46.77314399 | M12: 46.77314399 | N12: 46.77314399 | O12: =O15+O14*O13 -> 46.77314399
C13: cable type | D13: cable | E13: 0 | F13: =VLOOKUP($D13,specs!$K$5:$L$19,2)*IF($E$1="m",$D14,($D14*0.3048))/1000 -> 0 | G13: =VLOOKUP($D13,specs!$K$5:$L$19,2)*IF($E$1="m",$D14,($D14*0.3048))/1000 -> 0 | H13: =VLOOKUP($D13,specs!$K$5:$L$19,2)*IF($E$1="m",$D14,($D14*0.3048))/1000 -> 0 | I13: =VLOOKUP($D13,specs!$K$5:$L$19,2)*IF($E$1="m",$D14,($D14*0.3048))/1000 -> 0 | J13: =VLOOKUP($D13,specs!$K$5:$L$19,2)*IF($E$1="m",$D14,($D14*0.3048))/1000 -> 0 | K13: =VLOOKUP($D13,specs!$K$5:$L$19,2)*IF($E$1="m",$D14,($D14*0.3048))/1000 -> 0 | L13: =VLOOKUP($D13,specs!$K$5:$L$19,2)*IF($E$1="m",$D14,($D14*0.3048))/1000 -> 0 | M13: =VLOOKUP($D13,specs!$K$5:$L$19,2)*IF($E$1="m",$D14,($D14*0.3048))/1000 -> 0 | N13: =VLOOKUP($D13,specs!$K$5:$L$19,2)*IF($E$1="m",$D14,($D14*0.3048))/1000 -> 0 | O13: =VLOOKUP($D13,specs!$K$5:$L$19,2)*IF($E$1="m",$D14,($D14*0.3048))/1000 -> 0
C14: span length,m | D14: 0 | E14: 0 | F14: =VLOOKUP($D15,specs!$D$5:$H$17,4)/IF(F15<67,(F15/1.03),65)*$E15+F17 -> 0 | G14: =VLOOKUP($D15,specs!$D$5:$H$17,4)/IF(G15<67,(G15/1.03),65)*$E15+G17 -> 0 | H14: =VLOOKUP($D15,specs!$D$5:$H$17,4)/IF(H15<67,(H15/1.03),65)*$E15+H17 -> 0 | I14: =VLOOKUP($D15,specs!$D$5:$H$17,4)/IF(I15<67,(I15/1.03),65)*$E15+I17 -> 0 | J14: =VLOOKUP($D15,specs!$D$5:$H$17,4)/IF(J15<67,(J15/1.03),65)*$E15+J17 -> 0 | K14: =VLOOKUP($D15,specs!$D$5:$H$17,4)/IF(K15<67,(K15/1.03),65)*$E15+K17 -> 0 | L14: =VLOOKUP($D15,specs!$D$5:$H$17,4)/IF(L15<67,(L15/1.03),65)*$E15+L17 -> 0 | M14: =VLOOKUP($D15,specs!$D$5:$H$17,4)/IF(M15<67,(M15/1.03),65)*$E15+M17 -> 0 | N14: =VLOOKUP($D15,specs!$D$5:$H$17,4)/IF(N15<67,(N15/1.03),65)*$E15+N17 -> 0 | O14: =VLOOKUP($D15,specs!$D$5:$H$17,4)/IF(O15<67,(O15/1.03),65)*$E15+O17 -> 0
C15: amplifier | D15: load | E15: 0 | F15: =F18+F17*F16 -> 46.88609152 | G15: =G18+G17*G16 -> 46.77341607 | H15: 46.77314464 | I15: 46.77314399 | J15: 46.77314399 | K15: 46.77314399 | L15: 46.77314399 | M15: 46.77314399 | N15: 46.77314399 | O15: =O18+O17*O16 -> 46.77314399
C16: cable type | D16: cable | E16: 0 | F16: =VLOOKUP($D16,specs!$K$5:$L$19,2)*IF($E$1="m",$D17,($D17*0.3048))/1000 -> 0 | G16: =VLOOKUP($D16,specs!$K$5:$L$19,2)*IF($E$1="m",$D17,($D17*0.3048))/1000 -> 0 | H16: =VLOOKUP($D16,specs!$K$5:$L$19,2)*IF($E$1="m",$D17,($D17*0.3048))/1000 -> 0 | I16: =VLOOKUP($D16,specs!$K$5:$L$19,2)*IF($E$1="m",$D17,($D17*0.3048))/1000 -> 0 | J16: =VLOOKUP($D16,specs!$K$5:$L$19,2)*IF($E$1="m",$D17,($D17*0.3048))/1000 -> 0 | K16: =VLOOKUP($D16,specs!$K$5:$L$19,2)*IF($E$1="m",$D17,($D17*0.3048))/1000 -> 0 | L16: =VLOOKUP($D16,specs!$K$5:$L$19,2)*IF($E$1="m",$D17,($D17*0.3048))/1000 -> 0 | M16: =VLOOKUP($D16,specs!$K$5:$L$19,2)*IF($E$1="m",$D17,($D17*0.3048))/1000 -> 0 | N16: =VLOOKUP($D16,specs!$K$5:$L$19,2)*IF($E$1="m",$D17,($D17*0.3048))/1000 -> 0 | O16: =VLOOKUP($D16,specs!$K$5:$L$19,2)*IF($E$1="m",$D17,($D17*0.3048))/1000 -> 0
C17: span length,m | D17: 0 | E17: 0 | F17: =VLOOKUP($D18,specs!$D$5:$H$17,4)/IF(F18<67,(F18/1.03),65)*$E18+F20 -> 0 | G17: =VLOOKUP($D18,specs!$D$5:$H$17,4)/IF(G18<67,(G18/1.03),65)*$E18+G20 -> 0 | H17: =VLOOKUP($D18,specs!$D$5:$H$17,4)/IF(H18<67,(H18/1.03),65)*$E18+H20 -> 0 | I17: =VLOOKUP($D18,specs!$D$5:$H$17,4)/IF(I18<67,(I18/1.03),65)*$E18+I20 -> 0 | J17: =VLOOKUP($D18,specs!$D$5:$H$17,4)/IF(J18<67,(J18/1.03),65)*$E18+J20 -> 0 | K17: =VLOOKUP($D18,specs!$D$5:$H$17,4)/IF(K18<67,(K18/1.03),65)*$E18+K20 -> 0 | L17: =VLOOKUP($D18,specs!$D$5:$H$17,4)/IF(L18<67,(L18/1.03),65)*$E18+L20 -> 0 | M17: =VLOOKUP($D18,specs!$D$5:$H$17,4)/IF(M18<67,(M18/1.03),65)*$E18+M20 -> 0 | N17: =VLOOKUP($D18,specs!$D$5:$H$17,4)/IF(N18<67,(N18/1.03),65)*$E18+N20 -> 0 | O17: =VLOOKUP($D18,specs!$D$5:$H$17,4)/IF(O18<67,(O18/1.03),65)*$E18+O20 -> 0
C18: amplifier | D18: load | E18: 0 | F18: =F21+F20*F19 -> 46.88609152 | G18: =G21+G20*G19 -> 46.77341607 | H18: 46.77314464 | I18: 46.77314399 | J18: 46.77314399 | K18: 46.77314399 | L18: 46.77314399 | M18: 46.77314399 | N18: 46.77314399 | O18: =O21+O20*O19 -> 46.77314399
C19: cable type | D19: cable | E19: 0 | F19: =VLOOKUP($D19,specs!$K$5:$L$19,2)*IF($E$1="m",$D20,($D20*0.3048))/1000 -> 0 | G19: =VLOOKUP($D19,specs!$K$5:$L$19,2)*IF($E$1="m",$D20,($D20*0.3048))/1000 -> 0 | H19: =VLOOKUP($D19,specs!$K$5:$L$19,2)*IF($E$1="m",$D20,($D20*0.3048))/1000 -> 0 | I19: =VLOOKUP($D19,specs!$K$5:$L$19,2)*IF($E$1="m",$D20,($D20*0.3048))/1000 -> 0 | J19: =VLOOKUP($D19,specs!$K$5:$L$19,2)*IF($E$1="m",$D20,($D20*0.3048))/1000 -> 0 | K19: =VLOOKUP($D19,specs!$K$5:$L$19,2)*IF($E$1="m",$D20,($D20*0.3048))/1000 -> 0 | L19: =VLOOKUP($D19,specs!$K$5:$L$19,2)*IF($E$1="m",$D20,($D20*0.3048))/1000 -> 0 | M19: =VLOOKUP($D19,specs!$K$5:$L$19,2)*IF($E$1="m",$D20,($D20*0.3048))/1000 -> 0 | N19: =VLOOKUP($D19,specs!$K$5:$L$19,2)*IF($E$1="m",$D20,($D20*0.3048))/1000 -> 0 | O19: =VLOOKUP($D19,specs!$K$5:$L$19,2)*IF($E$1="m",$D20,($D20*0.3048))/1000 -> 0
C20: span length,m | D20: 0 | E20: 0 | F20: =$E21*VLOOKUP($D21,specs!$D$5:$H$17,4)/IF(F21<67,(F21/1.03),65)+F23 -> 0 | G20: =$E21*VLOOKUP($D21,specs!$D$5:$H$17,4)/IF(G21<67,(G21/1.03),65)+G23 -> 0 | H20: =$E21*VLOOKUP($D21,specs!$D$5:$H$17,4)/IF(H21<67,(H21/1.03),65)+H23 -> 0 | I20: =$E21*VLOOKUP($D21,specs!$D$5:$H$17,4)/IF(I21<67,(I21/1.03),65)+I23 -> 0 | J20: =$E21*VLOOKUP($D21,specs!$D$5:$H$17,4)/IF(J21<67,(J21/1.03),65)+J23 -> 0 | K20: =$E21*VLOOKUP($D21,specs!$D$5:$H$17,4)/IF(K21<67,(K21/1.03),65)+K23 -> 0 | L20: =$E21*VLOOKUP($D21,specs!$D$5:$H$17,4)/IF(L21<67,(L21/1.03),65)+L23 -> 0 | M20: =$E21*VLOOKUP($D21,specs!$D$5:$H$17,4)/IF(M21<67,(M21/1.03),65)+M23 -> 0 | N20: =$E21*VLOOKUP($D21,specs!$D$5:$H$17,4)/IF(N21<67,(N21/1.03),65)+N23 -> 0 | O20: =$E21*VLOOKUP($D21,specs!$D$5:$H$17,4)/IF(O21<67,(O21/1.03),65)+O23 -> 0
C21: amplifier | D21: load | E21: 0 | F21: =B2 -> 46.88609152 | G21: =F21-(F3-$B$2) -> 46.77341607 | H21: 46.77314464 | I21: 46.77314399 | J21: 46.77314399 | K21: 46.77314399 | L21: 46.77314399 | M21: 46.77314399 | N21: 46.77314399 | O21: 46.77314399
F22: =IF(F21<0,1,0) -> 0 | G22: =IF(G21<0,1,0) -> 0 | H22: 0 | I22: 0 | J22: 0 | K22: 0 | L22: 0 | M22: 0 | N22: 0 | O22: 0
C24: User added Branch Net11 (2)
M27: =O21 -> 46.77314399
F34: Main Branch Net11

Sheet Control
E6: PS actual power
E7: T-Former: 872 W
E8: Ferro: 923 W

Sheet AUX2 (hidden)
A1: ='Net42'!B1+'Net41'!B1+'Net32'!B1+'Net31'!B1+'Net22'!B1+'Net21'!B1+'Net12'!B1+'Net11'!B1+SUM(A7:A18)+'Net11 (2)'!B1+'Net12 (2)'!B1 -> 0 | B1: Vtriac(vba) | C1: 1.5 | D1: =+'Net11'!D1+'Net12'!D1+'Net21'!D1+'Net22'!D1+'Net31'!D1+'Net32'!D1+'Net41'!D1+'Net42'!D1 -> 0 | S1: 67 | T1: 67V | U1: V0 | V1: 1
C2: =+C5*1 -> 67 | J2: m | S2: 47.1 | T2: 47.1V | U2: V01 | V2: 2
J3: ft | S3: 55.5 | T3: 55.5V | U3: V02 | V3: 3
D4: V | E4: m | F4: i temp | G4: i | H4: drop | I4: k | J4: dist | K4: L | L4: cable | M4: Vinput | N4: 0.0001 | S4: 55.5 | T4: 55.5V | U4: V03 | V4: 4
A5: PS - Imax Vout | B5: 15 | C5: 67 | D5: V | E5: - | F5: A | G5: A | H5: V | I5: - | J5: m | K5: km | M5: V | N5: accuracy | S5: 60 | T5: 60V | U5: V04 | V5: 5
A6: Vmin amp. | B6: 44 | C6: =IF(C2=60,66,90) -> 90 | D6: 67 | N6: =ABS(SUM(N7:N14)) -> 4.814542552e-05 | S6: 7.3 | T6: 7.3A | U6: I01 | V6: 6
A7: =IF(D7<0,1,0) -> 0 | B7: 7 | C7: 11 | D7: =+D15-H7 -> 46.88608119 | E7: 1 | F7: =+'Net11'!D2 -> 2.488586414 | G7: =+F7*E7 -> 2.488586414 | H7: =+G7*K7*VLOOKUP(L7,specs!$K$5:$L$19,2) -> 0.2120275625 | I7: 1 | J7: 20 | K7: =+IF($J$5="m",J7,(J7*0.3048))/1000*I7 -> 0.02 | L7: C565 | M7: 46.88609152 | N7: =E7*(+M7-D7) -> 1.032791241e-05 | S7: 11.4 | T7: 11.4A | U7: I02 | V7: 7
A8: 0 | B8: 8 | C8: 12 | D8: =+D15-H8 -> 47.09810875 | E8: 1 | F8: =+'Net12'!D2 -> 4.776390065 | G8: =+F8*E8 -> 4.776390065 | H8: =+G8*K8*VLOOKUP(L8,specs!$K$5:$L$19,2) -> 0 | I8: 1 | J8: 0 | K8: =+IF($J$5="m",J8,(J8*0.3048))/1000*I8 -> 0 | L8: cable | M8: 47.09811896 | N8: =E8*(+M8-D8) -> 1.020239342e-05 | S8: 11.4 | T8: 11.4A | U8: I03 | V8: 8
A9: 0 | B9: 9 | C9: 21 | D9: =+D16-H9 -> 54.85936493 | E9: 1 | F9: =+'Net21'!D2 -> 2.769329846 | G9: 2.769329846 | H9: =+G9*K9*VLOOKUP(L9,specs!$K$5:$L$19,2) -> 0.6370566378 | I9: 1 | J9: 54 | K9: 0.054 | L9: C565 | M9: 54.8593704 | N9: 5.473154488e-06 | S9: 12.3 | T9: 12.3A | U9: I04 | V9: 9
A10: 0 | B10: 10 | C10: 22 | D10: =+D16-H10 -> 55.49642156 | E10: 1 | F10: =+'Net22'!D2 -> 1.414969122 | G10: 1.414969122 | H10: =+G10*K10*VLOOKUP(L10,specs!$K$5:$L$19,2) -> 0 | I10: 1 | J10: 0 | K10: 0 | L10: cable | M10: 55.49642685 | N10: 5.286855739e-06 | S10: 46.9 | T10: 46.9V | U10: V11 | V10: 10
A11: 0 | B11: 11 | C11: 31 | D11: =+D17-H11 -> 55.49642156 | E11: 1 | F11: =+'Net31'!D2 -> 0 | G11: 0 | H11: =+G11*K11*VLOOKUP(L11,specs!$K$5:$L$19,2) -> 0 | I11: 1 | J11: 0 | K11: 0 | L11: cable | M11: 55.49642685 | N11: 5.286855739e-06 | S11: 47.1 | T11: 47.1V | U11: V12 | V11: 11
A12: 0 | B12: 12 | C12: 32 | D12: =+D17-H12 -> 55.49642156 | E12: 1 | F12: =+'Net32'!D2 -> 0 | G12: 0 | H12: =+G12*K12*VLOOKUP(L12,specs!$K$5:$L$19,2) -> 0 | I12: 1 | J12: 0 | K12: 0 | L12: cable | M12: 55.49642685 | N12: 5.286855739e-06 | S12: 54.9 | T12: 54.9V | U12: V21 | V12: 12
A13: 0 | B13: 13 | C13: 41 | D13: =+D18-H13 -> 60.03147957 | E13: 1 | F13: =+'Net41'!D2 -> 0.8235678642 | G13: 0.8235678642 | H13: =+G13*K13*VLOOKUP(L13,specs!$K$5:$L$19,2) -> 0 | I13: 1 | J13: 0 | K13: 0 | L13: cable | M13: 60.03148271 | N13: 3.140698993e-06 | S13: 55.5 | T13: 55.5V | U13: V22 | V13: 13
A14: 0 | B14: 14 | C14: 42 | D14: =+D18-H14 -> 60.03147957 | E14: 1 | F14: =+'Net42'!D2 -> 0 | G14: 0 | H14: =+G14*K14*VLOOKUP(L14,specs!$K$5:$L$19,2) -> 0 | I14: 1 | J14: 0 | K14: 0 | L14: cable | M14: 60.03148271 | N14: 3.140698993e-06 | S14: 55.5 | T14: 55.5V | U14: V31 | V14: 14
A15: =IF(D15<0,1,0) -> 0 | B15: 15 | C15: 01 | D15: =+D16-H15 -> 47.09810875 | E15: 1 | F15: =SUM(F7:F8) -> 7.264976479 | G15: =+F15*E15 -> 7.264976479 | H15: =+G15*K15*VLOOKUP(L15,specs!$K$5:$L$19,2) -> 8.39831281 | I15: 1 | J15: 680 | K15: =+IF($J$5="m",J15,(J15*0.3048))/1000*I15 -> 0.68 | L15: QR860 | M15: =K15*VLOOKUP(L15,specs!$K$5:$L$19,2) -> 1.156 | S15: 55.5 | T15: 55.5V | U15: V32 | V15: 15
A16: =IF(D16<0,1,0) -> 0 | B16: 16 | C16: 02 | D16: =+D17-H16 -> 55.49642156 | E16: 1 | F16: =SUM(F7:F10) -> 11.44927545 | G16: =+F16*E16 -> 11.44927545 | H16: =+G16*K16*VLOOKUP(L16,specs!$K$5:$L$19,2) -> 0 | I16: 1 | J16: 0 | K16: =+IF($J$5="m",J16,(J16*0.3048))/1000*I16 -> 0 | L16: cable | M16: =K16*VLOOKUP(L16,specs!$K$5:$L$19,2) -> 0 | S16: 60 | T16: 60V | U16: V41 | V16: 16
A17: =IF(D17<0,1,0) -> 0 | B17: 17 | C17: 03 | D17: =+D18-H17 -> 55.49642156 | E17: 1 | F17: =SUM(F7:F12) -> 11.44927545 | G17: =+F17*E17 -> 11.44927545 | H17: =+G17*K17*VLOOKUP(L17,specs!$K$5:$L$19,2) -> 4.535058005 | I17: 1 | J17: 233 | K17: =+IF($J$5="m",J17,(J17*0.3048))/1000*I17 -> 0.233 | L17: QR860 | M17: =K17*VLOOKUP(L17,specs!$K$5:$L$19,2) -> 0.3961 | S17: 60 | T17: 60V | U17: V42 | V17: 17
A18: =IF(D18<0,1,0) -> 0 | B18: 18 | C18: 04 | D18: =+D6-H18 -> 60.03147957 | E18: 1 | F18: =SUM(F7:F14) -> 12.27284331 | G18: =+F18*E18 -> 12.27284331 | H18: =+G18*K18*VLOOKUP(L18,specs!$K$5:$L$19,2) -> 6.968520432 | I18: 1 | J18: 334 | K18: =+IF($J$5="m",J18,(J18*0.3048))/1000*I18 -> 0.334 | L18: QR860 | M18: =K18*VLOOKUP(L18,specs!$K$5:$L$19,2) -> 0.5678 | S18: 2.5 | T18: 2.5A | U18: I11 | V18: 18
H19: D6:L18 | S19: 4.8 | T19: 4.8A | U19: I12 | V19: 19
S20: 2.8 | T20: 2.8A | U20: I21 | V20: 20
B21: Booster Data | S21: 1.4 | T21: 1.4A | U21: I22 | V21: 21
C22: vba | D22: vba | E22: vba | S22: 0 | T22: 0A | U22: I31 | V22: 22
A23: Vin | B23: Ranges | C23: Mcont | D23: TrEff | E23: Bgain | F23: Vout | G23: Pin | H23: Iin | I23: Final Gain | J23: Efficiency | K23: P-triac | L23: P-transformer | M23: Pout | N23: Iout | S23: 0 | T23: 0A | U23: I32 | V23: 23
A24: 62 | B24: 57.5-66 | C24: 1 | D24: 97 | E24: 1.033 | F24: =A24*E24/C24-1.5 -> 62.546 | G24: =M24+L24+K24 -> 204.9944698 | H24: =G24/A24 -> 3.306362416 | I24: =F24/A24 -> 1.008806452 | J24: =M24/G24 -> 0.9756360754 | K24: =N24*1.5 -> 4.796469798 | L24: =M24*(E24-1)*0.03 -> 0.198 | M24: 200 | N24: =M24/F24 -> 3.197646532 | S24: 0.8 | T24: .8A | U24: I41 | V24: 24
A25: 57.5 | B25: 49.9-57.5 | C25: 1.025 | D25: 96.8 | E25: 1.211 | F25: =A25*E25/C25-1.5 -> 66.43414634 | G25: =M25+L25+K25 -> 205.8661501 | H25: =G25/A25 -> 3.580280871 | I25: =F25/A25 -> 1.155376458 | J25: =M25/G25 -> 0.9715050286 | K25: =N25*1.5 -> 4.515750055 | L25: =M25*(E25-1)*0.032 -> 1.3504 | M25: 200 | N25: =M25/F25 -> 3.010500037 | S25: 0 | T25: 0A | U25: I42 | V25: 25
A26: 49.9 | B26: 0-49.9 | C26: 1.025 | D26: 96.5 | E26: 1.408 | F26: =A26*E26/C26-1.5 -> 67.04556098 | G26: =M26+L26+K26 -> 207.3305692 | H26: =G26/A26 -> 4.154921226 | I26: =F26/A26 -> 1.343598416 | J26: =M26/G26 -> 0.9646430857 | K26: =N26*1.5 -> 4.474569168 | L26: =M26*(E26-1)*0.035 -> 2.856 | M26: 200 | N26: =M26/F26 -> 2.983046112 | S26: 45.8 | T26: 45.8V | U26: Vend11 | V26: 26
S27: 45.8 | T27: 45.8V | U27: Vend12 | V27: 27
S28: 51.1 | T28: 51.1V | U28: Vend21 | V28: 28
A29: Vin | F29: Vout | G29: Pin | H29: Iin | J29: Efficiency | K29: P-triac | L29: P-transformer | M29: Pout | N29: Iout | S29: 55 | T29: 55V | U29: Vend22 | V29: 29
A30: 83 | B30: 74.9-90 | C30: 1 | D30: 97 | E30: 1.048 | F30: =A30*E30/C30-1.5 -> 85.484 | G30: =M30+L30+K30 -> 203.7974287 | H30: =G30/A30 -> 2.455390707 | I30: =F30/A30 -> 1.029927711 | J30: =M30/G30 -> 0.9813666507 | K30: =N30*1.5 -> 3.509428665 | L30: =M30*(E30-1)*0.03 -> 0.288 | M30: 200 | N30: =M30/F30 -> 2.33961911 | S30: 55.5 | T30: 55.5V | U30: Vend31 | V30: 30
A31: 74.9 | B31: 62-74.9 | C31: 1.025 | D31: 96.8 | E31: 1.279 | F31: =A31*E31/C31-1.5 -> 91.96058537 | G31: =M31+L31+K31 -> 205.0478672 | H31: =G31/A31 -> 2.737621725 | I31: =F31/A31 -> 1.227778176 | J31: =M31/G31 -> 0.9753820059 | K31: =N31*1.5 -> 3.262267186 | L31: =M31*(E31-1)*0.032 -> 1.7856 | M31: 200 | N31: =M31/F31 -> 2.17484479 | S31: 55.5 | T31: 55.5V | U31: Vend32 | V31: 31
A32: 61.9 | B32: 0-61.9 | C32: 1.025 | D32: 96.5 | E32: 1.538 | F32: =A32*E32/C32-1.5 -> 91.38019512 | G32: =M32+L32+K32 -> 207.0489871 | H32: =G32/A32 -> 3.344894783 | I32: =F32/A32 -> 1.476255172 | J32: =M32/G32 -> 0.9659549792 | K32: =N32*1.5 -> 3.282987081 | L32: =M32*(E32-1)*0.035 -> 3.766 | M32: 200 | N32: =M32/F32 -> 2.188658054 | S32: 60 | T32: 60V | U32: Vend41 | V32: 32
S33: 60 | T33: 60V | U33: Vend42 | V33: 33
A34: Pin = Pout + Ptriac + Pdelta-transformer, where | S34: 0 | U34: PBVin | V34: 34
S35: 0 | U35: PBVout | V35: 35
A36: Pout = Vout x Iout; | S36: 0 | U36: PBcurin | V36: 36
S37: 0 | U37: PBcurout | V37: 37
A38: Ptriac = Vtriac * Iout , where Vtriac=1.5V; | S38: 0 | U38: Bgain | V38: 38
U39: STitleLocation | V39: 39
A40: Pdelta-transformer = (100 - K) / 100 * (n – 1) * Pout , where K=96.5% for range"1.32" , K=96.8% for range "1.2" and K=97% for range "1" | U40: sTitleVin | V40: 40
U41: sTitleVout | V41: 41
A42: Then, assuming | U42: STitleIin | V42: 42
U43: sTitleIout | V43: 43
A44: Vout = Vin * n / Mcont – Vtriac , where Mcont = 1 for range"1", Mcont=1.025 for other two ranges; | U44: sTitleGain | V44: 44
U45: time | V45: 45
A46: We get finally the booster input current Iin, derived from above, as a function of the booster output current Iout and the booster input voltage Vin: | S46: 14 | U46: cntext | V46: 46
U47: cntloc | V47: 47
A48: Iin = Iout * { Bgain / Mcont + (1 - TrEff / 100) * (Bgain – 1) * ( Bgain / Mcont – Vtriac*Mcont * (PBVout + Vtriac) / Bgain)} | U48: cntsum | V48: 48
U49: cntloc04 | V49: 49
U50: cntsum04 | V50: 50
U51: cntloc03 | V51: 51
U52: cntsum03 | V52: 52
U53: cntloc02 | V53: 53
U54: cntsum02 | V54: 54

Sheet Net42 (hidden)
B1: =SUM(F22:O22) -> 0 | D1: =IF(O21<'AUX2'!B6,1,0) -> 0 | E1: =+'AUX2'!J5 -> m
B2: =+'AUX2'!M14 -> 60.03148271 | C2: U start, V | D2: =+O5*1 -> 0 | F2: 1 | G2: 2 | H2: 3 | I2: 4 | J2: 5 | K2: 6 | L2: 7 | M2: 8 | N2: 9 | O2: iteration10
E3: mult. | F3: =F6+F5*F4 -> 60.03148271 | G3: =G6+G5*G4 -> 60.03148271 | H3: 60.03148271 | I3: 60.03148271 | J3: 60.03148271 | K3: 60.03148271 | L3: 60.03148271 | M3: 60.03148271 | N3: 60.03148271 | O3: 60.03148271
C4: cable type | D4: cable | E4: 0 | F4: =VLOOKUP($D4,specs!$K$5:$L$19,2)*IF($E$1="m",$D5,($D5*0.3048))/1000 -> 0 | G4: =VLOOKUP($D4,specs!$K$5:$L$19,2)*IF($E$1="m",$D5,($D5*0.3048))/1000 -> 0 | H4: =VLOOKUP($D4,specs!$K$5:$L$19,2)*IF($E$1="m",$D5,($D5*0.3048))/1000 -> 0 | I4: =VLOOKUP($D4,specs!$K$5:$L$19,2)*IF($E$1="m",$D5,($D5*0.3048))/1000 -> 0 | J4: =VLOOKUP($D4,specs!$K$5:$L$19,2)*IF($E$1="m",$D5,($D5*0.3048))/1000 -> 0 | K4: =VLOOKUP($D4,specs!$K$5:$L$19,2)*IF($E$1="m",$D5,($D5*0.3048))/1000 -> 0 | L4: =VLOOKUP($D4,specs!$K$5:$L$19,2)*IF($E$1="m",$D5,($D5*0.3048))/1000 -> 0 | M4: =VLOOKUP($D4,specs!$K$5:$L$19,2)*IF($E$1="m",$D5,($D5*0.3048))/1000 -> 0 | N4: =VLOOKUP($D4,specs!$K$5:$L$19,2)*IF($E$1="m",$D5,($D5*0.3048))/1000 -> 0 | O4: =VLOOKUP($D4,specs!$K$5:$L$19,2)*IF($E$1="m",$D5,($D5*0.3048))/1000 -> 0
C5: span length,m | D5: 0 | E5: 0 | F5: =VLOOKUP($D6,specs!$D$5:$H$17,4)/IF(F6<67,(F6/1.03),65)*$E6+F8 -> 0 | G5: =VLOOKUP($D6,specs!$D$5:$H$17,4)/IF(G6<67,(G6/1.03),65)*$E6+G8 -> 0 | H5: =VLOOKUP($D6,specs!$D$5:$H$17,4)/IF(H6<67,(H6/1.03),65)*$E6+H8 -> 0 | I5: =VLOOKUP($D6,specs!$D$5:$H$17,4)/IF(I6<67,(I6/1.03),65)*$E6+I8 -> 0 | J5: =VLOOKUP($D6,specs!$D$5:$H$17,4)/IF(J6<67,(J6/1.03),65)*$E6+J8 -> 0 | K5: =VLOOKUP($D6,specs!$D$5:$H$17,4)/IF(K6<67,(K6/1.03),65)*$E6+K8 -> 0 | L5: =VLOOKUP($D6,specs!$D$5:$H$17,4)/IF(L6<67,(L6/1.03),65)*$E6+L8 -> 0 | M5: =VLOOKUP($D6,specs!$D$5:$H$17,4)/IF(M6<67,(M6/1.03),65)*$E6+M8 -> 0 | N5: =VLOOKUP($D6,specs!$D$5:$H$17,4)/IF(N6<67,(N6/1.03),65)*$E6+N8 -> 0 | O5: =VLOOKUP($D6,specs!$D$5:$H$17,4)/IF(O6<67,(O6/1.03),65)*$E6+O8 -> 0
C6: amplifier | D6: load | E6: 0 | F6: =F9+F8*F7 -> 60.03148271 | G6: =G9+G8*G7 -> 60.03148271 | H6: 60.03148271 | I6: 60.03148271 | J6: 60.03148271 | K6: 60.03148271 | L6: 60.03148271 | M6: 60.03148271 | N6: 60.03148271 | O6: 60.03148271
C7: cable type | D7: cable | E7: 0 | F7: =VLOOKUP($D7,specs!$K$5:$L$19,2)*IF($E$1="m",$D8,($D8*0.3048))/1000 -> 0 | G7: =VLOOKUP($D7,specs!$K$5:$L$19,2)*IF($E$1="m",$D8,($D8*0.3048))/1000 -> 0 | H7: =VLOOKUP($D7,specs!$K$5:$L$19,2)*IF($E$1="m",$D8,($D8*0.3048))/1000 -> 0 | I7: =VLOOKUP($D7,specs!$K$5:$L$19,2)*IF($E$1="m",$D8,($D8*0.3048))/1000 -> 0 | J7: =VLOOKUP($D7,specs!$K$5:$L$19,2)*IF($E$1="m",$D8,($D8*0.3048))/1000 -> 0 | K7: =VLOOKUP($D7,specs!$K$5:$L$19,2)*IF($E$1="m",$D8,($D8*0.3048))/1000 -> 0 | L7: =VLOOKUP($D7,specs!$K$5:$L$19,2)*IF($E$1="m",$D8,($D8*0.3048))/1000 -> 0 | M7: =VLOOKUP($D7,specs!$K$5:$L$19,2)*IF($E$1="m",$D8,($D8*0.3048))/1000 -> 0 | N7: =VLOOKUP($D7,specs!$K$5:$L$19,2)*IF($E$1="m",$D8,($D8*0.3048))/1000 -> 0 | O7: =VLOOKUP($D7,specs!$K$5:$L$19,2)*IF($E$1="m",$D8,($D8*0.3048))/1000 -> 0
C8: span length,m | D8: 0 | E8: 0 | F8: =VLOOKUP($D9,specs!$D$5:$H$17,4)/IF(F9<67,(F9/1.03),65)*$E9+F11 -> 0 | G8: =VLOOKUP($D9,specs!$D$5:$H$17,4)/IF(G9<67,(G9/1.03),65)*$E9+G11 -> 0 | H8: =VLOOKUP($D9,specs!$D$5:$H$17,4)/IF(H9<67,(H9/1.03),65)*$E9+H11 -> 0 | I8: =VLOOKUP($D9,specs!$D$5:$H$17,4)/IF(I9<67,(I9/1.03),65)*$E9+I11 -> 0 | J8: =VLOOKUP($D9,specs!$D$5:$H$17,4)/IF(J9<67,(J9/1.03),65)*$E9+J11 -> 0 | K8: =VLOOKUP($D9,specs!$D$5:$H$17,4)/IF(K9<67,(K9/1.03),65)*$E9+K11 -> 0 | L8: =VLOOKUP($D9,specs!$D$5:$H$17,4)/IF(L9<67,(L9/1.03),65)*$E9+L11 -> 0 | M8: =VLOOKUP($D9,specs!$D$5:$H$17,4)/IF(M9<67,(M9/1.03),65)*$E9+M11 -> 0 | N8: =VLOOKUP($D9,specs!$D$5:$H$17,4)/IF(N9<67,(N9/1.03),65)*$E9+N11 -> 0 | O8: =VLOOKUP($D9,specs!$D$5:$H$17,4)/IF(O9<67,(O9/1.03),65)*$E9+O11 -> 0
C9: amplifier | D9: load | E9: 0 | F9: =F12+F11*F10 -> 60.03148271 | G9: =G12+G11*G10 -> 60.03148271 | H9: 60.03148271 | I9: 60.03148271 | J9: 60.03148271 | K9: 60.03148271 | L9: 60.03148271 | M9: 60.03148271 | N9: 60.03148271 | O9: 60.03148271
C10: cable type | D10: cable | E10: 0 | F10: =VLOOKUP($D10,specs!$K$5:$L$19,2)*IF($E$1="m",$D11,($D11*0.3048))/1000 -> 0 | G10: =VLOOKUP($D10,specs!$K$5:$L$19,2)*IF($E$1="m",$D11,($D11*0.3048))/1000 -> 0 | H10: =VLOOKUP($D10,specs!$K$5:$L$19,2)*IF($E$1="m",$D11,($D11*0.3048))/1000 -> 0 | I10: =VLOOKUP($D10,specs!$K$5:$L$19,2)*IF($E$1="m",$D11,($D11*0.3048))/1000 -> 0 | J10: =VLOOKUP($D10,specs!$K$5:$L$19,2)*IF($E$1="m",$D11,($D11*0.3048))/1000 -> 0 | K10: =VLOOKUP($D10,specs!$K$5:$L$19,2)*IF($E$1="m",$D11,($D11*0.3048))/1000 -> 0 | L10: =VLOOKUP($D10,specs!$K$5:$L$19,2)*IF($E$1="m",$D11,($D11*0.3048))/1000 -> 0 | M10: =VLOOKUP($D10,specs!$K$5:$L$19,2)*IF($E$1="m",$D11,($D11*0.3048))/1000 -> 0 | N10: =VLOOKUP($D10,specs!$K$5:$L$19,2)*IF($E$1="m",$D11,($D11*0.3048))/1000 -> 0 | O10: =VLOOKUP($D10,specs!$K$5:$L$19,2)*IF($E$1="m",$D11,($D11*0.3048))/1000 -> 0
C11: span length,m | D11: 0 | E11: 0 | F11: =VLOOKUP($D12,specs!$D$5:$H$17,4)/IF(F12<67,(F12/1.03),65)*$E12+F14 -> 0 | G11: =VLOOKUP($D12,specs!$D$5:$H$17,4)/IF(G12<67,(G12/1.03),65)*$E12+G14 -> 0 | H11: =VLOOKUP($D12,specs!$D$5:$H$17,4)/IF(H12<67,(H12/1.03),65)*$E12+H14 -> 0 | I11: =VLOOKUP($D12,specs!$D$5:$H$17,4)/IF(I12<67,(I12/1.03),65)*$E12+I14 -> 0 | J11: =VLOOKUP($D12,specs!$D$5:$H$17,4)/IF(J12<67,(J12/1.03),65)*$E12+J14 -> 0 | K11: =VLOOKUP($D12,specs!$D$5:$H$17,4)/IF(K12<67,(K12/1.03),65)*$E12+K14 -> 0 | L11: =VLOOKUP($D12,specs!$D$5:$H$17,4)/IF(L12<67,(L12/1.03),65)*$E12+L14 -> 0 | M11: =VLOOKUP($D12,specs!$D$5:$H$17,4)/IF(M12<67,(M12/1.03),65)*$E12+M14 -> 0 | N11: =VLOOKUP($D12,specs!$D$5:$H$17,4)/IF(N12<67,(N12/1.03),65)*$E12+N14 -> 0 | O11: =VLOOKUP($D12,specs!$D$5:$H$17,4)/IF(O12<67,(O12/1.03),65)*$E12+O14 -> 0
C12: amplifier | D12: load | E12: 0 | F12: =F15+F14*F13 -> 60.03148271 | G12: =G15+G14*G13 -> 60.03148271 | H12: 60.03148271 | I12: 60.03148271 | J12: 60.03148271 | K12: 60.03148271 | L12: 60.03148271 | M12: 60.03148271 | N12: 60.03148271 | O12: 60.03148271
C13: cable type | D13: cable | E13: 0 | F13: =VLOOKUP($D13,specs!$K$5:$L$19,2)*IF($E$1="m",$D14,($D14*0.3048))/1000 -> 0 | G13: =VLOOKUP($D13,specs!$K$5:$L$19,2)*IF($E$1="m",$D14,($D14*0.3048))/1000 -> 0 | H13: =VLOOKUP($D13,specs!$K$5:$L$19,2)*IF($E$1="m",$D14,($D14*0.3048))/1000 -> 0 | I13: =VLOOKUP($D13,specs!$K$5:$L$19,2)*IF($E$1="m",$D14,($D14*0.3048))/1000 -> 0 | J13: =VLOOKUP($D13,specs!$K$5:$L$19,2)*IF($E$1="m",$D14,($D14*0.3048))/1000 -> 0 | K13: =VLOOKUP($D13,specs!$K$5:$L$19,2)*IF($E$1="m",$D14,($D14*0.3048))/1000 -> 0 | L13: =VLOOKUP($D13,specs!$K$5:$L$19,2)*IF($E$1="m",$D14,($D14*0.3048))/1000 -> 0 | M13: =VLOOKUP($D13,specs!$K$5:$L$19,2)*IF($E$1="m",$D14,($D14*0.3048))/1000 -> 0 | N13: =VLOOKUP($D13,specs!$K$5:$L$19,2)*IF($E$1="m",$D14,($D14*0.3048))/1000 -> 0 | O13: =VLOOKUP($D13,specs!$K$5:$L$19,2)*IF($E$1="m",$D14,($D14*0.3048))/1000 -> 0
C14: span length,m | D14: 0 | E14: 0 | F14: =VLOOKUP($D15,specs!$D$5:$H$17,4)/IF(F15<67,(F15/1.03),65)*$E15+F17 -> 0 | G14: =VLOOKUP($D15,specs!$D$5:$H$17,4)/IF(G15<67,(G15/1.03),65)*$E15+G17 -> 0 | H14: =VLOOKUP($D15,specs!$D$5:$H$17,4)/IF(H15<67,(H15/1.03),65)*$E15+H17 -> 0 | I14: =VLOOKUP($D15,specs!$D$5:$H$17,4)/IF(I15<67,(I15/1.03),65)*$E15+I17 -> 0 | J14: =VLOOKUP($D15,specs!$D$5:$H$17,4)/IF(J15<67,(J15/1.03),65)*$E15+J17 -> 0 | K14: =VLOOKUP($D15,specs!$D$5:$H$17,4)/IF(K15<67,(K15/1.03),65)*$E15+K17 -> 0 | L14: =VLOOKUP($D15,specs!$D$5:$H$17,4)/IF(L15<67,(L15/1.03),65)*$E15+L17 -> 0 | M14: =VLOOKUP($D15,specs!$D$5:$H$17,4)/IF(M15<67,(M15/1.03),65)*$E15+M17 -> 0 | N14: =VLOOKUP($D15,specs!$D$5:$H$17,4)/IF(N15<67,(N15/1.03),65)*$E15+N17 -> 0 | O14: =VLOOKUP($D15,specs!$D$5:$H$17,4)/IF(O15<67,(O15/1.03),65)*$E15+O17 -> 0
C15: amplifier | D15: load | E15: 0 | F15: =F18+F17*F16 -> 60.03148271 | G15: =G18+G17*G16 -> 60.03148271 | H15: 60.03148271 | I15: 60.03148271 | J15: 60.03148271 | K15: 60.03148271 | L15: 60.03148271 | M15: 60.03148271 | N15: 60.03148271 | O15: 60.03148271
C16: cable type | D16: cable | E16: 0 | F16: =VLOOKUP($D16,specs!$K$5:$L$19,2)*IF($E$1="m",$D17,($D17*0.3048))/1000 -> 0 | G16: =VLOOKUP($D16,specs!$K$5:$L$19,2)*IF($E$1="m",$D17,($D17*0.3048))/1000 -> 0 | H16: =VLOOKUP($D16,specs!$K$5:$L$19,2)*IF($E$1="m",$D17,($D17*0.3048))/1000 -> 0 | I16: =VLOOKUP($D16,specs!$K$5:$L$19,2)*IF($E$1="m",$D17,($D17*0.3048))/1000 -> 0 | J16: =VLOOKUP($D16,specs!$K$5:$L$19,2)*IF($E$1="m",$D17,($D17*0.3048))/1000 -> 0 | K16: =VLOOKUP($D16,specs!$K$5:$L$19,2)*IF($E$1="m",$D17,($D17*0.3048))/1000 -> 0 | L16: =VLOOKUP($D16,specs!$K$5:$L$19,2)*IF($E$1="m",$D17,($D17*0.3048))/1000 -> 0 | M16: =VLOOKUP($D16,specs!$K$5:$L$19,2)*IF($E$1="m",$D17,($D17*0.3048))/1000 -> 0 | N16: =VLOOKUP($D16,specs!$K$5:$L$19,2)*IF($E$1="m",$D17,($D17*0.3048))/1000 -> 0 | O16: =VLOOKUP($D16,specs!$K$5:$L$19,2)*IF($E$1="m",$D17,($D17*0.3048))/1000 -> 0
C17: span length,m | D17: 0 | E17: 0 | F17: =VLOOKUP($D18,specs!$D$5:$H$17,4)/IF(F18<67,(F18/1.03),65)*$E18+F20 -> 0 | G17: =VLOOKUP($D18,specs!$D$5:$H$17,4)/IF(G18<67,(G18/1.03),65)*$E18+G20 -> 0 | H17: =VLOOKUP($D18,specs!$D$5:$H$17,4)/IF(H18<67,(H18/1.03),65)*$E18+H20 -> 0 | I17: =VLOOKUP($D18,specs!$D$5:$H$17,4)/IF(I18<67,(I18/1.03),65)*$E18+I20 -> 0 | J17: =VLOOKUP($D18,specs!$D$5:$H$17,4)/IF(J18<67,(J18/1.03),65)*$E18+J20 -> 0 | K17: =VLOOKUP($D18,specs!$D$5:$H$17,4)/IF(K18<67,(K18/1.03),65)*$E18+K20 -> 0 | L17: =VLOOKUP($D18,specs!$D$5:$H$17,4)/IF(L18<67,(L18/1.03),65)*$E18+L20 -> 0 | M17: =VLOOKUP($D18,specs!$D$5:$H$17,4)/IF(M18<67,(M18/1.03),65)*$E18+M20 -> 0 | N17: =VLOOKUP($D18,specs!$D$5:$H$17,4)/IF(N18<67,(N18/1.03),65)*$E18+N20 -> 0 | O17: =VLOOKUP($D18,specs!$D$5:$H$17,4)/IF(O18<67,(O18/1.03),65)*$E18+O20 -> 0
C18: amplifier | D18: load | E18: 0 | F18: =F21+F20*F19 -> 60.03148271 | G18: =G21+G20*G19 -> 60.03148271 | H18: 60.03148271 | I18: 60.03148271 | J18: 60.03148271 | K18: 60.03148271 | L18: 60.03148271 | M18: 60.03148271 | N18: 60.03148271 | O18: 60.03148271
C19: cable type | D19: cable | E19: 0 | F19: =VLOOKUP($D19,specs!$K$5:$L$19,2)*IF($E$1="m",$D20,($D20*0.3048))/1000 -> 0 | G19: =VLOOKUP($D19,specs!$K$5:$L$19,2)*IF($E$1="m",$D20,($D20*0.3048))/1000 -> 0 | H19: =VLOOKUP($D19,specs!$K$5:$L$19,2)*IF($E$1="m",$D20,($D20*0.3048))/1000 -> 0 | I19: =VLOOKUP($D19,specs!$K$5:$L$19,2)*IF($E$1="m",$D20,($D20*0.3048))/1000 -> 0 | J19: =VLOOKUP($D19,specs!$K$5:$L$19,2)*IF($E$1="m",$D20,($D20*0.3048))/1000 -> 0 | K19: =VLOOKUP($D19,specs!$K$5:$L$19,2)*IF($E$1="m",$D20,($D20*0.3048))/1000 -> 0 | L19: =VLOOKUP($D19,specs!$K$5:$L$19,2)*IF($E$1="m",$D20,($D20*0.3048))/1000 -> 0 | M19: =VLOOKUP($D19,specs!$K$5:$L$19,2)*IF($E$1="m",$D20,($D20*0.3048))/1000 -> 0 | N19: =VLOOKUP($D19,specs!$K$5:$L$19,2)*IF($E$1="m",$D20,($D20*0.3048))/1000 -> 0 | O19: =VLOOKUP($D19,specs!$K$5:$L$19,2)*IF($E$1="m",$D20,($D20*0.3048))/1000 -> 0
C20: span length,m | D20: 0 | E20: 0 | F20: =$E21*VLOOKUP($D21,specs!$D$5:$H$17,4)/IF(F21<67,(F21/1.03),65) -> 0 | G20: =$E21*VLOOKUP($D21,specs!$D$5:$H$17,4)/IF(G21<67,(G21/1.03),65) -> 0 | H20: =$E21*VLOOKUP($D21,specs!$D$5:$H$17,4)/IF(H21<67,(H21/1.03),65) -> 0 | I20: =$E21*VLOOKUP($D21,specs!$D$5:$H$17,4)/IF(I21<67,(I21/1.03),65) -> 0 | J20: =$E21*VLOOKUP($D21,specs!$D$5:$H$17,4)/IF(J21<67,(J21/1.03),65) -> 0 | K20: =$E21*VLOOKUP($D21,specs!$D$5:$H$17,4)/IF(K21<67,(K21/1.03),65) -> 0 | L20: =$E21*VLOOKUP($D21,specs!$D$5:$H$17,4)/IF(L21<67,(L21/1.03),65) -> 0 | M20: =$E21*VLOOKUP($D21,specs!$D$5:$H$17,4)/IF(M21<67,(M21/1.03),65) -> 0 | N20: =$E21*VLOOKUP($D21,specs!$D$5:$H$17,4)/IF(N21<67,(N21/1.03),65) -> 0 | O20: =$E21*VLOOKUP($D21,specs!$D$5:$H$17,4)/IF(O21<67,(O21/1.03),65) -> 0
C21: amplifier | D21: load | E21: 0 | F21: =B2 -> 60.03148271 | G21: =F21-(F3-$B$2) -> 60.03148271 | H21: 60.03148271 | I21: 60.03148271 | J21: 60.03148271 | K21: 60.03148271 | L21: 60.03148271 | M21: 60.03148271 | N21: 60.03148271 | O21: 60.03148271
F22: =IF(F21<0,1,0) -> 0 | G22: =IF(G21<0,1,0) -> 0 | H22: 0 | I22: 0 | J22: 0 | K22: 0 | L22: 0 | M22: 0 | N22: 0 | O22: 0
C24: User added Branch
M27: =O21 -> 60.03148271
F34: Main Branch Net42

Sheet Net41 (hidden)
B1: =SUM(F22:O22) -> 0 | D1: =IF(O21<'AUX2'!B6,1,0) -> 0 | E1: =+'AUX2'!J5 -> m
B2: =+'AUX2'!M13 -> 60.03148271 | C2: U start, V | D2: =+O5*1 -> 0.8235678642 | F2: 1 | G2: 2 | H2: 3 | I2: 4 | J2: 5 | K2: 6 | L2: 7 | M2: 8 | N2: 9 | O2: iteration10
E3: mult. | F3: =F6+F5*F4 -> 60.03148271 | G3: =G6+G5*G4 -> 60.03148271 | H3: 60.03148271 | I3: 60.03148271 | J3: 60.03148271 | K3: 60.03148271 | L3: 60.03148271 | M3: 60.03148271 | N3: 60.03148271 | O3: 60.03148271
C4: cable type | D4: cable | E4: 0 | F4: =VLOOKUP($D4,specs!$K$5:$L$19,2)*IF($E$1="m",$D5,($D5*0.3048))/1000 -> 0 | G4: =VLOOKUP($D4,specs!$K$5:$L$19,2)*IF($E$1="m",$D5,($D5*0.3048))/1000 -> 0 | H4: =VLOOKUP($D4,specs!$K$5:$L$19,2)*IF($E$1="m",$D5,($D5*0.3048))/1000 -> 0 | I4: =VLOOKUP($D4,specs!$K$5:$L$19,2)*IF($E$1="m",$D5,($D5*0.3048))/1000 -> 0 | J4: =VLOOKUP($D4,specs!$K$5:$L$19,2)*IF($E$1="m",$D5,($D5*0.3048))/1000 -> 0 | K4: =VLOOKUP($D4,specs!$K$5:$L$19,2)*IF($E$1="m",$D5,($D5*0.3048))/1000 -> 0 | L4: =VLOOKUP($D4,specs!$K$5:$L$19,2)*IF($E$1="m",$D5,($D5*0.3048))/1000 -> 0 | M4: =VLOOKUP($D4,specs!$K$5:$L$19,2)*IF($E$1="m",$D5,($D5*0.3048))/1000 -> 0 | N4: =VLOOKUP($D4,specs!$K$5:$L$19,2)*IF($E$1="m",$D5,($D5*0.3048))/1000 -> 0 | O4: =VLOOKUP($D4,specs!$K$5:$L$19,2)*IF($E$1="m",$D5,($D5*0.3048))/1000 -> 0
C5: span length,m | D5: 0 | E5: 0 | F5: =VLOOKUP($D6,specs!$D$5:$H$17,4)/IF(F6<67,(F6/1.03),65)*$E6+F8 -> 0.8235678642 | G5: =VLOOKUP($D6,specs!$D$5:$H$17,4)/IF(G6<67,(G6/1.03),65)*$E6+G8 -> 0.8235678642 | H5: =VLOOKUP($D6,specs!$D$5:$H$17,4)/IF(H6<67,(H6/1.03),65)*$E6+H8 -> 0.8235678642 | I5: =VLOOKUP($D6,specs!$D$5:$H$17,4)/IF(I6<67,(I6/1.03),65)*$E6+I8 -> 0.8235678642 | J5: =VLOOKUP($D6,specs!$D$5:$H$17,4)/IF(J6<67,(J6/1.03),65)*$E6+J8 -> 0.8235678642 | K5: =VLOOKUP($D6,specs!$D$5:$H$17,4)/IF(K6<67,(K6/1.03),65)*$E6+K8 -> 0.8235678642 | L5: =VLOOKUP($D6,specs!$D$5:$H$17,4)/IF(L6<67,(L6/1.03),65)*$E6+L8 -> 0.8235678642 | M5: =VLOOKUP($D6,specs!$D$5:$H$17,4)/IF(M6<67,(M6/1.03),65)*$E6+M8 -> 0.8235678642 | N5: =VLOOKUP($D6,specs!$D$5:$H$17,4)/IF(N6<67,(N6/1.03),65)*$E6+N8 -> 0.8235678642 | O5: =VLOOKUP($D6,specs!$D$5:$H$17,4)/IF(O6<67,(O6/1.03),65)*$E6+O8 -> 0.8235678642
C6: amplifier | D6: TNA | E6: 1 | F6: =F9+F8*F7 -> 60.03148271 | G6: =G9+G8*G7 -> 60.03148271 | H6: 60.03148271 | I6: 60.03148271 | J6: 60.03148271 | K6: 60.03148271 | L6: 60.03148271 | M6: 60.03148271 | N6: 60.03148271 | O6: 60.03148271
C7: cable type | D7: cable | E7: 0 | F7: =VLOOKUP($D7,specs!$K$5:$L$19,2)*IF($E$1="m",$D8,($D8*0.3048))/1000 -> 0 | G7: =VLOOKUP($D7,specs!$K$5:$L$19,2)*IF($E$1="m",$D8,($D8*0.3048))/1000 -> 0 | H7: =VLOOKUP($D7,specs!$K$5:$L$19,2)*IF($E$1="m",$D8,($D8*0.3048))/1000 -> 0 | I7: =VLOOKUP($D7,specs!$K$5:$L$19,2)*IF($E$1="m",$D8,($D8*0.3048))/1000 -> 0 | J7: =VLOOKUP($D7,specs!$K$5:$L$19,2)*IF($E$1="m",$D8,($D8*0.3048))/1000 -> 0 | K7: =VLOOKUP($D7,specs!$K$5:$L$19,2)*IF($E$1="m",$D8,($D8*0.3048))/1000 -> 0 | L7: =VLOOKUP($D7,specs!$K$5:$L$19,2)*IF($E$1="m",$D8,($D8*0.3048))/1000 -> 0 | M7: =VLOOKUP($D7,specs!$K$5:$L$19,2)*IF($E$1="m",$D8,($D8*0.3048))/1000 -> 0 | N7: =VLOOKUP($D7,specs!$K$5:$L$19,2)*IF($E$1="m",$D8,($D8*0.3048))/1000 -> 0 | O7: =VLOOKUP($D7,specs!$K$5:$L$19,2)*IF($E$1="m",$D8,($D8*0.3048))/1000 -> 0
C8: span length,m | D8: 0 | E8: 0 | F8: =VLOOKUP($D9,specs!$D$5:$H$17,4)/IF(F9<67,(F9/1.03),65)*$E9+F11 -> 0 | G8: =VLOOKUP($D9,specs!$D$5:$H$17,4)/IF(G9<67,(G9/1.03),65)*$E9+G11 -> 0 | H8: =VLOOKUP($D9,specs!$D$5:$H$17,4)/IF(H9<67,(H9/1.03),65)*$E9+H11 -> 0 | I8: =VLOOKUP($D9,specs!$D$5:$H$17,4)/IF(I9<67,(I9/1.03),65)*$E9+I11 -> 0 | J8: =VLOOKUP($D9,specs!$D$5:$H$17,4)/IF(J9<67,(J9/1.03),65)*$E9+J11 -> 0 | K8: =VLOOKUP($D9,specs!$D$5:$H$17,4)/IF(K9<67,(K9/1.03),65)*$E9+K11 -> 0 | L8: =VLOOKUP($D9,specs!$D$5:$H$17,4)/IF(L9<67,(L9/1.03),65)*$E9+L11 -> 0 | M8: =VLOOKUP($D9,specs!$D$5:$H$17,4)/IF(M9<67,(M9/1.03),65)*$E9+M11 -> 0 | N8: =VLOOKUP($D9,specs!$D$5:$H$17,4)/IF(N9<67,(N9/1.03),65)*$E9+N11 -> 0 | O8: =VLOOKUP($D9,specs!$D$5:$H$17,4)/IF(O9<67,(O9/1.03),65)*$E9+O11 -> 0
C9: amplifier | D9: load | E9: 0 | F9: =F12+F11*F10 -> 60.03148271 | G9: =G12+G11*G10 -> 60.03148271 | H9: 60.03148271 | I9: 60.03148271 | J9: 60.03148271 | K9: 60.03148271 | L9: 60.03148271 | M9: 60.03148271 | N9: 60.03148271 | O9: 60.03148271
C10: cable type | D10: cable | E10: 0 | F10: =VLOOKUP($D10,specs!$K$5:$L$19,2)*IF($E$1="m",$D11,($D11*0.3048))/1000 -> 0 | G10: =VLOOKUP($D10,specs!$K$5:$L$19,2)*IF($E$1="m",$D11,($D11*0.3048))/1000 -> 0 | H10: =VLOOKUP($D10,specs!$K$5:$L$19,2)*IF($E$1="m",$D11,($D11*0.3048))/1000 -> 0 | I10: =VLOOKUP($D10,specs!$K$5:$L$19,2)*IF($E$1="m",$D11,($D11*0.3048))/1000 -> 0 | J10: =VLOOKUP($D10,specs!$K$5:$L$19,2)*IF($E$1="m",$D11,($D11*0.3048))/1000 -> 0 | K10: =VLOOKUP($D10,specs!$K$5:$L$19,2)*IF($E$1="m",$D11,($D11*0.3048))/1000 -> 0 | L10: =VLOOKUP($D10,specs!$K$5:$L$19,2)*IF($E$1="m",$D11,($D11*0.3048))/1000 -> 0 | M10: =VLOOKUP($D10,specs!$K$5:$L$19,2)*IF($E$1="m",$D11,($D11*0.3048))/1000 -> 0 | N10: =VLOOKUP($D10,specs!$K$5:$L$19,2)*IF($E$1="m",$D11,($D11*0.3048))/1000 -> 0 | O10: =VLOOKUP($D10,specs!$K$5:$L$19,2)*IF($E$1="m",$D11,($D11*0.3048))/1000 -> 0
C11: span length,m | D11: 0 | E11: 0 | F11: =VLOOKUP($D12,specs!$D$5:$H$17,4)/IF(F12<67,(F12/1.03),65)*$E12+F14 -> 0 | G11: =VLOOKUP($D12,specs!$D$5:$H$17,4)/IF(G12<67,(G12/1.03),65)*$E12+G14 -> 0 | H11: =VLOOKUP($D12,specs!$D$5:$H$17,4)/IF(H12<67,(H12/1.03),65)*$E12+H14 -> 0 | I11: =VLOOKUP($D12,specs!$D$5:$H$17,4)/IF(I12<67,(I12/1.03),65)*$E12+I14 -> 0 | J11: =VLOOKUP($D12,specs!$D$5:$H$17,4)/IF(J12<67,(J12/1.03),65)*$E12+J14 -> 0 | K11: =VLOOKUP($D12,specs!$D$5:$H$17,4)/IF(K12<67,(K12/1.03),65)*$E12+K14 -> 0 | L11: =VLOOKUP($D12,specs!$D$5:$H$17,4)/IF(L12<67,(L12/1.03),65)*$E12+L14 -> 0 | M11: =VLOOKUP($D12,specs!$D$5:$H$17,4)/IF(M12<67,(M12/1.03),65)*$E12+M14 -> 0 | N11: =VLOOKUP($D12,specs!$D$5:$H$17,4)/IF(N12<67,(N12/1.03),65)*$E12+N14 -> 0 | O11: =VLOOKUP($D12,specs!$D$5:$H$17,4)/IF(O12<67,(O12/1.03),65)*$E12+O14 -> 0
C12: amplifier | D12: load | E12: 0 | F12: =F15+F14*F13 -> 60.03148271 | G12: =G15+G14*G13 -> 60.03148271 | H12: 60.03148271 | I12: 60.03148271 | J12: 60.03148271 | K12: 60.03148271 | L12: 60.03148271 | M12: 60.03148271 | N12: 60.03148271 | O12: 60.03148271
C13: cable type | D13: cable | E13: 0 | F13: =VLOOKUP($D13,specs!$K$5:$L$19,2)*IF($E$1="m",$D14,($D14*0.3048))/1000 -> 0 | G13: =VLOOKUP($D13,specs!$K$5:$L$19,2)*IF($E$1="m",$D14,($D14*0.3048))/1000 -> 0 | H13: =VLOOKUP($D13,specs!$K$5:$L$19,2)*IF($E$1="m",$D14,($D14*0.3048))/1000 -> 0 | I13: =VLOOKUP($D13,specs!$K$5:$L$19,2)*IF($E$1="m",$D14,($D14*0.3048))/1000 -> 0 | J13: =VLOOKUP($D13,specs!$K$5:$L$19,2)*IF($E$1="m",$D14,($D14*0.3048))/1000 -> 0 | K13: =VLOOKUP($D13,specs!$K$5:$L$19,2)*IF($E$1="m",$D14,($D14*0.3048))/1000 -> 0 | L13: =VLOOKUP($D13,specs!$K$5:$L$19,2)*IF($E$1="m",$D14,($D14*0.3048))/1000 -> 0 | M13: =VLOOKUP($D13,specs!$K$5:$L$19,2)*IF($E$1="m",$D14,($D14*0.3048))/1000 -> 0 | N13: =VLOOKUP($D13,specs!$K$5:$L$19,2)*IF($E$1="m",$D14,($D14*0.3048))/1000 -> 0 | O13: =VLOOKUP($D13,specs!$K$5:$L$19,2)*IF($E$1="m",$D14,($D14*0.3048))/1000 -> 0
C14: span length,m | D14: 0 | E14: 0 | F14: =VLOOKUP($D15,specs!$D$5:$H$17,4)/IF(F15<67,(F15/1.03),65)*$E15+F17 -> 0 | G14: =VLOOKUP($D15,specs!$D$5:$H$17,4)/IF(G15<67,(G15/1.03),65)*$E15+G17 -> 0 | H14: =VLOOKUP($D15,specs!$D$5:$H$17,4)/IF(H15<67,(H15/1.03),65)*$E15+H17 -> 0 | I14: =VLOOKUP($D15,specs!$D$5:$H$17,4)/IF(I15<67,(I15/1.03),65)*$E15+I17 -> 0 | J14: =VLOOKUP($D15,specs!$D$5:$H$17,4)/IF(J15<67,(J15/1.03),65)*$E15+J17 -> 0 | K14: =VLOOKUP($D15,specs!$D$5:$H$17,4)/IF(K15<67,(K15/1.03),65)*$E15+K17 -> 0 | L14: =VLOOKUP($D15,specs!$D$5:$H$17,4)/IF(L15<67,(L15/1.03),65)*$E15+L17 -> 0 | M14: =VLOOKUP($D15,specs!$D$5:$H$17,4)/IF(M15<67,(M15/1.03),65)*$E15+M17 -> 0 | N14: =VLOOKUP($D15,specs!$D$5:$H$17,4)/IF(N15<67,(N15/1.03),65)*$E15+N17 -> 0 | O14: =VLOOKUP($D15,specs!$D$5:$H$17,4)/IF(O15<67,(O15/1.03),65)*$E15+O17 -> 0
C15: amplifier | D15: load | E15: 0 | F15: =F18+F17*F16 -> 60.03148271 | G15: =G18+G17*G16 -> 60.03148271 | H15: 60.03148271 | I15: 60.03148271 | J15: 60.03148271 | K15: 60.03148271 | L15: 60.03148271 | M15: 60.03148271 | N15: 60.03148271 | O15: 60.03148271
C16: cable type | D16: cable | E16: 0 | F16: =VLOOKUP($D16,specs!$K$5:$L$19,2)*IF($E$1="m",$D17,($D17*0.3048))/1000 -> 0 | G16: =VLOOKUP($D16,specs!$K$5:$L$19,2)*IF($E$1="m",$D17,($D17*0.3048))/1000 -> 0 | H16: =VLOOKUP($D16,specs!$K$5:$L$19,2)*IF($E$1="m",$D17,($D17*0.3048))/1000 -> 0 | I16: =VLOOKUP($D16,specs!$K$5:$L$19,2)*IF($E$1="m",$D17,($D17*0.3048))/1000 -> 0 | J16: =VLOOKUP($D16,specs!$K$5:$L$19,2)*IF($E$1="m",$D17,($D17*0.3048))/1000 -> 0 | K16: =VLOOKUP($D16,specs!$K$5:$L$19,2)*IF($E$1="m",$D17,($D17*0.3048))/1000 -> 0 | L16: =VLOOKUP($D16,specs!$K$5:$L$19,2)*IF($E$1="m",$D17,($D17*0.3048))/1000 -> 0 | M16: =VLOOKUP($D16,specs!$K$5:$L$19,2)*IF($E$1="m",$D17,($D17*0.3048))/1000 -> 0 | N16: =VLOOKUP($D16,specs!$K$5:$L$19,2)*IF($E$1="m",$D17,($D17*0.3048))/1000 -> 0 | O16: =VLOOKUP($D16,specs!$K$5:$L$19,2)*IF($E$1="m",$D17,($D17*0.3048))/1000 -> 0
C17: span length,m | D17: 0 | E17: 0 | F17: =VLOOKUP($D18,specs!$D$5:$H$17,4)/IF(F18<67,(F18/1.03),65)*$E18+F20 -> 0 | G17: =VLOOKUP($D18,specs!$D$5:$H$17,4)/IF(G18<67,(G18/1.03),65)*$E18+G20 -> 0 | H17: =VLOOKUP($D18,specs!$D$5:$H$17,4)/IF(H18<67,(H18/1.03),65)*$E18+H20 -> 0 | I17: =VLOOKUP($D18,specs!$D$5:$H$17,4)/IF(I18<67,(I18/1.03),65)*$E18+I20 -> 0 | J17: =VLOOKUP($D18,specs!$D$5:$H$17,4)/IF(J18<67,(J18/1.03),65)*$E18+J20 -> 0 | K17: =VLOOKUP($D18,specs!$D$5:$H$17,4)/IF(K18<67,(K18/1.03),65)*$E18+K20 -> 0 | L17: =VLOOKUP($D18,specs!$D$5:$H$17,4)/IF(L18<67,(L18/1.03),65)*$E18+L20 -> 0 | M17: =VLOOKUP($D18,specs!$D$5:$H$17,4)/IF(M18<67,(M18/1.03),65)*$E18+M20 -> 0 | N17: =VLOOKUP($D18,specs!$D$5:$H$17,4)/IF(N18<67,(N18/1.03),65)*$E18+N20 -> 0 | O17: =VLOOKUP($D18,specs!$D$5:$H$17,4)/IF(O18<67,(O18/1.03),65)*$E18+O20 -> 0
C18: amplifier | D18: load | E18: 0 | F18: =F21+F20*F19 -> 60.03148271 | G18: =G21+G20*G19 -> 60.03148271 | H18: 60.03148271 | I18: 60.03148271 | J18: 60.03148271 | K18: 60.03148271 | L18: 60.03148271 | M18: 60.03148271 | N18: 60.03148271 | O18: 60.03148271
C19: cable type | D19: cable | E19: 0 | F19: =VLOOKUP($D19,specs!$K$5:$L$19,2)*IF($E$1="m",$D20,($D20*0.3048))/1000 -> 0 | G19: =VLOOKUP($D19,specs!$K$5:$L$19,2)*IF($E$1="m",$D20,($D20*0.3048))/1000 -> 0 | H19: =VLOOKUP($D19,specs!$K$5:$L$19,2)*IF($E$1="m",$D20,($D20*0.3048))/1000 -> 0 | I19: =VLOOKUP($D19,specs!$K$5:$L$19,2)*IF($E$1="m",$D20,($D20*0.3048))/1000 -> 0 | J19: =VLOOKUP($D19,specs!$K$5:$L$19,2)*IF($E$1="m",$D20,($D20*0.3048))/1000 -> 0 | K19: =VLOOKUP($D19,specs!$K$5:$L$19,2)*IF($E$1="m",$D20,($D20*0.3048))/1000 -> 0 | L19: =VLOOKUP($D19,specs!$K$5:$L$19,2)*IF($E$1="m",$D20,($D20*0.3048))/1000 -> 0 | M19: =VLOOKUP($D19,specs!$K$5:$L$19,2)*IF($E$1="m",$D20,($D20*0.3048))/1000 -> 0 | N19: =VLOOKUP($D19,specs!$K$5:$L$19,2)*IF($E$1="m",$D20,($D20*0.3048))/1000 -> 0 | O19: =VLOOKUP($D19,specs!$K$5:$L$19,2)*IF($E$1="m",$D20,($D20*0.3048))/1000 -> 0
C20: span length,m | D20: 0 | E20: 0 | F20: =$E21*VLOOKUP($D21,specs!$D$5:$H$17,4)/IF(F21<67,(F21/1.03),65) -> 0 | G20: =$E21*VLOOKUP($D21,specs!$D$5:$H$17,4)/IF(G21<67,(G21/1.03),65) -> 0 | H20: =$E21*VLOOKUP($D21,specs!$D$5:$H$17,4)/IF(H21<67,(H21/1.03),65) -> 0 | I20: =$E21*VLOOKUP($D21,specs!$D$5:$H$17,4)/IF(I21<67,(I21/1.03),65) -> 0 | J20: =$E21*VLOOKUP($D21,specs!$D$5:$H$17,4)/IF(J21<67,(J21/1.03),65) -> 0 | K20: =$E21*VLOOKUP($D21,specs!$D$5:$H$17,4)/IF(K21<67,(K21/1.03),65) -> 0 | L20: =$E21*VLOOKUP($D21,specs!$D$5:$H$17,4)/IF(L21<67,(L21/1.03),65) -> 0 | M20: =$E21*VLOOKUP($D21,specs!$D$5:$H$17,4)/IF(M21<67,(M21/1.03),65) -> 0 | N20: =$E21*VLOOKUP($D21,specs!$D$5:$H$17,4)/IF(N21<67,(N21/1.03),65) -> 0 | O20: =$E21*VLOOKUP($D21,specs!$D$5:$H$17,4)/IF(O21<67,(O21/1.03),65) -> 0
C21: amplifier | D21: load | E21: 0 | F21: =B2 -> 60.03148271 | G21: =F21-(F3-$B$2) -> 60.03148271 | H21: 60.03148271 | I21: 60.03148271 | J21: 60.03148271 | K21: 60.03148271 | L21: 60.03148271 | M21: 60.03148271 | N21: 60.03148271 | O21: 60.03148271
F22: =IF(F21<0,1,0) -> 0 | G22: =IF(G21<0,1,0) -> 0 | H22: 0 | I22: 0 | J22: 0 | K22: 0 | L22: 0 | M22: 0 | N22: 0 | O22: 0
C24: User added Branch
M27: =O21 -> 60.03148271
F34: Main Branch Net41

Sheet Net32 (hidden)
B1: =SUM(F22:O22) -> 0 | D1: =IF(O21<'AUX2'!B6,1,0) -> 0 | E1: =+'AUX2'!J5 -> m
B2: ='AUX2'!M12 -> 55.49642685 | C2: U start, V | D2: =+O5*1 -> 0 | F2: 1 | G2: 2 | H2: 3 | I2: 4 | J2: 5 | K2: 6 | L2: 7 | M2: 8 | N2: 9 | O2: iteration10
E3: mult. | F3: =F6+F5*F4 -> 55.49642685 | G3: =G6+G5*G4 -> 55.49642685 | H3: 55.49642685 | I3: 55.49642685 | J3: 55.49642685 | K3: 55.49642685 | L3: 55.49642685 | M3: 55.49642685 | N3: 55.49642685 | O3: 55.49642685
C4: cable type | D4: cable | E4: 0 | F4: =VLOOKUP($D4,specs!$K$5:$L$19,2)*IF($E$1="m",$D5,($D5*0.3048))/1000 -> 0 | G4: =VLOOKUP($D4,specs!$K$5:$L$19,2)*IF($E$1="m",$D5,($D5*0.3048))/1000 -> 0 | H4: =VLOOKUP($D4,specs!$K$5:$L$19,2)*IF($E$1="m",$D5,($D5*0.3048))/1000 -> 0 | I4: =VLOOKUP($D4,specs!$K$5:$L$19,2)*IF($E$1="m",$D5,($D5*0.3048))/1000 -> 0 | J4: =VLOOKUP($D4,specs!$K$5:$L$19,2)*IF($E$1="m",$D5,($D5*0.3048))/1000 -> 0 | K4: =VLOOKUP($D4,specs!$K$5:$L$19,2)*IF($E$1="m",$D5,($D5*0.3048))/1000 -> 0 | L4: =VLOOKUP($D4,specs!$K$5:$L$19,2)*IF($E$1="m",$D5,($D5*0.3048))/1000 -> 0 | M4: =VLOOKUP($D4,specs!$K$5:$L$19,2)*IF($E$1="m",$D5,($D5*0.3048))/1000 -> 0 | N4: =VLOOKUP($D4,specs!$K$5:$L$19,2)*IF($E$1="m",$D5,($D5*0.3048))/1000 -> 0 | O4: =VLOOKUP($D4,specs!$K$5:$L$19,2)*IF($E$1="m",$D5,($D5*0.3048))/1000 -> 0
C5: span length,m | D5: 0 | E5: 0 | F5: =VLOOKUP($D6,specs!$D$5:$H$17,4)/IF(F6<67,(F6/1.03),65)*$E6+F8 -> 0 | G5: =VLOOKUP($D6,specs!$D$5:$H$17,4)/IF(G6<67,(G6/1.03),65)*$E6+G8 -> 0 | H5: =VLOOKUP($D6,specs!$D$5:$H$17,4)/IF(H6<67,(H6/1.03),65)*$E6+H8 -> 0 | I5: =VLOOKUP($D6,specs!$D$5:$H$17,4)/IF(I6<67,(I6/1.03),65)*$E6+I8 -> 0 | J5: =VLOOKUP($D6,specs!$D$5:$H$17,4)/IF(J6<67,(J6/1.03),65)*$E6+J8 -> 0 | K5: =VLOOKUP($D6,specs!$D$5:$H$17,4)/IF(K6<67,(K6/1.03),65)*$E6+K8 -> 0 | L5: =VLOOKUP($D6,specs!$D$5:$H$17,4)/IF(L6<67,(L6/1.03),65)*$E6+L8 -> 0 | M5: =VLOOKUP($D6,specs!$D$5:$H$17,4)/IF(M6<67,(M6/1.03),65)*$E6+M8 -> 0 | N5: =VLOOKUP($D6,specs!$D$5:$H$17,4)/IF(N6<67,(N6/1.03),65)*$E6+N8 -> 0 | O5: =VLOOKUP($D6,specs!$D$5:$H$17,4)/IF(O6<67,(O6/1.03),65)*$E6+O8 -> 0
C6: amplifier | D6: load | E6: 0 | F6: =F9+F8*F7 -> 55.49642685 | G6: =G9+G8*G7 -> 55.49642685 | H6: 55.49642685 | I6: 55.49642685 | J6: 55.49642685 | K6: 55.49642685 | L6: 55.49642685 | M6: 55.49642685 | N6: 55.49642685 | O6: 55.49642685
C7: cable type | D7: cable | E7: 0 | F7: =VLOOKUP($D7,specs!$K$5:$L$19,2)*IF($E$1="m",$D8,($D8*0.3048))/1000 -> 0 | G7: =VLOOKUP($D7,specs!$K$5:$L$19,2)*IF($E$1="m",$D8,($D8*0.3048))/1000 -> 0 | H7: =VLOOKUP($D7,specs!$K$5:$L$19,2)*IF($E$1="m",$D8,($D8*0.3048))/1000 -> 0 | I7: =VLOOKUP($D7,specs!$K$5:$L$19,2)*IF($E$1="m",$D8,($D8*0.3048))/1000 -> 0 | J7: =VLOOKUP($D7,specs!$K$5:$L$19,2)*IF($E$1="m",$D8,($D8*0.3048))/1000 -> 0 | K7: =VLOOKUP($D7,specs!$K$5:$L$19,2)*IF($E$1="m",$D8,($D8*0.3048))/1000 -> 0 | L7: =VLOOKUP($D7,specs!$K$5:$L$19,2)*IF($E$1="m",$D8,($D8*0.3048))/1000 -> 0 | M7: =VLOOKUP($D7,specs!$K$5:$L$19,2)*IF($E$1="m",$D8,($D8*0.3048))/1000 -> 0 | N7: =VLOOKUP($D7,specs!$K$5:$L$19,2)*IF($E$1="m",$D8,($D8*0.3048))/1000 -> 0 | O7: =VLOOKUP($D7,specs!$K$5:$L$19,2)*IF($E$1="m",$D8,($D8*0.3048))/1000 -> 0
C8: span length,m | D8: 0 | E8: 0 | F8: =VLOOKUP($D9,specs!$D$5:$H$17,4)/IF(F9<67,(F9/1.03),65)*$E9+F11 -> 0 | G8: =VLOOKUP($D9,specs!$D$5:$H$17,4)/IF(G9<67,(G9/1.03),65)*$E9+G11 -> 0 | H8: =VLOOKUP($D9,specs!$D$5:$H$17,4)/IF(H9<67,(H9/1.03),65)*$E9+H11 -> 0 | I8: =VLOOKUP($D9,specs!$D$5:$H$17,4)/IF(I9<67,(I9/1.03),65)*$E9+I11 -> 0 | J8: =VLOOKUP($D9,specs!$D$5:$H$17,4)/IF(J9<67,(J9/1.03),65)*$E9+J11 -> 0 | K8: =VLOOKUP($D9,specs!$D$5:$H$17,4)/IF(K9<67,(K9/1.03),65)*$E9+K11 -> 0 | L8: =VLOOKUP($D9,specs!$D$5:$H$17,4)/IF(L9<67,(L9/1.03),65)*$E9+L11 -> 0 | M8: =VLOOKUP($D9,specs!$D$5:$H$17,4)/IF(M9<67,(M9/1.03),65)*$E9+M11 -> 0 | N8: =VLOOKUP($D9,specs!$D$5:$H$17,4)/IF(N9<67,(N9/1.03),65)*$E9+N11 -> 0 | O8: =VLOOKUP($D9,specs!$D$5:$H$17,4)/IF(O9<67,(O9/1.03),65)*$E9+O11 -> 0
C9: amplifier | D9: load | E9: 0 | F9: =F12+F11*F10 -> 55.49642685 | G9: =G12+G11*G10 -> 55.49642685 | H9: 55.49642685 | I9: 55.49642685 | J9: 55.49642685 | K9: 55.49642685 | L9: 55.49642685 | M9: 55.49642685 | N9: 55.49642685 | O9: 55.49642685
C10: cable type | D10: cable | E10: 0 | F10: =VLOOKUP($D10,specs!$K$5:$L$19,2)*IF($E$1="m",$D11,($D11*0.3048))/1000 -> 0 | G10: =VLOOKUP($D10,specs!$K$5:$L$19,2)*IF($E$1="m",$D11,($D11*0.3048))/1000 -> 0 | H10: =VLOOKUP($D10,specs!$K$5:$L$19,2)*IF($E$1="m",$D11,($D11*0.3048))/1000 -> 0 | I10: =VLOOKUP($D10,specs!$K$5:$L$19,2)*IF($E$1="m",$D11,($D11*0.3048))/1000 -> 0 | J10: =VLOOKUP($D10,specs!$K$5:$L$19,2)*IF($E$1="m",$D11,($D11*0.3048))/1000 -> 0 | K10: =VLOOKUP($D10,specs!$K$5:$L$19,2)*IF($E$1="m",$D11,($D11*0.3048))/1000 -> 0 | L10: =VLOOKUP($D10,specs!$K$5:$L$19,2)*IF($E$1="m",$D11,($D11*0.3048))/1000 -> 0 | M10: =VLOOKUP($D10,specs!$K$5:$L$19,2)*IF($E$1="m",$D11,($D11*0.3048))/1000 -> 0 | N10: =VLOOKUP($D10,specs!$K$5:$L$19,2)*IF($E$1="m",$D11,($D11*0.3048))/1000 -> 0 | O10: =VLOOKUP($D10,specs!$K$5:$L$19,2)*IF($E$1="m",$D11,($D11*0.3048))/1000 -> 0
C11: span length,m | D11: 0 | E11: 0 | F11: =VLOOKUP($D12,specs!$D$5:$H$17,4)/IF(F12<67,(F12/1.03),65)*$E12+F14 -> 0 | G11: =VLOOKUP($D12,specs!$D$5:$H$17,4)/IF(G12<67,(G12/1.03),65)*$E12+G14 -> 0 | H11: =VLOOKUP($D12,specs!$D$5:$H$17,4)/IF(H12<67,(H12/1.03),65)*$E12+H14 -> 0 | I11: =VLOOKUP($D12,specs!$D$5:$H$17,4)/IF(I12<67,(I12/1.03),65)*$E12+I14 -> 0 | J11: =VLOOKUP($D12,specs!$D$5:$H$17,4)/IF(J12<67,(J12/1.03),65)*$E12+J14 -> 0 | K11: =VLOOKUP($D12,specs!$D$5:$H$17,4)/IF(K12<67,(K12/1.03),65)*$E12+K14 -> 0 | L11: =VLOOKUP($D12,specs!$D$5:$H$17,4)/IF(L12<67,(L12/1.03),65)*$E12+L14 -> 0 | M11: =VLOOKUP($D12,specs!$D$5:$H$17,4)/IF(M12<67,(M12/1.03),65)*$E12+M14 -> 0 | N11: =VLOOKUP($D12,specs!$D$5:$H$17,4)/IF(N12<67,(N12/1.03),65)*$E12+N14 -> 0 | O11: =VLOOKUP($D12,specs!$D$5:$H$17,4)/IF(O12<67,(O12/1.03),65)*$E12+O14 -> 0
C12: amplifier | D12: load | E12: 0 | F12: =F15+F14*F13 -> 55.49642685 | G12: =G15+G14*G13 -> 55.49642685 | H12: 55.49642685 | I12: 55.49642685 | J12: 55.49642685 | K12: 55.49642685 | L12: 55.49642685 | M12: 55.49642685 | N12: 55.49642685 | O12: 55.49642685
C13: cable type | D13: cable | E13: 0 | F13: =VLOOKUP($D13,specs!$K$5:$L$19,2)*IF($E$1="m",$D14,($D14*0.3048))/1000 -> 0 | G13: =VLOOKUP($D13,specs!$K$5:$L$19,2)*IF($E$1="m",$D14,($D14*0.3048))/1000 -> 0 | H13: =VLOOKUP($D13,specs!$K$5:$L$19,2)*IF($E$1="m",$D14,($D14*0.3048))/1000 -> 0 | I13: =VLOOKUP($D13,specs!$K$5:$L$19,2)*IF($E$1="m",$D14,($D14*0.3048))/1000 -> 0 | J13: =VLOOKUP($D13,specs!$K$5:$L$19,2)*IF($E$1="m",$D14,($D14*0.3048))/1000 -> 0 | K13: =VLOOKUP($D13,specs!$K$5:$L$19,2)*IF($E$1="m",$D14,($D14*0.3048))/1000 -> 0 | L13: =VLOOKUP($D13,specs!$K$5:$L$19,2)*IF($E$1="m",$D14,($D14*0.3048))/1000 -> 0 | M13: =VLOOKUP($D13,specs!$K$5:$L$19,2)*IF($E$1="m",$D14,($D14*0.3048))/1000 -> 0 | N13: =VLOOKUP($D13,specs!$K$5:$L$19,2)*IF($E$1="m",$D14,($D14*0.3048))/1000 -> 0 | O13: =VLOOKUP($D13,specs!$K$5:$L$19,2)*IF($E$1="m",$D14,($D14*0.3048))/1000 -> 0
C14: span length,m | D14: 0 | E14: 0 | F14: =VLOOKUP($D15,specs!$D$5:$H$17,4)/IF(F15<67,(F15/1.03),65)*$E15+F17 -> 0 | G14: =VLOOKUP($D15,specs!$D$5:$H$17,4)/IF(G15<67,(G15/1.03),65)*$E15+G17 -> 0 | H14: =VLOOKUP($D15,specs!$D$5:$H$17,4)/IF(H15<67,(H15/1.03),65)*$E15+H17 -> 0 | I14: =VLOOKUP($D15,specs!$D$5:$H$17,4)/IF(I15<67,(I15/1.03),65)*$E15+I17 -> 0 | J14: =VLOOKUP($D15,specs!$D$5:$H$17,4)/IF(J15<67,(J15/1.03),65)*$E15+J17 -> 0 | K14: =VLOOKUP($D15,specs!$D$5:$H$17,4)/IF(K15<67,(K15/1.03),65)*$E15+K17 -> 0 | L14: =VLOOKUP($D15,specs!$D$5:$H$17,4)/IF(L15<67,(L15/1.03),65)*$E15+L17 -> 0 | M14: =VLOOKUP($D15,specs!$D$5:$H$17,4)/IF(M15<67,(M15/1.03),65)*$E15+M17 -> 0 | N14: =VLOOKUP($D15,specs!$D$5:$H$17,4)/IF(N15<67,(N15/1.03),65)*$E15+N17 -> 0 | O14: =VLOOKUP($D15,specs!$D$5:$H$17,4)/IF(O15<67,(O15/1.03),65)*$E15+O17 -> 0
C15: amplifier | D15: load | E15: 0 | F15: =F18+F17*F16 -> 55.49642685 | G15: =G18+G17*G16 -> 55.49642685 | H15: 55.49642685 | I15: 55.49642685 | J15: 55.49642685 | K15: 55.49642685 | L15: 55.49642685 | M15: 55.49642685 | N15: 55.49642685 | O15: 55.49642685
C16: cable type | D16: cable | E16: 0 | F16: =VLOOKUP($D16,specs!$K$5:$L$19,2)*IF($E$1="m",$D17,($D17*0.3048))/1000 -> 0 | G16: =VLOOKUP($D16,specs!$K$5:$L$19,2)*IF($E$1="m",$D17,($D17*0.3048))/1000 -> 0 | H16: =VLOOKUP($D16,specs!$K$5:$L$19,2)*IF($E$1="m",$D17,($D17*0.3048))/1000 -> 0 | I16: =VLOOKUP($D16,specs!$K$5:$L$19,2)*IF($E$1="m",$D17,($D17*0.3048))/1000 -> 0 | J16: =VLOOKUP($D16,specs!$K$5:$L$19,2)*IF($E$1="m",$D17,($D17*0.3048))/1000 -> 0 | K16: =VLOOKUP($D16,specs!$K$5:$L$19,2)*IF($E$1="m",$D17,($D17*0.3048))/1000 -> 0 | L16: =VLOOKUP($D16,specs!$K$5:$L$19,2)*IF($E$1="m",$D17,($D17*0.3048))/1000 -> 0 | M16: =VLOOKUP($D16,specs!$K$5:$L$19,2)*IF($E$1="m",$D17,($D17*0.3048))/1000 -> 0 | N16: =VLOOKUP($D16,specs!$K$5:$L$19,2)*IF($E$1="m",$D17,($D17*0.3048))/1000 -> 0 | O16: =VLOOKUP($D16,specs!$K$5:$L$19,2)*IF($E$1="m",$D17,($D17*0.3048))/1000 -> 0
C17: span length,m | D17: 0 | E17: 0 | F17: =VLOOKUP($D18,specs!$D$5:$H$17,4)/IF(F18<67,(F18/1.03),65)*$E18+F20 -> 0 | G17: =VLOOKUP($D18,specs!$D$5:$H$17,4)/IF(G18<67,(G18/1.03),65)*$E18+G20 -> 0 | H17: =VLOOKUP($D18,specs!$D$5:$H$17,4)/IF(H18<67,(H18/1.03),65)*$E18+H20 -> 0 | I17: =VLOOKUP($D18,specs!$D$5:$H$17,4)/IF(I18<67,(I18/1.03),65)*$E18+I20 -> 0 | J17: =VLOOKUP($D18,specs!$D$5:$H$17,4)/IF(J18<67,(J18/1.03),65)*$E18+J20 -> 0 | K17: =VLOOKUP($D18,specs!$D$5:$H$17,4)/IF(K18<67,(K18/1.03),65)*$E18+K20 -> 0 | L17: =VLOOKUP($D18,specs!$D$5:$H$17,4)/IF(L18<67,(L18/1.03),65)*$E18+L20 -> 0 | M17: =VLOOKUP($D18,specs!$D$5:$H$17,4)/IF(M18<67,(M18/1.03),65)*$E18+M20 -> 0 | N17: =VLOOKUP($D18,specs!$D$5:$H$17,4)/IF(N18<67,(N18/1.03),65)*$E18+N20 -> 0 | O17: =VLOOKUP($D18,specs!$D$5:$H$17,4)/IF(O18<67,(O18/1.03),65)*$E18+O20 -> 0
C18: amplifier | D18: load | E18: 0 | F18: =F21+F20*F19 -> 55.49642685 | G18: =G21+G20*G19 -> 55.49642685 | H18: 55.49642685 | I18: 55.49642685 | J18: 55.49642685 | K18: 55.49642685 | L18: 55.49642685 | M18: 55.49642685 | N18: 55.49642685 | O18: 55.49642685
C19: cable type | D19: cable | E19: 0 | F19: =VLOOKUP($D19,specs!$K$5:$L$19,2)*IF($E$1="m",$D20,($D20*0.3048))/1000 -> 0 | G19: =VLOOKUP($D19,specs!$K$5:$L$19,2)*IF($E$1="m",$D20,($D20*0.3048))/1000 -> 0 | H19: =VLOOKUP($D19,specs!$K$5:$L$19,2)*IF($E$1="m",$D20,($D20*0.3048))/1000 -> 0 | I19: =VLOOKUP($D19,specs!$K$5:$L$19,2)*IF($E$1="m",$D20,($D20*0.3048))/1000 -> 0 | J19: =VLOOKUP($D19,specs!$K$5:$L$19,2)*IF($E$1="m",$D20,($D20*0.3048))/1000 -> 0 | K19: =VLOOKUP($D19,specs!$K$5:$L$19,2)*IF($E$1="m",$D20,($D20*0.3048))/1000 -> 0 | L19: =VLOOKUP($D19,specs!$K$5:$L$19,2)*IF($E$1="m",$D20,($D20*0.3048))/1000 -> 0 | M19: =VLOOKUP($D19,specs!$K$5:$L$19,2)*IF($E$1="m",$D20,($D20*0.3048))/1000 -> 0 | N19: =VLOOKUP($D19,specs!$K$5:$L$19,2)*IF($E$1="m",$D20,($D20*0.3048))/1000 -> 0 | O19: =VLOOKUP($D19,specs!$K$5:$L$19,2)*IF($E$1="m",$D20,($D20*0.3048))/1000 -> 0
C20: span length,m | D20: 0 | E20: 0 | F20: =$E21*VLOOKUP($D21,specs!$D$5:$H$17,4)/IF(F21<67,(F21/1.03),65) -> 0 | G20: =$E21*VLOOKUP($D21,specs!$D$5:$H$17,4)/IF(G21<67,(G21/1.03),65) -> 0 | H20: =$E21*VLOOKUP($D21,specs!$D$5:$H$17,4)/IF(H21<67,(H21/1.03),65) -> 0 | I20: =$E21*VLOOKUP($D21,specs!$D$5:$H$17,4)/IF(I21<67,(I21/1.03),65) -> 0 | J20: =$E21*VLOOKUP($D21,specs!$D$5:$H$17,4)/IF(J21<67,(J21/1.03),65) -> 0 | K20: =$E21*VLOOKUP($D21,specs!$D$5:$H$17,4)/IF(K21<67,(K21/1.03),65) -> 0 | L20: =$E21*VLOOKUP($D21,specs!$D$5:$H$17,4)/IF(L21<67,(L21/1.03),65) -> 0 | M20: =$E21*VLOOKUP($D21,specs!$D$5:$H$17,4)/IF(M21<67,(M21/1.03),65) -> 0 | N20: =$E21*VLOOKUP($D21,specs!$D$5:$H$17,4)/IF(N21<67,(N21/1.03),65) -> 0 | O20: =$E21*VLOOKUP($D21,specs!$D$5:$H$17,4)/IF(O21<67,(O21/1.03),65) -> 0
C21: amplifier | D21: load | E21: 0 | F21: =B2 -> 55.49642685 | G21: =F21-(F3-$B$2) -> 55.49642685 | H21: 55.49642685 | I21: 55.49642685 | J21: 55.49642685 | K21: 55.49642685 | L21: 55.49642685 | M21: 55.49642685 | N21: 55.49642685 | O21: 55.49642685
F22: =IF(F21<0,1,0) -> 0 | G22: =IF(G21<0,1,0) -> 0 | H22: 0 | I22: 0 | J22: 0 | K22: 0 | L22: 0 | M22: 0 | N22: 0 | O22: 0
C24: User added Branch
M27: =O21 -> 55.49642685
F34: Main Branch Net32

Sheet Net31 (hidden)
B1: =SUM(F22:O22) -> 0 | D1: =IF(O21<'AUX2'!B6,1,0) -> 0 | E1: =+'AUX2'!J5 -> m
B2: =+'AUX2'!M11 -> 55.49642685 | C2: U start, V | D2: =+O5*1 -> 0 | F2: 1 | G2: 2 | H2: 3 | I2: 4 | J2: 5 | K2: 6 | L2: 7 | M2: 8 | N2: 9 | O2: iteration10
E3: mult. | F3: =F6+F5*F4 -> 55.49642685 | G3: =G6+G5*G4 -> 55.49642685 | H3: 55.49642685 | I3: 55.49642685 | J3: 55.49642685 | K3: 55.49642685 | L3: 55.49642685 | M3: 55.49642685 | N3: 55.49642685 | O3: 55.49642685
C4: cable type | D4: cable | E4: 0 | F4: =VLOOKUP($D4,specs!$K$5:$L$19,2)*IF($E$1="m",$D5,($D5*0.3048))/1000 -> 0 | G4: =VLOOKUP($D4,specs!$K$5:$L$19,2)*IF($E$1="m",$D5,($D5*0.3048))/1000 -> 0 | H4: =VLOOKUP($D4,specs!$K$5:$L$19,2)*IF($E$1="m",$D5,($D5*0.3048))/1000 -> 0 | I4: =VLOOKUP($D4,specs!$K$5:$L$19,2)*IF($E$1="m",$D5,($D5*0.3048))/1000 -> 0 | J4: =VLOOKUP($D4,specs!$K$5:$L$19,2)*IF($E$1="m",$D5,($D5*0.3048))/1000 -> 0 | K4: =VLOOKUP($D4,specs!$K$5:$L$19,2)*IF($E$1="m",$D5,($D5*0.3048))/1000 -> 0 | L4: =VLOOKUP($D4,specs!$K$5:$L$19,2)*IF($E$1="m",$D5,($D5*0.3048))/1000 -> 0 | M4: =VLOOKUP($D4,specs!$K$5:$L$19,2)*IF($E$1="m",$D5,($D5*0.3048))/1000 -> 0 | N4: =VLOOKUP($D4,specs!$K$5:$L$19,2)*IF($E$1="m",$D5,($D5*0.3048))/1000 -> 0 | O4: =VLOOKUP($D4,specs!$K$5:$L$19,2)*IF($E$1="m",$D5,($D5*0.3048))/1000 -> 0
C5: span length,m | D5: 0 | E5: 0 | F5: =VLOOKUP($D6,specs!$D$5:$H$17,4)/IF(F6<67,(F6/1.03),65)*$E6+F8 -> 0 | G5: =VLOOKUP($D6,specs!$D$5:$H$17,4)/IF(G6<67,(G6/1.03),65)*$E6+G8 -> 0 | H5: =VLOOKUP($D6,specs!$D$5:$H$17,4)/IF(H6<67,(H6/1.03),65)*$E6+H8 -> 0 | I5: =VLOOKUP($D6,specs!$D$5:$H$17,4)/IF(I6<67,(I6/1.03),65)*$E6+I8 -> 0 | J5: =VLOOKUP($D6,specs!$D$5:$H$17,4)/IF(J6<67,(J6/1.03),65)*$E6+J8 -> 0 | K5: =VLOOKUP($D6,specs!$D$5:$H$17,4)/IF(K6<67,(K6/1.03),65)*$E6+K8 -> 0 | L5: =VLOOKUP($D6,specs!$D$5:$H$17,4)/IF(L6<67,(L6/1.03),65)*$E6+L8 -> 0 | M5: =VLOOKUP($D6,specs!$D$5:$H$17,4)/IF(M6<67,(M6/1.03),65)*$E6+M8 -> 0 | N5: =VLOOKUP($D6,specs!$D$5:$H$17,4)/IF(N6<67,(N6/1.03),65)*$E6+N8 -> 0 | O5: =VLOOKUP($D6,specs!$D$5:$H$17,4)/IF(O6<67,(O6/1.03),65)*$E6+O8 -> 0
C6: amplifier | D6: load | E6: 0 | F6: =F9+F8*F7 -> 55.49642685 | G6: =G9+G8*G7 -> 55.49642685 | H6: 55.49642685 | I6: 55.49642685 | J6: 55.49642685 | K6: 55.49642685 | L6: 55.49642685 | M6: 55.49642685 | N6: 55.49642685 | O6: 55.49642685
C7: cable type | D7: cable | E7: 0 | F7: =VLOOKUP($D7,specs!$K$5:$L$19,2)*IF($E$1="m",$D8,($D8*0.3048))/1000 -> 0 | G7: =VLOOKUP($D7,specs!$K$5:$L$19,2)*IF($E$1="m",$D8,($D8*0.3048))/1000 -> 0 | H7: =VLOOKUP($D7,specs!$K$5:$L$19,2)*IF($E$1="m",$D8,($D8*0.3048))/1000 -> 0 | I7: =VLOOKUP($D7,specs!$K$5:$L$19,2)*IF($E$1="m",$D8,($D8*0.3048))/1000 -> 0 | J7: =VLOOKUP($D7,specs!$K$5:$L$19,2)*IF($E$1="m",$D8,($D8*0.3048))/1000 -> 0 | K7: =VLOOKUP($D7,specs!$K$5:$L$19,2)*IF($E$1="m",$D8,($D8*0.3048))/1000 -> 0 | L7: =VLOOKUP($D7,specs!$K$5:$L$19,2)*IF($E$1="m",$D8,($D8*0.3048))/1000 -> 0 | M7: =VLOOKUP($D7,specs!$K$5:$L$19,2)*IF($E$1="m",$D8,($D8*0.3048))/1000 -> 0 | N7: =VLOOKUP($D7,specs!$K$5:$L$19,2)*IF($E$1="m",$D8,($D8*0.3048))/1000 -> 0 | O7: =VLOOKUP($D7,specs!$K$5:$L$19,2)*IF($E$1="m",$D8,($D8*0.3048))/1000 -> 0
C8: span length,m | D8: 0 | E8: 0 | F8: =VLOOKUP($D9,specs!$D$5:$H$17,4)/IF(F9<67,(F9/1.03),65)*$E9+F11 -> 0 | G8: =VLOOKUP($D9,specs!$D$5:$H$17,4)/IF(G9<67,(G9/1.03),65)*$E9+G11 -> 0 | H8: =VLOOKUP($D9,specs!$D$5:$H$17,4)/IF(H9<67,(H9/1.03),65)*$E9+H11 -> 0 | I8: =VLOOKUP($D9,specs!$D$5:$H$17,4)/IF(I9<67,(I9/1.03),65)*$E9+I11 -> 0 | J8: =VLOOKUP($D9,specs!$D$5:$H$17,4)/IF(J9<67,(J9/1.03),65)*$E9+J11 -> 0 | K8: =VLOOKUP($D9,specs!$D$5:$H$17,4)/IF(K9<67,(K9/1.03),65)*$E9+K11 -> 0 | L8: =VLOOKUP($D9,specs!$D$5:$H$17,4)/IF(L9<67,(L9/1.03),65)*$E9+L11 -> 0 | M8: =VLOOKUP($D9,specs!$D$5:$H$17,4)/IF(M9<67,(M9/1.03),65)*$E9+M11 -> 0 | N8: =VLOOKUP($D9,specs!$D$5:$H$17,4)/IF(N9<67,(N9/1.03),65)*$E9+N11 -> 0 | O8: =VLOOKUP($D9,specs!$D$5:$H$17,4)/IF(O9<67,(O9/1.03),65)*$E9+O11 -> 0
C9: amplifier | D9: load | E9: 0 | F9: =F12+F11*F10 -> 55.49642685 | G9: =G12+G11*G10 -> 55.49642685 | H9: 55.49642685 | I9: 55.49642685 | J9: 55.49642685 | K9: 55.49642685 | L9: 55.49642685 | M9: 55.49642685 | N9: 55.49642685 | O9: 55.49642685
C10: cable type | D10: cable | E10: 0 | F10: =VLOOKUP($D10,specs!$K$5:$L$19,2)*IF($E$1="m",$D11,($D11*0.3048))/1000 -> 0 | G10: =VLOOKUP($D10,specs!$K$5:$L$19,2)*IF($E$1="m",$D11,($D11*0.3048))/1000 -> 0 | H10: =VLOOKUP($D10,specs!$K$5:$L$19,2)*IF($E$1="m",$D11,($D11*0.3048))/1000 -> 0 | I10: =VLOOKUP($D10,specs!$K$5:$L$19,2)*IF($E$1="m",$D11,($D11*0.3048))/1000 -> 0 | J10: =VLOOKUP($D10,specs!$K$5:$L$19,2)*IF($E$1="m",$D11,($D11*0.3048))/1000 -> 0 | K10: =VLOOKUP($D10,specs!$K$5:$L$19,2)*IF($E$1="m",$D11,($D11*0.3048))/1000 -> 0 | L10: =VLOOKUP($D10,specs!$K$5:$L$19,2)*IF($E$1="m",$D11,($D11*0.3048))/1000 -> 0 | M10: =VLOOKUP($D10,specs!$K$5:$L$19,2)*IF($E$1="m",$D11,($D11*0.3048))/1000 -> 0 | N10: =VLOOKUP($D10,specs!$K$5:$L$19,2)*IF($E$1="m",$D11,($D11*0.3048))/1000 -> 0 | O10: =VLOOKUP($D10,specs!$K$5:$L$19,2)*IF($E$1="m",$D11,($D11*0.3048))/1000 -> 0
C11: span length,m | D11: 0 | E11: 0 | F11: =VLOOKUP($D12,specs!$D$5:$H$17,4)/IF(F12<67,(F12/1.03),65)*$E12+F14 -> 0 | G11: =VLOOKUP($D12,specs!$D$5:$H$17,4)/IF(G12<67,(G12/1.03),65)*$E12+G14 -> 0 | H11: =VLOOKUP($D12,specs!$D$5:$H$17,4)/IF(H12<67,(H12/1.03),65)*$E12+H14 -> 0 | I11: =VLOOKUP($D12,specs!$D$5:$H$17,4)/IF(I12<67,(I12/1.03),65)*$E12+I14 -> 0 | J11: =VLOOKUP($D12,specs!$D$5:$H$17,4)/IF(J12<67,(J12/1.03),65)*$E12+J14 -> 0 | K11: =VLOOKUP($D12,specs!$D$5:$H$17,4)/IF(K12<67,(K12/1.03),65)*$E12+K14 -> 0 | L11: =VLOOKUP($D12,specs!$D$5:$H$17,4)/IF(L12<67,(L12/1.03),65)*$E12+L14 -> 0 | M11: =VLOOKUP($D12,specs!$D$5:$H$17,4)/IF(M12<67,(M12/1.03),65)*$E12+M14 -> 0 | N11: =VLOOKUP($D12,specs!$D$5:$H$17,4)/IF(N12<67,(N12/1.03),65)*$E12+N14 -> 0 | O11: =VLOOKUP($D12,specs!$D$5:$H$17,4)/IF(O12<67,(O12/1.03),65)*$E12+O14 -> 0
C12: amplifier | D12: load | E12: 0 | F12: =F15+F14*F13 -> 55.49642685 | G12: =G15+G14*G13 -> 55.49642685 | H12: 55.49642685 | I12: 55.49642685 | J12: 55.49642685 | K12: 55.49642685 | L12: 55.49642685 | M12: 55.49642685 | N12: 55.49642685 | O12: 55.49642685
C13: cable type | D13: cable | E13: 0 | F13: =VLOOKUP($D13,specs!$K$5:$L$19,2)*IF($E$1="m",$D14,($D14*0.3048))/1000 -> 0 | G13: =VLOOKUP($D13,specs!$K$5:$L$19,2)*IF($E$1="m",$D14,($D14*0.3048))/1000 -> 0 | H13: =VLOOKUP($D13,specs!$K$5:$L$19,2)*IF($E$1="m",$D14,($D14*0.3048))/1000 -> 0 | I13: =VLOOKUP($D13,specs!$K$5:$L$19,2)*IF($E$1="m",$D14,($D14*0.3048))/1000 -> 0 | J13: =VLOOKUP($D13,specs!$K$5:$L$19,2)*IF($E$1="m",$D14,($D14*0.3048))/1000 -> 0 | K13: =VLOOKUP($D13,specs!$K$5:$L$19,2)*IF($E$1="m",$D14,($D14*0.3048))/1000 -> 0 | L13: =VLOOKUP($D13,specs!$K$5:$L$19,2)*IF($E$1="m",$D14,($D14*0.3048))/1000 -> 0 | M13: =VLOOKUP($D13,specs!$K$5:$L$19,2)*IF($E$1="m",$D14,($D14*0.3048))/1000 -> 0 | N13: =VLOOKUP($D13,specs!$K$5:$L$19,2)*IF($E$1="m",$D14,($D14*0.3048))/1000 -> 0 | O13: =VLOOKUP($D13,specs!$K$5:$L$19,2)*IF($E$1="m",$D14,($D14*0.3048))/1000 -> 0
C14: span length,m | D14: 0 | E14: 0 | F14: =VLOOKUP($D15,specs!$D$5:$H$17,4)/IF(F15<67,(F15/1.03),65)*$E15+F17 -> 0 | G14: =VLOOKUP($D15,specs!$D$5:$H$17,4)/IF(G15<67,(G15/1.03),65)*$E15+G17 -> 0 | H14: =VLOOKUP($D15,specs!$D$5:$H$17,4)/IF(H15<67,(H15/1.03),65)*$E15+H17 -> 0 | I14: =VLOOKUP($D15,specs!$D$5:$H$17,4)/IF(I15<67,(I15/1.03),65)*$E15+I17 -> 0 | J14: =VLOOKUP($D15,specs!$D$5:$H$17,4)/IF(J15<67,(J15/1.03),65)*$E15+J17 -> 0 | K14: =VLOOKUP($D15,specs!$D$5:$H$17,4)/IF(K15<67,(K15/1.03),65)*$E15+K17 -> 0 | L14: =VLOOKUP($D15,specs!$D$5:$H$17,4)/IF(L15<67,(L15/1.03),65)*$E15+L17 -> 0 | M14: =VLOOKUP($D15,specs!$D$5:$H$17,4)/IF(M15<67,(M15/1.03),65)*$E15+M17 -> 0 | N14: =VLOOKUP($D15,specs!$D$5:$H$17,4)/IF(N15<67,(N15/1.03),65)*$E15+N17 -> 0 | O14: =VLOOKUP($D15,specs!$D$5:$H$17,4)/IF(O15<67,(O15/1.03),65)*$E15+O17 -> 0
C15: amplifier | D15: load | E15: 0 | F15: =F18+F17*F16 -> 55.49642685 | G15: =G18+G17*G16 -> 55.49642685 | H15: 55.49642685 | I15: 55.49642685 | J15: 55.49642685 | K15: 55.49642685 | L15: 55.49642685 | M15: 55.49642685 | N15: 55.49642685 | O15: 55.49642685
C16: cable type | D16: cable | E16: 0 | F16: =VLOOKUP($D16,specs!$K$5:$L$19,2)*IF($E$1="m",$D17,($D17*0.3048))/1000 -> 0 | G16: =VLOOKUP($D16,specs!$K$5:$L$19,2)*IF($E$1="m",$D17,($D17*0.3048))/1000 -> 0 | H16: =VLOOKUP($D16,specs!$K$5:$L$19,2)*IF($E$1="m",$D17,($D17*0.3048))/1000 -> 0 | I16: =VLOOKUP($D16,specs!$K$5:$L$19,2)*IF($E$1="m",$D17,($D17*0.3048))/1000 -> 0 | J16: =VLOOKUP($D16,specs!$K$5:$L$19,2)*IF($E$1="m",$D17,($D17*0.3048))/1000 -> 0 | K16: =VLOOKUP($D16,specs!$K$5:$L$19,2)*IF($E$1="m",$D17,($D17*0.3048))/1000 -> 0 | L16: =VLOOKUP($D16,specs!$K$5:$L$19,2)*IF($E$1="m",$D17,($D17*0.3048))/1000 -> 0 | M16: =VLOOKUP($D16,specs!$K$5:$L$19,2)*IF($E$1="m",$D17,($D17*0.3048))/1000 -> 0 | N16: =VLOOKUP($D16,specs!$K$5:$L$19,2)*IF($E$1="m",$D17,($D17*0.3048))/1000 -> 0 | O16: =VLOOKUP($D16,specs!$K$5:$L$19,2)*IF($E$1="m",$D17,($D17*0.3048))/1000 -> 0
C17: span length,m | D17: 0 | E17: 0 | F17: =VLOOKUP($D18,specs!$D$5:$H$17,4)/IF(F18<67,(F18/1.03),65)*$E18+F20 -> 0 | G17: =VLOOKUP($D18,specs!$D$5:$H$17,4)/IF(G18<67,(G18/1.03),65)*$E18+G20 -> 0 | H17: =VLOOKUP($D18,specs!$D$5:$H$17,4)/IF(H18<67,(H18/1.03),65)*$E18+H20 -> 0 | I17: =VLOOKUP($D18,specs!$D$5:$H$17,4)/IF(I18<67,(I18/1.03),65)*$E18+I20 -> 0 | J17: =VLOOKUP($D18,specs!$D$5:$H$17,4)/IF(J18<67,(J18/1.03),65)*$E18+J20 -> 0 | K17: =VLOOKUP($D18,specs!$D$5:$H$17,4)/IF(K18<67,(K18/1.03),65)*$E18+K20 -> 0 | L17: =VLOOKUP($D18,specs!$D$5:$H$17,4)/IF(L18<67,(L18/1.03),65)*$E18+L20 -> 0 | M17: =VLOOKUP($D18,specs!$D$5:$H$17,4)/IF(M18<67,(M18/1.03),65)*$E18+M20 -> 0 | N17: =VLOOKUP($D18,specs!$D$5:$H$17,4)/IF(N18<67,(N18/1.03),65)*$E18+N20 -> 0 | O17: =VLOOKUP($D18,specs!$D$5:$H$17,4)/IF(O18<67,(O18/1.03),65)*$E18+O20 -> 0
C18: amplifier | D18: load | E18: 0 | F18: =F21+F20*F19 -> 55.49642685 | G18: =G21+G20*G19 -> 55.49642685 | H18: 55.49642685 | I18: 55.49642685 | J18: 55.49642685 | K18: 55.49642685 | L18: 55.49642685 | M18: 55.49642685 | N18: 55.49642685 | O18: 55.49642685
C19: cable type | D19: cable | E19: 0 | F19: =VLOOKUP($D19,specs!$K$5:$L$19,2)*IF($E$1="m",$D20,($D20*0.3048))/1000 -> 0 | G19: =VLOOKUP($D19,specs!$K$5:$L$19,2)*IF($E$1="m",$D20,($D20*0.3048))/1000 -> 0 | H19: =VLOOKUP($D19,specs!$K$5:$L$19,2)*IF($E$1="m",$D20,($D20*0.3048))/1000 -> 0 | I19: =VLOOKUP($D19,specs!$K$5:$L$19,2)*IF($E$1="m",$D20,($D20*0.3048))/1000 -> 0 | J19: =VLOOKUP($D19,specs!$K$5:$L$19,2)*IF($E$1="m",$D20,($D20*0.3048))/1000 -> 0 | K19: =VLOOKUP($D19,specs!$K$5:$L$19,2)*IF($E$1="m",$D20,($D20*0.3048))/1000 -> 0 | L19: =VLOOKUP($D19,specs!$K$5:$L$19,2)*IF($E$1="m",$D20,($D20*0.3048))/1000 -> 0 | M19: =VLOOKUP($D19,specs!$K$5:$L$19,2)*IF($E$1="m",$D20,($D20*0.3048))/1000 -> 0 | N19: =VLOOKUP($D19,specs!$K$5:$L$19,2)*IF($E$1="m",$D20,($D20*0.3048))/1000 -> 0 | O19: =VLOOKUP($D19,specs!$K$5:$L$19,2)*IF($E$1="m",$D20,($D20*0.3048))/1000 -> 0
C20: span length,m | D20: 0 | E20: 0 | F20: =$E21*VLOOKUP($D21,specs!$D$5:$H$17,4)/IF(F21<67,(F21/1.03),65) -> 0 | G20: =$E21*VLOOKUP($D21,specs!$D$5:$H$17,4)/IF(G21<67,(G21/1.03),65) -> 0 | H20: =$E21*VLOOKUP($D21,specs!$D$5:$H$17,4)/IF(H21<67,(H21/1.03),65) -> 0 | I20: =$E21*VLOOKUP($D21,specs!$D$5:$H$17,4)/IF(I21<67,(I21/1.03),65) -> 0 | J20: =$E21*VLOOKUP($D21,specs!$D$5:$H$17,4)/IF(J21<67,(J21/1.03),65) -> 0 | K20: =$E21*VLOOKUP($D21,specs!$D$5:$H$17,4)/IF(K21<67,(K21/1.03),65) -> 0 | L20: =$E21*VLOOKUP($D21,specs!$D$5:$H$17,4)/IF(L21<67,(L21/1.03),65) -> 0 | M20: =$E21*VLOOKUP($D21,specs!$D$5:$H$17,4)/IF(M21<67,(M21/1.03),65) -> 0 | N20: =$E21*VLOOKUP($D21,specs!$D$5:$H$17,4)/IF(N21<67,(N21/1.03),65) -> 0 | O20: =$E21*VLOOKUP($D21,specs!$D$5:$H$17,4)/IF(O21<67,(O21/1.03),65) -> 0
C21: amplifier | D21: load | E21: 0 | F21: =B2 -> 55.49642685 | G21: =F21-(F3-$B$2) -> 55.49642685 | H21: 55.49642685 | I21: 55.49642685 | J21: 55.49642685 | K21: 55.49642685 | L21: 55.49642685 | M21: 55.49642685 | N21: 55.49642685 | O21: 55.49642685
F22: =IF(F21<0,1,0) -> 0 | G22: =IF(G21<0,1,0) -> 0 | H22: 0 | I22: 0 | J22: 0 | K22: 0 | L22: 0 | M22: 0 | N22: 0 | O22: 0
C24: User added Branch
M27: =O21 -> 55.49642685
F34: Main Branch Net31

Sheet Net22 (hidden)
B1: =SUM(F22:O22) -> 0 | D1: =IF(O21<'AUX2'!B6,1,0) -> 0 | E1: =+'AUX2'!J5 -> m
B2: =+'AUX2'!M10 -> 55.49642685 | C2: U start, V | D2: =+O5*1 -> 1.414969122 | F2: 1 | G2: 2 | H2: 3 | I2: 4 | J2: 5 | K2: 6 | L2: 7 | M2: 8 | N2: 9 | O2: iteration10
E3: mult. | F3: =F6+F5*F4 -> 55.9613264 | G3: =G6+G5*G4 -> 55.50035426 | H3: 55.49646031 | I3: 55.49642714 | J3: 55.49642685 | K3: 55.49642685 | L3: 55.49642685 | M3: 55.49642685 | N3: 55.49642685 | O3: 55.49642685
C4: cable type | D4: cable | E4: 0 | F4: =VLOOKUP($D4,specs!$K$5:$L$19,2)*IF($E$1="m",$D5,($D5*0.3048))/1000 -> 0 | G4: =VLOOKUP($D4,specs!$K$5:$L$19,2)*IF($E$1="m",$D5,($D5*0.3048))/1000 -> 0 | H4: =VLOOKUP($D4,specs!$K$5:$L$19,2)*IF($E$1="m",$D5,($D5*0.3048))/1000 -> 0 | I4: =VLOOKUP($D4,specs!$K$5:$L$19,2)*IF($E$1="m",$D5,($D5*0.3048))/1000 -> 0 | J4: =VLOOKUP($D4,specs!$K$5:$L$19,2)*IF($E$1="m",$D5,($D5*0.3048))/1000 -> 0 | K4: =VLOOKUP($D4,specs!$K$5:$L$19,2)*IF($E$1="m",$D5,($D5*0.3048))/1000 -> 0 | L4: =VLOOKUP($D4,specs!$K$5:$L$19,2)*IF($E$1="m",$D5,($D5*0.3048))/1000 -> 0 | M4: =VLOOKUP($D4,specs!$K$5:$L$19,2)*IF($E$1="m",$D5,($D5*0.3048))/1000 -> 0 | N4: =VLOOKUP($D4,specs!$K$5:$L$19,2)*IF($E$1="m",$D5,($D5*0.3048))/1000 -> 0 | O4: =VLOOKUP($D4,specs!$K$5:$L$19,2)*IF($E$1="m",$D5,($D5*0.3048))/1000 -> 0
C5: span length,m | D5: 0 | E5: 0 | F5: =VLOOKUP($D6,specs!$D$5:$H$17,4)/IF(F6<67,(F6/1.03),65)*$E6+F8 -> 1.403140362 | G5: =VLOOKUP($D6,specs!$D$5:$H$17,4)/IF(G6<67,(G6/1.03),65)*$E6+G8 -> 1.414868356 | H5: =VLOOKUP($D6,specs!$D$5:$H$17,4)/IF(H6<67,(H6/1.03),65)*$E6+H8 -> 1.414968263 | I5: =VLOOKUP($D6,specs!$D$5:$H$17,4)/IF(I6<67,(I6/1.03),65)*$E6+I8 -> 1.414969114 | J5: =VLOOKUP($D6,specs!$D$5:$H$17,4)/IF(J6<67,(J6/1.03),65)*$E6+J8 -> 1.414969121 | K5: =VLOOKUP($D6,specs!$D$5:$H$17,4)/IF(K6<67,(K6/1.03),65)*$E6+K8 -> 1.414969122 | L5: =VLOOKUP($D6,specs!$D$5:$H$17,4)/IF(L6<67,(L6/1.03),65)*$E6+L8 -> 1.414969122 | M5: =VLOOKUP($D6,specs!$D$5:$H$17,4)/IF(M6<67,(M6/1.03),65)*$E6+M8 -> 1.414969122 | N5: =VLOOKUP($D6,specs!$D$5:$H$17,4)/IF(N6<67,(N6/1.03),65)*$E6+N8 -> 1.414969122 | O5: =VLOOKUP($D6,specs!$D$5:$H$17,4)/IF(O6<67,(O6/1.03),65)*$E6+O8 -> 1.414969122
C6: amplifier | D6: TNA | E6: 1 | F6: =F9+F8*F7 -> 55.9613264 | G6: =G9+G8*G7 -> 55.50035426 | H6: 55.49646031 | I6: 55.49642714 | J6: 55.49642685 | K6: 55.49642685 | L6: 55.49642685 | M6: 55.49642685 | N6: 55.49642685 | O6: 55.49642685
C7: cable type | D7: C565 | E7: 0 | F7: =VLOOKUP($D7,specs!$K$5:$L$19,2)*IF($E$1="m",$D8,($D8*0.3048))/1000 -> 0.8946 | G7: =VLOOKUP($D7,specs!$K$5:$L$19,2)*IF($E$1="m",$D8,($D8*0.3048))/1000 -> 0.8946 | H7: =VLOOKUP($D7,specs!$K$5:$L$19,2)*IF($E$1="m",$D8,($D8*0.3048))/1000 -> 0.8946 | I7: =VLOOKUP($D7,specs!$K$5:$L$19,2)*IF($E$1="m",$D8,($D8*0.3048))/1000 -> 0.8946 | J7: =VLOOKUP($D7,specs!$K$5:$L$19,2)*IF($E$1="m",$D8,($D8*0.3048))/1000 -> 0.8946 | K7: =VLOOKUP($D7,specs!$K$5:$L$19,2)*IF($E$1="m",$D8,($D8*0.3048))/1000 -> 0.8946 | L7: =VLOOKUP($D7,specs!$K$5:$L$19,2)*IF($E$1="m",$D8,($D8*0.3048))/1000 -> 0.8946 | M7: =VLOOKUP($D7,specs!$K$5:$L$19,2)*IF($E$1="m",$D8,($D8*0.3048))/1000 -> 0.8946 | N7: =VLOOKUP($D7,specs!$K$5:$L$19,2)*IF($E$1="m",$D8,($D8*0.3048))/1000 -> 0.8946 | O7: =VLOOKUP($D7,specs!$K$5:$L$19,2)*IF($E$1="m",$D8,($D8*0.3048))/1000 -> 0.8946
C8: span length,m | D8: 210 | E8: 0 | F8: =VLOOKUP($D9,specs!$D$5:$H$17,4)/IF(F9<67,(F9/1.03),65)*$E9+F11 -> 0.5196730968 | G8: =VLOOKUP($D9,specs!$D$5:$H$17,4)/IF(G9<67,(G9/1.03),65)*$E9+G11 -> 0.524063231 | H8: =VLOOKUP($D9,specs!$D$5:$H$17,4)/IF(H9<67,(H9/1.03),65)*$E9+H11 -> 0.5241006342 | I8: =VLOOKUP($D9,specs!$D$5:$H$17,4)/IF(I9<67,(I9/1.03),65)*$E9+I11 -> 0.5241009529 | J8: =VLOOKUP($D9,specs!$D$5:$H$17,4)/IF(J9<67,(J9/1.03),65)*$E9+J11 -> 0.5241009557 | K8: =VLOOKUP($D9,specs!$D$5:$H$17,4)/IF(K9<67,(K9/1.03),65)*$E9+K11 -> 0.5241009557 | L8: =VLOOKUP($D9,specs!$D$5:$H$17,4)/IF(L9<67,(L9/1.03),65)*$E9+L11 -> 0.5241009557 | M8: =VLOOKUP($D9,specs!$D$5:$H$17,4)/IF(M9<67,(M9/1.03),65)*$E9+M11 -> 0.5241009557 | N8: =VLOOKUP($D9,specs!$D$5:$H$17,4)/IF(N9<67,(N9/1.03),65)*$E9+N11 -> 0.5241009557 | O8: =VLOOKUP($D9,specs!$D$5:$H$17,4)/IF(O9<67,(O9/1.03),65)*$E9+O11 -> 0.5241009557
C9: amplifier | D9: DBLE | E9: 1 | F9: =F12+F11*F10 -> 55.49642685 | G9: =G12+G11*G10 -> 55.0315273 | H9: 55.02759988 | I9: 55.02756642 | J9: 55.02756614 | K9: 55.02756614 | L9: 55.02756614 | M9: 55.02756614 | N9: 55.02756614 | O9: 55.02756614
C10: cable type | D10: cable | E10: 0 | F10: =VLOOKUP($D10,specs!$K$5:$L$19,2)*IF($E$1="m",$D11,($D11*0.3048))/1000 -> 0 | G10: =VLOOKUP($D10,specs!$K$5:$L$19,2)*IF($E$1="m",$D11,($D11*0.3048))/1000 -> 0 | H10: =VLOOKUP($D10,specs!$K$5:$L$19,2)*IF($E$1="m",$D11,($D11*0.3048))/1000 -> 0 | I10: =VLOOKUP($D10,specs!$K$5:$L$19,2)*IF($E$1="m",$D11,($D11*0.3048))/1000 -> 0 | J10: =VLOOKUP($D10,specs!$K$5:$L$19,2)*IF($E$1="m",$D11,($D11*0.3048))/1000 -> 0 | K10: =VLOOKUP($D10,specs!$K$5:$L$19,2)*IF($E$1="m",$D11,($D11*0.3048))/1000 -> 0 | L10: =VLOOKUP($D10,specs!$K$5:$L$19,2)*IF($E$1="m",$D11,($D11*0.3048))/1000 -> 0 | M10: =VLOOKUP($D10,specs!$K$5:$L$19,2)*IF($E$1="m",$D11,($D11*0.3048))/1000 -> 0 | N10: =VLOOKUP($D10,specs!$K$5:$L$19,2)*IF($E$1="m",$D11,($D11*0.3048))/1000 -> 0 | O10: =VLOOKUP($D10,specs!$K$5:$L$19,2)*IF($E$1="m",$D11,($D11*0.3048))/1000 -> 0
C11: span length,m | D11: 0 | E11: 0 | F11: =VLOOKUP($D12,specs!$D$5:$H$17,4)/IF(F12<67,(F12/1.03),65)*$E12+F14 -> 0 | G11: =VLOOKUP($D12,specs!$D$5:$H$17,4)/IF(G12<67,(G12/1.03),65)*$E12+G14 -> 0 | H11: =VLOOKUP($D12,specs!$D$5:$H$17,4)/IF(H12<67,(H12/1.03),65)*$E12+H14 -> 0 | I11: =VLOOKUP($D12,specs!$D$5:$H$17,4)/IF(I12<67,(I12/1.03),65)*$E12+I14 -> 0 | J11: =VLOOKUP($D12,specs!$D$5:$H$17,4)/IF(J12<67,(J12/1.03),65)*$E12+J14 -> 0 | K11: =VLOOKUP($D12,specs!$D$5:$H$17,4)/IF(K12<67,(K12/1.03),65)*$E12+K14 -> 0 | L11: =VLOOKUP($D12,specs!$D$5:$H$17,4)/IF(L12<67,(L12/1.03),65)*$E12+L14 -> 0 | M11: =VLOOKUP($D12,specs!$D$5:$H$17,4)/IF(M12<67,(M12/1.03),65)*$E12+M14 -> 0 | N11: =VLOOKUP($D12,specs!$D$5:$H$17,4)/IF(N12<67,(N12/1.03),65)*$E12+N14 -> 0 | O11: =VLOOKUP($D12,specs!$D$5:$H$17,4)/IF(O12<67,(O12/1.03),65)*$E12+O14 -> 0
C12: amplifier | D12: load | E12: 0 | F12: =F15+F14*F13 -> 55.49642685 | G12: =G15+G14*G13 -> 55.0315273 | H12: 55.02759988 | I12: 55.02756642 | J12: 55.02756614 | K12: 55.02756614 | L12: 55.02756614 | M12: 55.02756614 | N12: 55.02756614 | O12: 55.02756614
C13: cable type | D13: cable | E13: 0 | F13: =VLOOKUP($D13,specs!$K$5:$L$19,2)*IF($E$1="m",$D14,($D14*0.3048))/1000 -> 0 | G13: =VLOOKUP($D13,specs!$K$5:$L$19,2)*IF($E$1="m",$D14,($D14*0.3048))/1000 -> 0 | H13: =VLOOKUP($D13,specs!$K$5:$L$19,2)*IF($E$1="m",$D14,($D14*0.3048))/1000 -> 0 | I13: =VLOOKUP($D13,specs!$K$5:$L$19,2)*IF($E$1="m",$D14,($D14*0.3048))/1000 -> 0 | J13: =VLOOKUP($D13,specs!$K$5:$L$19,2)*IF($E$1="m",$D14,($D14*0.3048))/1000 -> 0 | K13: =VLOOKUP($D13,specs!$K$5:$L$19,2)*IF($E$1="m",$D14,($D14*0.3048))/1000 -> 0 | L13: =VLOOKUP($D13,specs!$K$5:$L$19,2)*IF($E$1="m",$D14,($D14*0.3048))/1000 -> 0 | M13: =VLOOKUP($D13,specs!$K$5:$L$19,2)*IF($E$1="m",$D14,($D14*0.3048))/1000 -> 0 | N13: =VLOOKUP($D13,specs!$K$5:$L$19,2)*IF($E$1="m",$D14,($D14*0.3048))/1000 -> 0 | O13: =VLOOKUP($D13,specs!$K$5:$L$19,2)*IF($E$1="m",$D14,($D14*0.3048))/1000 -> 0
C14: span length,m | D14: 0 | E14: 0 | F14: =VLOOKUP($D15,specs!$D$5:$H$17,4)/IF(F15<67,(F15/1.03),65)*$E15+F17 -> 0 | G14: =VLOOKUP($D15,specs!$D$5:$H$17,4)/IF(G15<67,(G15/1.03),65)*$E15+G17 -> 0 | H14: =VLOOKUP($D15,specs!$D$5:$H$17,4)/IF(H15<67,(H15/1.03),65)*$E15+H17 -> 0 | I14: =VLOOKUP($D15,specs!$D$5:$H$17,4)/IF(I15<67,(I15/1.03),65)*$E15+I17 -> 0 | J14: =VLOOKUP($D15,specs!$D$5:$H$17,4)/IF(J15<67,(J15/1.03),65)*$E15+J17 -> 0 | K14: =VLOOKUP($D15,specs!$D$5:$H$17,4)/IF(K15<67,(K15/1.03),65)*$E15+K17 -> 0 | L14: =VLOOKUP($D15,specs!$D$5:$H$17,4)/IF(L15<67,(L15/1.03),65)*$E15+L17 -> 0 | M14: =VLOOKUP($D15,specs!$D$5:$H$17,4)/IF(M15<67,(M15/1.03),65)*$E15+M17 -> 0 | N14: =VLOOKUP($D15,specs!$D$5:$H$17,4)/IF(N15<67,(N15/1.03),65)*$E15+N17 -> 0 | O14: =VLOOKUP($D15,specs!$D$5:$H$17,4)/IF(O15<67,(O15/1.03),65)*$E15+O17 -> 0
C15: amplifier | D15: load | E15: 0 | F15: =F18+F17*F16 -> 55.49642685 | G15: =G18+G17*G16 -> 55.0315273 | H15: 55.02759988 | I15: 55.02756642 | J15: 55.02756614 | K15: 55.02756614 | L15: 55.02756614 | M15: 55.02756614 | N15: 55.02756614 | O15: 55.02756614
C16: cable type | D16: cable | E16: 0 | F16: =VLOOKUP($D16,specs!$K$5:$L$19,2)*IF($E$1="m",$D17,($D17*0.3048))/1000 -> 0 | G16: =VLOOKUP($D16,specs!$K$5:$L$19,2)*IF($E$1="m",$D17,($D17*0.3048))/1000 -> 0 | H16: =VLOOKUP($D16,specs!$K$5:$L$19,2)*IF($E$1="m",$D17,($D17*0.3048))/1000 -> 0 | I16: =VLOOKUP($D16,specs!$K$5:$L$19,2)*IF($E$1="m",$D17,($D17*0.3048))/1000 -> 0 | J16: =VLOOKUP($D16,specs!$K$5:$L$19,2)*IF($E$1="m",$D17,($D17*0.3048))/1000 -> 0 | K16: =VLOOKUP($D16,specs!$K$5:$L$19,2)*IF($E$1="m",$D17,($D17*0.3048))/1000 -> 0 | L16: =VLOOKUP($D16,specs!$K$5:$L$19,2)*IF($E$1="m",$D17,($D17*0.3048))/1000 -> 0 | M16: =VLOOKUP($D16,specs!$K$5:$L$19,2)*IF($E$1="m",$D17,($D17*0.3048))/1000 -> 0 | N16: =VLOOKUP($D16,specs!$K$5:$L$19,2)*IF($E$1="m",$D17,($D17*0.3048))/1000 -> 0 | O16: =VLOOKUP($D16,specs!$K$5:$L$19,2)*IF($E$1="m",$D17,($D17*0.3048))/1000 -> 0
C17: span length,m | D17: 0 | E17: 0 | F17: =VLOOKUP($D18,specs!$D$5:$H$17,4)/IF(F18<67,(F18/1.03),65)*$E18+F20 -> 0 | G17: =VLOOKUP($D18,specs!$D$5:$H$17,4)/IF(G18<67,(G18/1.03),65)*$E18+G20 -> 0 | H17: =VLOOKUP($D18,specs!$D$5:$H$17,4)/IF(H18<67,(H18/1.03),65)*$E18+H20 -> 0 | I17: =VLOOKUP($D18,specs!$D$5:$H$17,4)/IF(I18<67,(I18/1.03),65)*$E18+I20 -> 0 | J17: =VLOOKUP($D18,specs!$D$5:$H$17,4)/IF(J18<67,(J18/1.03),65)*$E18+J20 -> 0 | K17: =VLOOKUP($D18,specs!$D$5:$H$17,4)/IF(K18<67,(K18/1.03),65)*$E18+K20 -> 0 | L17: =VLOOKUP($D18,specs!$D$5:$H$17,4)/IF(L18<67,(L18/1.03),65)*$E18+L20 -> 0 | M17: =VLOOKUP($D18,specs!$D$5:$H$17,4)/IF(M18<67,(M18/1.03),65)*$E18+M20 -> 0 | N17: =VLOOKUP($D18,specs!$D$5:$H$17,4)/IF(N18<67,(N18/1.03),65)*$E18+N20 -> 0 | O17: =VLOOKUP($D18,specs!$D$5:$H$17,4)/IF(O18<67,(O18/1.03),65)*$E18+O20 -> 0
C18: amplifier | D18: load | E18: 0 | F18: =F21+F20*F19 -> 55.49642685 | G18: =G21+G20*G19 -> 55.0315273 | H18: 55.02759988 | I18: 55.02756642 | J18: 55.02756614 | K18: 55.02756614 | L18: 55.02756614 | M18: 55.02756614 | N18: 55.02756614 | O18: 55.02756614
C19: cable type | D19: cable | E19: 0 | F19: =VLOOKUP($D19,specs!$K$5:$L$19,2)*IF($E$1="m",$D20,($D20*0.3048))/1000 -> 0 | G19: =VLOOKUP($D19,specs!$K$5:$L$19,2)*IF($E$1="m",$D20,($D20*0.3048))/1000 -> 0 | H19: =VLOOKUP($D19,specs!$K$5:$L$19,2)*IF($E$1="m",$D20,($D20*0.3048))/1000 -> 0 | I19: =VLOOKUP($D19,specs!$K$5:$L$19,2)*IF($E$1="m",$D20,($D20*0.3048))/1000 -> 0 | J19: =VLOOKUP($D19,specs!$K$5:$L$19,2)*IF($E$1="m",$D20,($D20*0.3048))/1000 -> 0 | K19: =VLOOKUP($D19,specs!$K$5:$L$19,2)*IF($E$1="m",$D20,($D20*0.3048))/1000 -> 0 | L19: =VLOOKUP($D19,specs!$K$5:$L$19,2)*IF($E$1="m",$D20,($D20*0.3048))/1000 -> 0 | M19: =VLOOKUP($D19,specs!$K$5:$L$19,2)*IF($E$1="m",$D20,($D20*0.3048))/1000 -> 0 | N19: =VLOOKUP($D19,specs!$K$5:$L$19,2)*IF($E$1="m",$D20,($D20*0.3048))/1000 -> 0 | O19: =VLOOKUP($D19,specs!$K$5:$L$19,2)*IF($E$1="m",$D20,($D20*0.3048))/1000 -> 0
C20: span length,m | D20: 0 | E20: 0 | F20: =$E21*VLOOKUP($D21,specs!$D$5:$H$17,4)/IF(F21<67,(F21/1.03),65) -> 0 | G20: =$E21*VLOOKUP($D21,specs!$D$5:$H$17,4)/IF(G21<67,(G21/1.03),65) -> 0 | H20: =$E21*VLOOKUP($D21,specs!$D$5:$H$17,4)/IF(H21<67,(H21/1.03),65) -> 0 | I20: =$E21*VLOOKUP($D21,specs!$D$5:$H$17,4)/IF(I21<67,(I21/1.03),65) -> 0 | J20: =$E21*VLOOKUP($D21,specs!$D$5:$H$17,4)/IF(J21<67,(J21/1.03),65) -> 0 | K20: =$E21*VLOOKUP($D21,specs!$D$5:$H$17,4)/IF(K21<67,(K21/1.03),65) -> 0 | L20: =$E21*VLOOKUP($D21,specs!$D$5:$H$17,4)/IF(L21<67,(L21/1.03),65) -> 0 | M20: =$E21*VLOOKUP($D21,specs!$D$5:$H$17,4)/IF(M21<67,(M21/1.03),65) -> 0 | N20: =$E21*VLOOKUP($D21,specs!$D$5:$H$17,4)/IF(N21<67,(N21/1.03),65) -> 0 | O20: =$E21*VLOOKUP($D21,specs!$D$5:$H$17,4)/IF(O21<67,(O21/1.03),65) -> 0
C21: amplifier | D21: load | E21: 0 | F21: =B2 -> 55.49642685 | G21: =F21-(F3-$B$2) -> 55.0315273 | H21: 55.02759988 | I21: 55.02756642 | J21: 55.02756614 | K21: 55.02756614 | L21: 55.02756614 | M21: 55.02756614 | N21: 55.02756614 | O21: 55.02756614
F22: =IF(F21<0,1,0) -> 0 | G22: =IF(G21<0,1,0) -> 0 | H22: 0 | I22: 0 | J22: 0 | K22: 0 | L22: 0 | M22: 0 | N22: 0 | O22: 0
C24: User added Branch
M27: =O21 -> 55.02756614
F34: Main Branch Net22

Sheet Net21 (hidden)
B1: =SUM(F22:O22) -> 0 | D1: =IF(O21<'AUX2'!B6,1,0) -> 0 | E1: =+'AUX2'!J5 -> m
B2: =+'AUX2'!M9 -> 54.8593704 | C2: U start, V | D2: =+O5*1 -> 2.769329846 | F2: 1 | G2: 2 | H2: 3 | I2: 4 | J2: 5 | K2: 6 | L2: 7 | M2: 8 | N2: 9 | O2: iteration10
E3: mult. | F3: =F6+F5*F4 -> 58.39960991 | G3: =G6+G5*G4 -> 55.10082762 | H3: 54.87703697 | I3: 54.86066944 | J3: 54.85946595 | K3: 54.85937743 | L3: 54.85937092 | M3: 54.85937044 | N3: 54.8593704 | O3: 54.8593704
C4: cable type | D4: cable | E4: 0 | F4: =VLOOKUP($D4,specs!$K$5:$L$19,2)*IF($E$1="m",$D5,($D5*0.3048))/1000 -> 0 | G4: =VLOOKUP($D4,specs!$K$5:$L$19,2)*IF($E$1="m",$D5,($D5*0.3048))/1000 -> 0 | H4: =VLOOKUP($D4,specs!$K$5:$L$19,2)*IF($E$1="m",$D5,($D5*0.3048))/1000 -> 0 | I4: =VLOOKUP($D4,specs!$K$5:$L$19,2)*IF($E$1="m",$D5,($D5*0.3048))/1000 -> 0 | J4: =VLOOKUP($D4,specs!$K$5:$L$19,2)*IF($E$1="m",$D5,($D5*0.3048))/1000 -> 0 | K4: =VLOOKUP($D4,specs!$K$5:$L$19,2)*IF($E$1="m",$D5,($D5*0.3048))/1000 -> 0 | L4: =VLOOKUP($D4,specs!$K$5:$L$19,2)*IF($E$1="m",$D5,($D5*0.3048))/1000 -> 0 | M4: =VLOOKUP($D4,specs!$K$5:$L$19,2)*IF($E$1="m",$D5,($D5*0.3048))/1000 -> 0 | N4: =VLOOKUP($D4,specs!$K$5:$L$19,2)*IF($E$1="m",$D5,($D5*0.3048))/1000 -> 0 | O4: =VLOOKUP($D4,specs!$K$5:$L$19,2)*IF($E$1="m",$D5,($D5*0.3048))/1000 -> 0
C5: span length,m | D5: 0 | E5: 0 | F5: =VLOOKUP($D6,specs!$D$5:$H$17,4)/IF(F6<67,(F6/1.03),65)*$E6+F8 -> 2.583956698 | G5: =VLOOKUP($D6,specs!$D$5:$H$17,4)/IF(G6<67,(G6/1.03),65)*$E6+G8 -> 2.755792833 | H5: =VLOOKUP($D6,specs!$D$5:$H$17,4)/IF(H6<67,(H6/1.03),65)*$E6+H8 -> 2.768334595 | I5: =VLOOKUP($D6,specs!$D$5:$H$17,4)/IF(I6<67,(I6/1.03),65)*$E6+I8 -> 2.769256638 | J5: =VLOOKUP($D6,specs!$D$5:$H$17,4)/IF(J6<67,(J6/1.03),65)*$E6+J8 -> 2.769324461 | K5: =VLOOKUP($D6,specs!$D$5:$H$17,4)/IF(K6<67,(K6/1.03),65)*$E6+K8 -> 2.76932945 | L5: =VLOOKUP($D6,specs!$D$5:$H$17,4)/IF(L6<67,(L6/1.03),65)*$E6+L8 -> 2.769329817 | M5: =VLOOKUP($D6,specs!$D$5:$H$17,4)/IF(M6<67,(M6/1.03),65)*$E6+M8 -> 2.769329844 | N5: =VLOOKUP($D6,specs!$D$5:$H$17,4)/IF(N6<67,(N6/1.03),65)*$E6+N8 -> 2.769329846 | O5: =VLOOKUP($D6,specs!$D$5:$H$17,4)/IF(O6<67,(O6/1.03),65)*$E6+O8 -> 2.769329846
C6: amplifier | D6: DBLE | E6: 1 | F6: =F9+F8*F7 -> 58.39960991 | G6: =G9+G8*G7 -> 55.10082762 | H6: 54.87703697 | I6: 54.86066944 | J6: 54.85946595 | K6: 54.85937743 | L6: 54.85937092 | M6: 54.85937044 | N6: 54.8593704 | O6: 54.8593704
C7: cable type | D7: C565 | E7: 0 | F7: =VLOOKUP($D7,specs!$K$5:$L$19,2)*IF($E$1="m",$D8,($D8*0.3048))/1000 -> 1.40154 | G7: =VLOOKUP($D7,specs!$K$5:$L$19,2)*IF($E$1="m",$D8,($D8*0.3048))/1000 -> 1.40154 | H7: =VLOOKUP($D7,specs!$K$5:$L$19,2)*IF($E$1="m",$D8,($D8*0.3048))/1000 -> 1.40154 | I7: =VLOOKUP($D7,specs!$K$5:$L$19,2)*IF($E$1="m",$D8,($D8*0.3048))/1000 -> 1.40154 | J7: =VLOOKUP($D7,specs!$K$5:$L$19,2)*IF($E$1="m",$D8,($D8*0.3048))/1000 -> 1.40154 | K7: =VLOOKUP($D7,specs!$K$5:$L$19,2)*IF($E$1="m",$D8,($D8*0.3048))/1000 -> 1.40154 | L7: =VLOOKUP($D7,specs!$K$5:$L$19,2)*IF($E$1="m",$D8,($D8*0.3048))/1000 -> 1.40154 | M7: =VLOOKUP($D7,specs!$K$5:$L$19,2)*IF($E$1="m",$D8,($D8*0.3048))/1000 -> 1.40154 | N7: =VLOOKUP($D7,specs!$K$5:$L$19,2)*IF($E$1="m",$D8,($D8*0.3048))/1000 -> 1.40154 | O7: =VLOOKUP($D7,specs!$K$5:$L$19,2)*IF($E$1="m",$D8,($D8*0.3048))/1000 -> 1.40154
C8: span length,m | D8: 329 | E8: 0 | F8: =VLOOKUP($D9,specs!$D$5:$H$17,4)/IF(F9<67,(F9/1.03),65)*$E9+F11 -> 2.090117783 | G8: =VLOOKUP($D9,specs!$D$5:$H$17,4)/IF(G9<67,(G9/1.03),65)*$E9+G11 -> 2.232388716 | H8: =VLOOKUP($D9,specs!$D$5:$H$17,4)/IF(H9<67,(H9/1.03),65)*$E9+H11 -> 2.242796017 | I8: =VLOOKUP($D9,specs!$D$5:$H$17,4)/IF(I9<67,(I9/1.03),65)*$E9+I11 -> 2.243561267 | J8: =VLOOKUP($D9,specs!$D$5:$H$17,4)/IF(J9<67,(J9/1.03),65)*$E9+J11 -> 2.243617557 | K8: =VLOOKUP($D9,specs!$D$5:$H$17,4)/IF(K9<67,(K9/1.03),65)*$E9+K11 -> 2.243621698 | L8: =VLOOKUP($D9,specs!$D$5:$H$17,4)/IF(L9<67,(L9/1.03),65)*$E9+L11 -> 2.243622002 | M8: =VLOOKUP($D9,specs!$D$5:$H$17,4)/IF(M9<67,(M9/1.03),65)*$E9+M11 -> 2.243622025 | N8: =VLOOKUP($D9,specs!$D$5:$H$17,4)/IF(N9<67,(N9/1.03),65)*$E9+N11 -> 2.243622026 | O8: =VLOOKUP($D9,specs!$D$5:$H$17,4)/IF(O9<67,(O9/1.03),65)*$E9+O11 -> 2.243622026
C9: amplifier | D9: DBLE | E9: 2 | F9: =F12+F11*F10 -> 55.47022623 | G9: =G12+G11*G10 -> 51.97204554 | H9: 51.73366864 | I9: 51.71622859 | J9: 51.7149462 | K9: 51.71485187 | L9: 51.71484493 | M9: 51.71484442 | N9: 51.71484439 | O9: 51.71484438
C10: cable type | D10: C565 | E10: 0 | F10: =VLOOKUP($D10,specs!$K$5:$L$19,2)*IF($E$1="m",$D11,($D11*0.3048))/1000 -> 0.4686 | G10: =VLOOKUP($D10,specs!$K$5:$L$19,2)*IF($E$1="m",$D11,($D11*0.3048))/1000 -> 0.4686 | H10: =VLOOKUP($D10,specs!$K$5:$L$19,2)*IF($E$1="m",$D11,($D11*0.3048))/1000 -> 0.4686 | I10: =VLOOKUP($D10,specs!$K$5:$L$19,2)*IF($E$1="m",$D11,($D11*0.3048))/1000 -> 0.4686 | J10: =VLOOKUP($D10,specs!$K$5:$L$19,2)*IF($E$1="m",$D11,($D11*0.3048))/1000 -> 0.4686 | K10: =VLOOKUP($D10,specs!$K$5:$L$19,2)*IF($E$1="m",$D11,($D11*0.3048))/1000 -> 0.4686 | L10: =VLOOKUP($D10,specs!$K$5:$L$19,2)*IF($E$1="m",$D11,($D11*0.3048))/1000 -> 0.4686 | M10: =VLOOKUP($D10,specs!$K$5:$L$19,2)*IF($E$1="m",$D11,($D11*0.3048))/1000 -> 0.4686 | N10: =VLOOKUP($D10,specs!$K$5:$L$19,2)*IF($E$1="m",$D11,($D11*0.3048))/1000 -> 0.4686 | O10: =VLOOKUP($D10,specs!$K$5:$L$19,2)*IF($E$1="m",$D11,($D11*0.3048))/1000 -> 0.4686
C11: span length,m | D11: 110 | E11: 0 | F11: =VLOOKUP($D12,specs!$D$5:$H$17,4)/IF(F12<67,(F12/1.03),65)*$E12+F14 -> 1.050280668 | G11: =VLOOKUP($D12,specs!$D$5:$H$17,4)/IF(G12<67,(G12/1.03),65)*$E12+G14 -> 1.122561319 | H11: =VLOOKUP($D12,specs!$D$5:$H$17,4)/IF(H12<67,(H12/1.03),65)*$E12+H14 -> 1.12785479 | I11: =VLOOKUP($D12,specs!$D$5:$H$17,4)/IF(I12<67,(I12/1.03),65)*$E12+I14 -> 1.128244052 | J11: =VLOOKUP($D12,specs!$D$5:$H$17,4)/IF(J12<67,(J12/1.03),65)*$E12+J14 -> 1.128272686 | K11: =VLOOKUP($D12,specs!$D$5:$H$17,4)/IF(K12<67,(K12/1.03),65)*$E12+K14 -> 1.128274792 | L11: =VLOOKUP($D12,specs!$D$5:$H$17,4)/IF(L12<67,(L12/1.03),65)*$E12+L14 -> 1.128274947 | M11: =VLOOKUP($D12,specs!$D$5:$H$17,4)/IF(M12<67,(M12/1.03),65)*$E12+M14 -> 1.128274958 | N11: =VLOOKUP($D12,specs!$D$5:$H$17,4)/IF(N12<67,(N12/1.03),65)*$E12+N14 -> 1.128274959 | O11: =VLOOKUP($D12,specs!$D$5:$H$17,4)/IF(O12<67,(O12/1.03),65)*$E12+O14 -> 1.128274959
C12: amplifier | D12: DBLE | E12: 1 | F12: =F15+F14*F13 -> 54.97806471 | G12: =G15+G14*G13 -> 51.4460133 | H12: 51.20515589 | I12: 51.18753342 | J12: 51.18623762 | K12: 51.18614231 | L12: 51.18613529 | M12: 51.18613478 | N12: 51.18613474 | O12: 51.18613474
C13: cable type | D13: C565 | E13: 0 | F13: =VLOOKUP($D13,specs!$K$5:$L$19,2)*IF($E$1="m",$D14,($D14*0.3048))/1000 -> 0.22578 | G13: =VLOOKUP($D13,specs!$K$5:$L$19,2)*IF($E$1="m",$D14,($D14*0.3048))/1000 -> 0.22578 | H13: =VLOOKUP($D13,specs!$K$5:$L$19,2)*IF($E$1="m",$D14,($D14*0.3048))/1000 -> 0.22578 | I13: =VLOOKUP($D13,specs!$K$5:$L$19,2)*IF($E$1="m",$D14,($D14*0.3048))/1000 -> 0.22578 | J13: =VLOOKUP($D13,specs!$K$5:$L$19,2)*IF($E$1="m",$D14,($D14*0.3048))/1000 -> 0.22578 | K13: =VLOOKUP($D13,specs!$K$5:$L$19,2)*IF($E$1="m",$D14,($D14*0.3048))/1000 -> 0.22578 | L13: =VLOOKUP($D13,specs!$K$5:$L$19,2)*IF($E$1="m",$D14,($D14*0.3048))/1000 -> 0.22578 | M13: =VLOOKUP($D13,specs!$K$5:$L$19,2)*IF($E$1="m",$D14,($D14*0.3048))/1000 -> 0.22578 | N13: =VLOOKUP($D13,specs!$K$5:$L$19,2)*IF($E$1="m",$D14,($D14*0.3048))/1000 -> 0.22578 | O13: =VLOOKUP($D13,specs!$K$5:$L$19,2)*IF($E$1="m",$D14,($D14*0.3048))/1000 -> 0.22578
C14: span length,m | D14: 53 | E14: 0 | F14: =VLOOKUP($D15,specs!$D$5:$H$17,4)/IF(F15<67,(F15/1.03),65)*$E15+F17 -> 0.5257078197 | G14: =VLOOKUP($D15,specs!$D$5:$H$17,4)/IF(G15<67,(G15/1.03),65)*$E15+G17 -> 0.5619736636 | H14: =VLOOKUP($D15,specs!$D$5:$H$17,4)/IF(H15<67,(H15/1.03),65)*$E15+H17 -> 0.5646302568 | I14: =VLOOKUP($D15,specs!$D$5:$H$17,4)/IF(I15<67,(I15/1.03),65)*$E15+I17 -> 0.5648256168 | J14: =VLOOKUP($D15,specs!$D$5:$H$17,4)/IF(J15<67,(J15/1.03),65)*$E15+J17 -> 0.5648399872 | K14: =VLOOKUP($D15,specs!$D$5:$H$17,4)/IF(K15<67,(K15/1.03),65)*$E15+K17 -> 0.5648410443 | L14: =VLOOKUP($D15,specs!$D$5:$H$17,4)/IF(L15<67,(L15/1.03),65)*$E15+L17 -> 0.564841122 | M14: =VLOOKUP($D15,specs!$D$5:$H$17,4)/IF(M15<67,(M15/1.03),65)*$E15+M17 -> 0.5648411277 | N14: =VLOOKUP($D15,specs!$D$5:$H$17,4)/IF(N15<67,(N15/1.03),65)*$E15+N17 -> 0.5648411282 | O14: =VLOOKUP($D15,specs!$D$5:$H$17,4)/IF(O15<67,(O15/1.03),65)*$E15+O17 -> 0.5648411282
C15: amplifier | D15: DBLE | E15: 1 | F15: =F18+F17*F16 -> 54.8593704 | G15: =G18+G17*G16 -> 51.31913089 | H15: 51.07767367 | I15: 51.0600071 | J15: 51.05870805 | K15: 51.0586125 | L15: 51.05860547 | M15: 51.05860495 | N15: 51.05860491 | O15: 51.05860491
C16: cable type | D16: cable | E16: 0 | F16: =VLOOKUP($D16,specs!$K$5:$L$19,2)*IF($E$1="m",$D17,($D17*0.3048))/1000 -> 0 | G16: =VLOOKUP($D16,specs!$K$5:$L$19,2)*IF($E$1="m",$D17,($D17*0.3048))/1000 -> 0 | H16: =VLOOKUP($D16,specs!$K$5:$L$19,2)*IF($E$1="m",$D17,($D17*0.3048))/1000 -> 0 | I16: =VLOOKUP($D16,specs!$K$5:$L$19,2)*IF($E$1="m",$D17,($D17*0.3048))/1000 -> 0 | J16: =VLOOKUP($D16,specs!$K$5:$L$19,2)*IF($E$1="m",$D17,($D17*0.3048))/1000 -> 0 | K16: =VLOOKUP($D16,specs!$K$5:$L$19,2)*IF($E$1="m",$D17,($D17*0.3048))/1000 -> 0 | L16: =VLOOKUP($D16,specs!$K$5:$L$19,2)*IF($E$1="m",$D17,($D17*0.3048))/1000 -> 0 | M16: =VLOOKUP($D16,specs!$K$5:$L$19,2)*IF($E$1="m",$D17,($D17*0.3048))/1000 -> 0 | N16: =VLOOKUP($D16,specs!$K$5:$L$19,2)*IF($E$1="m",$D17,($D17*0.3048))/1000 -> 0 | O16: =VLOOKUP($D16,specs!$K$5:$L$19,2)*IF($E$1="m",$D17,($D17*0.3048))/1000 -> 0
C17: span length,m | D17: 0 | E17: 0 | F17: =VLOOKUP($D18,specs!$D$5:$H$17,4)/IF(F18<67,(F18/1.03),65)*$E18+F20 -> 0 | G17: =VLOOKUP($D18,specs!$D$5:$H$17,4)/IF(G18<67,(G18/1.03),65)*$E18+G20 -> 0 | H17: =VLOOKUP($D18,specs!$D$5:$H$17,4)/IF(H18<67,(H18/1.03),65)*$E18+H20 -> 0 | I17: =VLOOKUP($D18,specs!$D$5:$H$17,4)/IF(I18<67,(I18/1.03),65)*$E18+I20 -> 0 | J17: =VLOOKUP($D18,specs!$D$5:$H$17,4)/IF(J18<67,(J18/1.03),65)*$E18+J20 -> 0 | K17: =VLOOKUP($D18,specs!$D$5:$H$17,4)/IF(K18<67,(K18/1.03),65)*$E18+K20 -> 0 | L17: =VLOOKUP($D18,specs!$D$5:$H$17,4)/IF(L18<67,(L18/1.03),65)*$E18+L20 -> 0 | M17: =VLOOKUP($D18,specs!$D$5:$H$17,4)/IF(M18<67,(M18/1.03),65)*$E18+M20 -> 0 | N17: =VLOOKUP($D18,specs!$D$5:$H$17,4)/IF(N18<67,(N18/1.03),65)*$E18+N20 -> 0 | O17: =VLOOKUP($D18,specs!$D$5:$H$17,4)/IF(O18<67,(O18/1.03),65)*$E18+O20 -> 0
C18: amplifier | D18: load | E18: 0 | F18: =F21+F20*F19 -> 54.8593704 | G18: =G21+G20*G19 -> 51.31913089 | H18: 51.07767367 | I18: 51.0600071 | J18: 51.05870805 | K18: 51.0586125 | L18: 51.05860547 | M18: 51.05860495 | N18: 51.05860491 | O18: 51.05860491
C19: cable type | D19: cable | E19: 0 | F19: =VLOOKUP($D19,specs!$K$5:$L$19,2)*IF($E$1="m",$D20,($D20*0.3048))/1000 -> 0 | G19: =VLOOKUP($D19,specs!$K$5:$L$19,2)*IF($E$1="m",$D20,($D20*0.3048))/1000 -> 0 | H19: =VLOOKUP($D19,specs!$K$5:$L$19,2)*IF($E$1="m",$D20,($D20*0.3048))/1000 -> 0 | I19: =VLOOKUP($D19,specs!$K$5:$L$19,2)*IF($E$1="m",$D20,($D20*0.3048))/1000 -> 0 | J19: =VLOOKUP($D19,specs!$K$5:$L$19,2)*IF($E$1="m",$D20,($D20*0.3048))/1000 -> 0 | K19: =VLOOKUP($D19,specs!$K$5:$L$19,2)*IF($E$1="m",$D20,($D20*0.3048))/1000 -> 0 | L19: =VLOOKUP($D19,specs!$K$5:$L$19,2)*IF($E$1="m",$D20,($D20*0.3048))/1000 -> 0 | M19: =VLOOKUP($D19,specs!$K$5:$L$19,2)*IF($E$1="m",$D20,($D20*0.3048))/1000 -> 0 | N19: =VLOOKUP($D19,specs!$K$5:$L$19,2)*IF($E$1="m",$D20,($D20*0.3048))/1000 -> 0 | O19: =VLOOKUP($D19,specs!$K$5:$L$19,2)*IF($E$1="m",$D20,($D20*0.3048))/1000 -> 0
C20: span length,m | D20: 0 | E20: 0 | F20: =$E21*VLOOKUP($D21,specs!$D$5:$H$17,4)/IF(F21<67,(F21/1.03),65) -> 0 | G20: =$E21*VLOOKUP($D21,specs!$D$5:$H$17,4)/IF(G21<67,(G21/1.03),65) -> 0 | H20: =$E21*VLOOKUP($D21,specs!$D$5:$H$17,4)/IF(H21<67,(H21/1.03),65) -> 0 | I20: =$E21*VLOOKUP($D21,specs!$D$5:$H$17,4)/IF(I21<67,(I21/1.03),65) -> 0 | J20: =$E21*VLOOKUP($D21,specs!$D$5:$H$17,4)/IF(J21<67,(J21/1.03),65) -> 0 | K20: =$E21*VLOOKUP($D21,specs!$D$5:$H$17,4)/IF(K21<67,(K21/1.03),65) -> 0 | L20: =$E21*VLOOKUP($D21,specs!$D$5:$H$17,4)/IF(L21<67,(L21/1.03),65) -> 0 | M20: =$E21*VLOOKUP($D21,specs!$D$5:$H$17,4)/IF(M21<67,(M21/1.03),65) -> 0 | N20: =$E21*VLOOKUP($D21,specs!$D$5:$H$17,4)/IF(N21<67,(N21/1.03),65) -> 0 | O20: =$E21*VLOOKUP($D21,specs!$D$5:$H$17,4)/IF(O21<67,(O21/1.03),65) -> 0
C21: amplifier | D21: load | E21: 0 | F21: =B2 -> 54.8593704 | G21: =F21-(F3-$B$2) -> 51.31913089 | H21: 51.07767367 | I21: 51.0600071 | J21: 51.05870805 | K21: 51.0586125 | L21: 51.05860547 | M21: 51.05860495 | N21: 51.05860491 | O21: 51.05860491
F22: =IF(F21<0,1,0) -> 0 | G22: =IF(G21<0,1,0) -> 0 | H22: 0 | I22: 0 | J22: 0 | K22: 0 | L22: 0 | M22: 0 | N22: 0 | O22: 0
C24: User added Branch
M27: =O21 -> 51.05860491
F34: Main Branch Net21

Sheet Net12 (hidden)
B1: =SUM(F22:O22) -> 0 | D1: =IF(O21<'AUX2'!B6,1,0)+'Net12 (2)'!D1 -> 0 | E1: =+'AUX2'!J5 -> m
B2: =+'AUX2'!M8 -> 47.09811896 | C2: U start, V | D2: =+O5*1+'Net12 (2)'!D2 -> 4.776390065 | F2: 1 | G2: 2 | H2: 3 | I2: 4 | J2: 5 | K2: 6 | L2: 7 | M2: 8 | N2: 9 | O2: iteration10
E3: mult. | F3: =F6+F5*F4 -> 48.39589498 | G3: =G6+G5*G4 -> 47.13451271 | H3: 47.09916885 | I3: 47.09814927 | J3: 47.09811983 | K3: 47.09811898 | L3: 47.09811896 | M3: 47.09811896 | N3: 47.09811896 | O3: 47.09811896
C4: cable type | D4: cable | E4: 0 | F4: =VLOOKUP($D4,specs!$K$5:$L$19,2)*IF($E$1="m",$D5,($D5*0.3048))/1000 -> 0 | G4: =VLOOKUP($D4,specs!$K$5:$L$19,2)*IF($E$1="m",$D5,($D5*0.3048))/1000 -> 0 | H4: =VLOOKUP($D4,specs!$K$5:$L$19,2)*IF($E$1="m",$D5,($D5*0.3048))/1000 -> 0 | I4: =VLOOKUP($D4,specs!$K$5:$L$19,2)*IF($E$1="m",$D5,($D5*0.3048))/1000 -> 0 | J4: =VLOOKUP($D4,specs!$K$5:$L$19,2)*IF($E$1="m",$D5,($D5*0.3048))/1000 -> 0 | K4: =VLOOKUP($D4,specs!$K$5:$L$19,2)*IF($E$1="m",$D5,($D5*0.3048))/1000 -> 0 | L4: =VLOOKUP($D4,specs!$K$5:$L$19,2)*IF($E$1="m",$D5,($D5*0.3048))/1000 -> 0 | M4: =VLOOKUP($D4,specs!$K$5:$L$19,2)*IF($E$1="m",$D5,($D5*0.3048))/1000 -> 0 | N4: =VLOOKUP($D4,specs!$K$5:$L$19,2)*IF($E$1="m",$D5,($D5*0.3048))/1000 -> 0 | O4: =VLOOKUP($D4,specs!$K$5:$L$19,2)*IF($E$1="m",$D5,($D5*0.3048))/1000 -> 0
C5: span length,m | D5: 0 | E5: 0 | F5: =VLOOKUP($D6,specs!$D$5:$H$17,4)/IF(F6<67,(F6/1.03),65)*$E6+F8 -> 4.044806402 | G5: =VLOOKUP($D6,specs!$D$5:$H$17,4)/IF(G6<67,(G6/1.03),65)*$E6+G8 -> 4.15559017 | H5: =VLOOKUP($D6,specs!$D$5:$H$17,4)/IF(H6<67,(H6/1.03),65)*$E6+H8 -> 4.158782921 | I5: =VLOOKUP($D6,specs!$D$5:$H$17,4)/IF(I6<67,(I6/1.03),65)*$E6+I8 -> 4.158875097 | J5: =VLOOKUP($D6,specs!$D$5:$H$17,4)/IF(J6<67,(J6/1.03),65)*$E6+J8 -> 4.158877759 | K5: =VLOOKUP($D6,specs!$D$5:$H$17,4)/IF(K6<67,(K6/1.03),65)*$E6+K8 -> 4.158877835 | L5: =VLOOKUP($D6,specs!$D$5:$H$17,4)/IF(L6<67,(L6/1.03),65)*$E6+L8 -> 4.158877838 | M5: =VLOOKUP($D6,specs!$D$5:$H$17,4)/IF(M6<67,(M6/1.03),65)*$E6+M8 -> 4.158877838 | N5: =VLOOKUP($D6,specs!$D$5:$H$17,4)/IF(N6<67,(N6/1.03),65)*$E6+N8 -> 4.158877838 | O5: =VLOOKUP($D6,specs!$D$5:$H$17,4)/IF(O6<67,(O6/1.03),65)*$E6+O8 -> 4.158877838
C6: amplifier | D6: TNA | E6: 1 | F6: =F9+F8*F7 -> 48.39589498 | G6: =G9+G8*G7 -> 47.13451271 | H6: 47.09916885 | I6: 47.09814927 | J6: 47.09811983 | K6: 47.09811898 | L6: 47.09811896 | M6: 47.09811896 | N6: 47.09811896 | O6: 47.09811896
C7: cable type | D7: cable | E7: 0 | F7: =VLOOKUP($D7,specs!$K$5:$L$19,2)*IF($E$1="m",$D8,($D8*0.3048))/1000 -> 0 | G7: =VLOOKUP($D7,specs!$K$5:$L$19,2)*IF($E$1="m",$D8,($D8*0.3048))/1000 -> 0 | H7: =VLOOKUP($D7,specs!$K$5:$L$19,2)*IF($E$1="m",$D8,($D8*0.3048))/1000 -> 0 | I7: =VLOOKUP($D7,specs!$K$5:$L$19,2)*IF($E$1="m",$D8,($D8*0.3048))/1000 -> 0 | J7: =VLOOKUP($D7,specs!$K$5:$L$19,2)*IF($E$1="m",$D8,($D8*0.3048))/1000 -> 0 | K7: =VLOOKUP($D7,specs!$K$5:$L$19,2)*IF($E$1="m",$D8,($D8*0.3048))/1000 -> 0 | L7: =VLOOKUP($D7,specs!$K$5:$L$19,2)*IF($E$1="m",$D8,($D8*0.3048))/1000 -> 0 | M7: =VLOOKUP($D7,specs!$K$5:$L$19,2)*IF($E$1="m",$D8,($D8*0.3048))/1000 -> 0 | N7: =VLOOKUP($D7,specs!$K$5:$L$19,2)*IF($E$1="m",$D8,($D8*0.3048))/1000 -> 0 | O7: =VLOOKUP($D7,specs!$K$5:$L$19,2)*IF($E$1="m",$D8,($D8*0.3048))/1000 -> 0
C8: span length,m | D8: 0 | E8: 0 | F8: =VLOOKUP($D9,specs!$D$5:$H$17,4)/IF(F9<67,(F9/1.03),65)*$E9+F11 -> 3.023232155 | G8: =VLOOKUP($D9,specs!$D$5:$H$17,4)/IF(G9<67,(G9/1.03),65)*$E9+G11 -> 3.106677236 | H8: =VLOOKUP($D9,specs!$D$5:$H$17,4)/IF(H9<67,(H9/1.03),65)*$E9+H11 -> 3.109082869 | I8: =VLOOKUP($D9,specs!$D$5:$H$17,4)/IF(I9<67,(I9/1.03),65)*$E9+I11 -> 3.109152321 | J8: =VLOOKUP($D9,specs!$D$5:$H$17,4)/IF(J9<67,(J9/1.03),65)*$E9+J11 -> 3.109154326 | K8: =VLOOKUP($D9,specs!$D$5:$H$17,4)/IF(K9<67,(K9/1.03),65)*$E9+K11 -> 3.109154384 | L8: =VLOOKUP($D9,specs!$D$5:$H$17,4)/IF(L9<67,(L9/1.03),65)*$E9+L11 -> 3.109154386 | M8: =VLOOKUP($D9,specs!$D$5:$H$17,4)/IF(M9<67,(M9/1.03),65)*$E9+M11 -> 3.109154386 | N8: =VLOOKUP($D9,specs!$D$5:$H$17,4)/IF(N9<67,(N9/1.03),65)*$E9+N11 -> 3.109154386 | O8: =VLOOKUP($D9,specs!$D$5:$H$17,4)/IF(O9<67,(O9/1.03),65)*$E9+O11 -> 3.109154386
C9: amplifier | D9: DBLE | E9: 1 | F9: =F12+F11*F10 -> 48.39589498 | G9: =G12+G11*G10 -> 47.13451271 | H9: 47.09916885 | I9: 47.09814927 | J9: 47.09811983 | K9: 47.09811898 | L9: 47.09811896 | M9: 47.09811896 | N9: 47.09811896 | O9: 47.09811896
C10: cable type | D10: C565 | E10: 0 | F10: =VLOOKUP($D10,specs!$K$5:$L$19,2)*IF($E$1="m",$D11,($D11*0.3048))/1000 -> 0.1704 | G10: =VLOOKUP($D10,specs!$K$5:$L$19,2)*IF($E$1="m",$D11,($D11*0.3048))/1000 -> 0.1704 | H10: =VLOOKUP($D10,specs!$K$5:$L$19,2)*IF($E$1="m",$D11,($D11*0.3048))/1000 -> 0.1704 | I10: =VLOOKUP($D10,specs!$K$5:$L$19,2)*IF($E$1="m",$D11,($D11*0.3048))/1000 -> 0.1704 | J10: =VLOOKUP($D10,specs!$K$5:$L$19,2)*IF($E$1="m",$D11,($D11*0.3048))/1000 -> 0.1704 | K10: =VLOOKUP($D10,specs!$K$5:$L$19,2)*IF($E$1="m",$D11,($D11*0.3048))/1000 -> 0.1704 | L10: =VLOOKUP($D10,specs!$K$5:$L$19,2)*IF($E$1="m",$D11,($D11*0.3048))/1000 -> 0.1704 | M10: =VLOOKUP($D10,specs!$K$5:$L$19,2)*IF($E$1="m",$D11,($D11*0.3048))/1000 -> 0.1704 | N10: =VLOOKUP($D10,specs!$K$5:$L$19,2)*IF($E$1="m",$D11,($D11*0.3048))/1000 -> 0.1704 | O10: =VLOOKUP($D10,specs!$K$5:$L$19,2)*IF($E$1="m",$D11,($D11*0.3048))/1000 -> 0.1704
C11: span length,m | D11: 40 | E11: 0 | F11: =VLOOKUP($D12,specs!$D$5:$H$17,4)/IF(F12<67,(F12/1.03),65)*$E12+F14 -> 2.427313844 | G11: =VLOOKUP($D12,specs!$D$5:$H$17,4)/IF(G12<67,(G12/1.03),65)*$E12+G14 -> 2.494811358 | H11: =VLOOKUP($D12,specs!$D$5:$H$17,4)/IF(H12<67,(H12/1.03),65)*$E12+H14 -> 2.496757838 | I11: =VLOOKUP($D12,specs!$D$5:$H$17,4)/IF(I12<67,(I12/1.03),65)*$E12+I14 -> 2.496814035 | J11: =VLOOKUP($D12,specs!$D$5:$H$17,4)/IF(J12<67,(J12/1.03),65)*$E12+J14 -> 2.496815658 | K11: =VLOOKUP($D12,specs!$D$5:$H$17,4)/IF(K12<67,(K12/1.03),65)*$E12+K14 -> 2.496815704 | L11: =VLOOKUP($D12,specs!$D$5:$H$17,4)/IF(L12<67,(L12/1.03),65)*$E12+L14 -> 2.496815706 | M11: =VLOOKUP($D12,specs!$D$5:$H$17,4)/IF(M12<67,(M12/1.03),65)*$E12+M14 -> 2.496815706 | N11: =VLOOKUP($D12,specs!$D$5:$H$17,4)/IF(N12<67,(N12/1.03),65)*$E12+N14 -> 2.496815706 | O11: =VLOOKUP($D12,specs!$D$5:$H$17,4)/IF(O12<67,(O12/1.03),65)*$E12+O14 -> 2.496815706
C12: amplifier | D12: DBLE | E12: 1 | F12: =F15+F14*F13 -> 47.98228071 | G12: =G15+G14*G13 -> 46.70939685 | H12: 46.67372131 | I12: 46.67269216 | J12: 46.67266244 | K12: 46.67266158 | L12: 46.67266156 | M12: 46.67266156 | N12: 46.67266156 | O12: 46.67266156
C13: cable type | D13: C565 | E13: 0 | F13: =VLOOKUP($D13,specs!$K$5:$L$19,2)*IF($E$1="m",$D14,($D14*0.3048))/1000 -> 0.2556 | G13: =VLOOKUP($D13,specs!$K$5:$L$19,2)*IF($E$1="m",$D14,($D14*0.3048))/1000 -> 0.2556 | H13: =VLOOKUP($D13,specs!$K$5:$L$19,2)*IF($E$1="m",$D14,($D14*0.3048))/1000 -> 0.2556 | I13: =VLOOKUP($D13,specs!$K$5:$L$19,2)*IF($E$1="m",$D14,($D14*0.3048))/1000 -> 0.2556 | J13: =VLOOKUP($D13,specs!$K$5:$L$19,2)*IF($E$1="m",$D14,($D14*0.3048))/1000 -> 0.2556 | K13: =VLOOKUP($D13,specs!$K$5:$L$19,2)*IF($E$1="m",$D14,($D14*0.3048))/1000 -> 0.2556 | L13: =VLOOKUP($D13,specs!$K$5:$L$19,2)*IF($E$1="m",$D14,($D14*0.3048))/1000 -> 0.2556 | M13: =VLOOKUP($D13,specs!$K$5:$L$19,2)*IF($E$1="m",$D14,($D14*0.3048))/1000 -> 0.2556 | N13: =VLOOKUP($D13,specs!$K$5:$L$19,2)*IF($E$1="m",$D14,($D14*0.3048))/1000 -> 0.2556 | O13: =VLOOKUP($D13,specs!$K$5:$L$19,2)*IF($E$1="m",$D14,($D14*0.3048))/1000 -> 0.2556
C14: span length,m | D14: 60 | E14: 0 | F14: =VLOOKUP($D15,specs!$D$5:$H$17,4)/IF(F15<67,(F15/1.03),65)*$E15+F17 -> 1.82625863 | G14: =VLOOKUP($D15,specs!$D$5:$H$17,4)/IF(G15<67,(G15/1.03),65)*$E15+G17 -> 1.87737671 | H14: =VLOOKUP($D15,specs!$D$5:$H$17,4)/IF(H15<67,(H15/1.03),65)*$E15+H17 -> 1.878851248 | I14: =VLOOKUP($D15,specs!$D$5:$H$17,4)/IF(I15<67,(I15/1.03),65)*$E15+I17 -> 1.878893819 | J14: =VLOOKUP($D15,specs!$D$5:$H$17,4)/IF(J15<67,(J15/1.03),65)*$E15+J17 -> 1.878895049 | K14: =VLOOKUP($D15,specs!$D$5:$H$17,4)/IF(K15<67,(K15/1.03),65)*$E15+K17 -> 1.878895084 | L14: =VLOOKUP($D15,specs!$D$5:$H$17,4)/IF(L15<67,(L15/1.03),65)*$E15+L17 -> 1.878895085 | M14: =VLOOKUP($D15,specs!$D$5:$H$17,4)/IF(M15<67,(M15/1.03),65)*$E15+M17 -> 1.878895085 | N14: =VLOOKUP($D15,specs!$D$5:$H$17,4)/IF(N15<67,(N15/1.03),65)*$E15+N17 -> 1.878895085 | O14: =VLOOKUP($D15,specs!$D$5:$H$17,4)/IF(O15<67,(O15/1.03),65)*$E15+O17 -> 1.878895085
C15: amplifier | D15: DBLE | E15: 2 | F15: =F18+F17*F16 -> 47.515489 | G15: =G18+G17*G16 -> 46.22953936 | H15: 46.19348693 | I15: 46.1924469 | J15: 46.19241687 | K15: 46.192416 | L15: 46.19241598 | M15: 46.19241598 | N15: 46.19241598 | O15: 46.19241598
C16: cable type | D16: C565 | E16: 0 | F16: =VLOOKUP($D16,specs!$K$5:$L$19,2)*IF($E$1="m",$D17,($D17*0.3048))/1000 -> 0.6816 | G16: =VLOOKUP($D16,specs!$K$5:$L$19,2)*IF($E$1="m",$D17,($D17*0.3048))/1000 -> 0.6816 | H16: =VLOOKUP($D16,specs!$K$5:$L$19,2)*IF($E$1="m",$D17,($D17*0.3048))/1000 -> 0.6816 | I16: =VLOOKUP($D16,specs!$K$5:$L$19,2)*IF($E$1="m",$D17,($D17*0.3048))/1000 -> 0.6816 | J16: =VLOOKUP($D16,specs!$K$5:$L$19,2)*IF($E$1="m",$D17,($D17*0.3048))/1000 -> 0.6816 | K16: =VLOOKUP($D16,specs!$K$5:$L$19,2)*IF($E$1="m",$D17,($D17*0.3048))/1000 -> 0.6816 | L16: =VLOOKUP($D16,specs!$K$5:$L$19,2)*IF($E$1="m",$D17,($D17*0.3048))/1000 -> 0.6816 | M16: =VLOOKUP($D16,specs!$K$5:$L$19,2)*IF($E$1="m",$D17,($D17*0.3048))/1000 -> 0.6816 | N16: =VLOOKUP($D16,specs!$K$5:$L$19,2)*IF($E$1="m",$D17,($D17*0.3048))/1000 -> 0.6816 | O16: =VLOOKUP($D16,specs!$K$5:$L$19,2)*IF($E$1="m",$D17,($D17*0.3048))/1000 -> 0.6816
C17: span length,m | D17: 160 | E17: 0 | F17: =VLOOKUP($D18,specs!$D$5:$H$17,4)/IF(F18<67,(F18/1.03),65)*$E18+F20 -> 0.6123386802 | G17: =VLOOKUP($D18,specs!$D$5:$H$17,4)/IF(G18<67,(G18/1.03),65)*$E18+G20 -> 0.6296896084 | H17: =VLOOKUP($D18,specs!$D$5:$H$17,4)/IF(H18<67,(H18/1.03),65)*$E18+H20 -> 0.6301903686 | I17: =VLOOKUP($D18,specs!$D$5:$H$17,4)/IF(I18<67,(I18/1.03),65)*$E18+I20 -> 0.6302048264 | J17: =VLOOKUP($D18,specs!$D$5:$H$17,4)/IF(J18<67,(J18/1.03),65)*$E18+J20 -> 0.6302052438 | K17: =VLOOKUP($D18,specs!$D$5:$H$17,4)/IF(K18<67,(K18/1.03),65)*$E18+K20 -> 0.6302052559 | L17: =VLOOKUP($D18,specs!$D$5:$H$17,4)/IF(L18<67,(L18/1.03),65)*$E18+L20 -> 0.6302052562 | M17: =VLOOKUP($D18,specs!$D$5:$H$17,4)/IF(M18<67,(M18/1.03),65)*$E18+M20 -> 0.6302052562 | N17: =VLOOKUP($D18,specs!$D$5:$H$17,4)/IF(N18<67,(N18/1.03),65)*$E18+N20 -> 0.6302052562 | O17: =VLOOKUP($D18,specs!$D$5:$H$17,4)/IF(O18<67,(O18/1.03),65)*$E18+O20 -> 0.6302052562
C18: amplifier | D18: DBLE | E18: 1 | F18: =F21+F20*F19 -> 47.09811896 | G18: =G21+G20*G19 -> 45.80034293 | H18: 45.76394918 | I18: 45.76289929 | J18: 45.76286897 | K18: 45.7628681 | L18: 45.76286807 | M18: 45.76286807 | N18: 45.76286807 | O18: 45.76286807
C19: cable type | D19: cable | E19: 0 | F19: =VLOOKUP($D19,specs!$K$5:$L$19,2)*IF($E$1="m",$D20,($D20*0.3048))/1000 -> 0 | G19: =VLOOKUP($D19,specs!$K$5:$L$19,2)*IF($E$1="m",$D20,($D20*0.3048))/1000 -> 0 | H19: =VLOOKUP($D19,specs!$K$5:$L$19,2)*IF($E$1="m",$D20,($D20*0.3048))/1000 -> 0 | I19: =VLOOKUP($D19,specs!$K$5:$L$19,2)*IF($E$1="m",$D20,($D20*0.3048))/1000 -> 0 | J19: =VLOOKUP($D19,specs!$K$5:$L$19,2)*IF($E$1="m",$D20,($D20*0.3048))/1000 -> 0 | K19: =VLOOKUP($D19,specs!$K$5:$L$19,2)*IF($E$1="m",$D20,($D20*0.3048))/1000 -> 0 | L19: =VLOOKUP($D19,specs!$K$5:$L$19,2)*IF($E$1="m",$D20,($D20*0.3048))/1000 -> 0 | M19: =VLOOKUP($D19,specs!$K$5:$L$19,2)*IF($E$1="m",$D20,($D20*0.3048))/1000 -> 0 | N19: =VLOOKUP($D19,specs!$K$5:$L$19,2)*IF($E$1="m",$D20,($D20*0.3048))/1000 -> 0 | O19: =VLOOKUP($D19,specs!$K$5:$L$19,2)*IF($E$1="m",$D20,($D20*0.3048))/1000 -> 0
C20: span length,m | D20: 0 | E20: 0 | F20: =$E21*VLOOKUP($D21,specs!$D$5:$H$17,4)/IF(F21<67,(F21/1.03),65) -> 0 | G20: =$E21*VLOOKUP($D21,specs!$D$5:$H$17,4)/IF(G21<67,(G21/1.03),65) -> 0 | H20: =$E21*VLOOKUP($D21,specs!$D$5:$H$17,4)/IF(H21<67,(H21/1.03),65) -> 0 | I20: =$E21*VLOOKUP($D21,specs!$D$5:$H$17,4)/IF(I21<67,(I21/1.03),65) -> 0 | J20: =$E21*VLOOKUP($D21,specs!$D$5:$H$17,4)/IF(J21<67,(J21/1.03),65) -> 0 | K20: =$E21*VLOOKUP($D21,specs!$D$5:$H$17,4)/IF(K21<67,(K21/1.03),65) -> 0 | L20: =$E21*VLOOKUP($D21,specs!$D$5:$H$17,4)/IF(L21<67,(L21/1.03),65) -> 0 | M20: =$E21*VLOOKUP($D21,specs!$D$5:$H$17,4)/IF(M21<67,(M21/1.03),65) -> 0 | N20: =$E21*VLOOKUP($D21,specs!$D$5:$H$17,4)/IF(N21<67,(N21/1.03),65) -> 0 | O20: =$E21*VLOOKUP($D21,specs!$D$5:$H$17,4)/IF(O21<67,(O21/1.03),65) -> 0
C21: amplifier | D21: load | E21: 0 | F21: =B2 -> 47.09811896 | G21: =F21-(F3-$B$2) -> 45.80034293 | H21: 45.76394918 | I21: 45.76289929 | J21: 45.76286897 | K21: 45.7628681 | L21: 45.76286807 | M21: 45.76286807 | N21: 45.76286807 | O21: 45.76286807
F22: =IF(F21<0,1,0) -> 0 | G22: =IF(G21<0,1,0) -> 0 | H22: 0 | I22: 0 | J22: 0 | K22: 0 | L22: 0 | M22: 0 | N22: 0 | O22: 0
C24: User added Branch
M27: =O21 -> 45.76286807
F34: Main Branch Net12

Sheet Net11 (hidden)
B1: =SUM(F22:O22) -> 0 | D1: =IF(O21<'AUX2'!B6,1,0)+'Net11 (2)'!D1 -> 0 | E1: =+'AUX2'!J5 -> m
B2: =+'AUX2'!M7 -> 46.88609152 | C2: U start, V | D2: =+O5*1+'Net11 (2)'!D2 -> 2.488586414 | F2: 1 | G2: 2 | H2: 3 | I2: 4 | J2: 5 | K2: 6 | L2: 7 | M2: 8 | N2: 9 | O2: iteration10
E3: mult. | F3: =F6+F5*F4 -> 47.94053333 | G3: =G6+G5*G4 -> 46.91027676 | H3: 46.88665925 | I3: 46.88610485 | J3: 46.88609183 | K3: 46.88609153 | L3: 46.88609152 | M3: 46.88609152 | N3: 46.88609152 | O3: =O6+O5*O4 -> 46.88609152
C4: cable type | D4: cable | E4: 0 | F4: =VLOOKUP($D4,specs!$K$5:$L$19,2)*IF($E$1="m",$D5,($D5*0.3048))/1000 -> 0 | G4: =VLOOKUP($D4,specs!$K$5:$L$19,2)*IF($E$1="m",$D5,($D5*0.3048))/1000 -> 0 | H4: =VLOOKUP($D4,specs!$K$5:$L$19,2)*IF($E$1="m",$D5,($D5*0.3048))/1000 -> 0 | I4: =VLOOKUP($D4,specs!$K$5:$L$19,2)*IF($E$1="m",$D5,($D5*0.3048))/1000 -> 0 | J4: =VLOOKUP($D4,specs!$K$5:$L$19,2)*IF($E$1="m",$D5,($D5*0.3048))/1000 -> 0 | K4: =VLOOKUP($D4,specs!$K$5:$L$19,2)*IF($E$1="m",$D5,($D5*0.3048))/1000 -> 0 | L4: =VLOOKUP($D4,specs!$K$5:$L$19,2)*IF($E$1="m",$D5,($D5*0.3048))/1000 -> 0 | M4: =VLOOKUP($D4,specs!$K$5:$L$19,2)*IF($E$1="m",$D5,($D5*0.3048))/1000 -> 0 | N4: =VLOOKUP($D4,specs!$K$5:$L$19,2)*IF($E$1="m",$D5,($D5*0.3048))/1000 -> 0 | O4: =VLOOKUP($D4,specs!$K$5:$L$19,2)*IF($E$1="m",$D5,($D5*0.3048))/1000 -> 0
C5: span length,m | D5: 0 | E5: 0 | F5: =VLOOKUP($D6,specs!$D$5:$H$17,4)/IF(F6<67,(F6/1.03),65)*$E6+F8 -> 1.829636044 | G5: =VLOOKUP($D6,specs!$D$5:$H$17,4)/IF(G6<67,(G6/1.03),65)*$E6+G8 -> 1.870999432 | H5: =VLOOKUP($D6,specs!$D$5:$H$17,4)/IF(H6<67,(H6/1.03),65)*$E6+H8 -> 1.871969927 | I5: =VLOOKUP($D6,specs!$D$5:$H$17,4)/IF(I6<67,(I6/1.03),65)*$E6+I8 -> 1.87199272 | J5: =VLOOKUP($D6,specs!$D$5:$H$17,4)/IF(J6<67,(J6/1.03),65)*$E6+J8 -> 1.871993255 | K5: =VLOOKUP($D6,specs!$D$5:$H$17,4)/IF(K6<67,(K6/1.03),65)*$E6+K8 -> 1.871993268 | L5: =VLOOKUP($D6,specs!$D$5:$H$17,4)/IF(L6<67,(L6/1.03),65)*$E6+L8 -> 1.871993268 | M5: =VLOOKUP($D6,specs!$D$5:$H$17,4)/IF(M6<67,(M6/1.03),65)*$E6+M8 -> 1.871993268 | N5: =VLOOKUP($D6,specs!$D$5:$H$17,4)/IF(N6<67,(N6/1.03),65)*$E6+N8 -> 1.871993268 | O5: =VLOOKUP($D6,specs!$D$5:$H$17,4)/IF(O6<67,(O6/1.03),65)*$E6+O8 -> 1.871993268
C6: amplifier | D6: DBLE | E6: 1 | F6: =F9+F8*F7 -> 47.94053333 | G6: =G9+G8*G7 -> 46.91027676 | H6: 46.88665925 | I6: 46.88610485 | J6: 46.88609183 | K6: 46.88609153 | L6: 46.88609152 | M6: 46.88609152 | N6: 46.88609152 | O6: =O9+O8*O7 -> 46.88609152
C7: cable type | D7: C565 | E7: 0 | F7: =VLOOKUP($D7,specs!$K$5:$L$19,2)*IF($E$1="m",$D8,($D8*0.3048))/1000 -> 0.7242 | G7: =VLOOKUP($D7,specs!$K$5:$L$19,2)*IF($E$1="m",$D8,($D8*0.3048))/1000 -> 0.7242 | H7: =VLOOKUP($D7,specs!$K$5:$L$19,2)*IF($E$1="m",$D8,($D8*0.3048))/1000 -> 0.7242 | I7: =VLOOKUP($D7,specs!$K$5:$L$19,2)*IF($E$1="m",$D8,($D8*0.3048))/1000 -> 0.7242 | J7: =VLOOKUP($D7,specs!$K$5:$L$19,2)*IF($E$1="m",$D8,($D8*0.3048))/1000 -> 0.7242 | K7: =VLOOKUP($D7,specs!$K$5:$L$19,2)*IF($E$1="m",$D8,($D8*0.3048))/1000 -> 0.7242 | L7: =VLOOKUP($D7,specs!$K$5:$L$19,2)*IF($E$1="m",$D8,($D8*0.3048))/1000 -> 0.7242 | M7: =VLOOKUP($D7,specs!$K$5:$L$19,2)*IF($E$1="m",$D8,($D8*0.3048))/1000 -> 0.7242 | N7: =VLOOKUP($D7,specs!$K$5:$L$19,2)*IF($E$1="m",$D8,($D8*0.3048))/1000 -> 0.7242 | O7: =VLOOKUP($D7,specs!$K$5:$L$19,2)*IF($E$1="m",$D8,($D8*0.3048))/1000 -> 0.7242
C8: span length,m | D8: 170 | E8: 0 | F8: =VLOOKUP($D9,specs!$D$5:$H$17,4)/IF(F9<67,(F9/1.03),65)*$E9+F11 -> 1.228057422 | G8: =VLOOKUP($D9,specs!$D$5:$H$17,4)/IF(G9<67,(G9/1.03),65)*$E9+G11 -> 1.256208772 | H8: =VLOOKUP($D9,specs!$D$5:$H$17,4)/IF(H9<67,(H9/1.03),65)*$E9+H11 -> 1.256869587 | I8: =VLOOKUP($D9,specs!$D$5:$H$17,4)/IF(I9<67,(I9/1.03),65)*$E9+I11 -> 1.256885108 | J8: =VLOOKUP($D9,specs!$D$5:$H$17,4)/IF(J9<67,(J9/1.03),65)*$E9+J11 -> 1.256885472 | K8: =VLOOKUP($D9,specs!$D$5:$H$17,4)/IF(K9<67,(K9/1.03),65)*$E9+K11 -> 1.256885481 | L8: =VLOOKUP($D9,specs!$D$5:$H$17,4)/IF(L9<67,(L9/1.03),65)*$E9+L11 -> 1.256885481 | M8: =VLOOKUP($D9,specs!$D$5:$H$17,4)/IF(M9<67,(M9/1.03),65)*$E9+M11 -> 1.256885481 | N8: =VLOOKUP($D9,specs!$D$5:$H$17,4)/IF(N9<67,(N9/1.03),65)*$E9+N11 -> 1.256885481 | O8: =VLOOKUP($D9,specs!$D$5:$H$17,4)/IF(O9<67,(O9/1.03),65)*$E9+O11 -> 1.256885481
C9: amplifier | D9: DBLE | E9: 1 | F9: =F12+F11*F10 -> 47.05117415 | G9: =G12+G11*G10 -> 46.00053036 | H9: 45.97643429 | I9: 45.97586866 | J9: 45.97585537 | K9: 45.97585506 | L9: 45.97585505 | M9: 45.97585505 | N9: 45.97585505 | O9: =O12+O11*O10 -> 45.97585505
C10: cable type | D10: C565 | E10: 0 | F10: =VLOOKUP($D10,specs!$K$5:$L$19,2)*IF($E$1="m",$D11,($D11*0.3048))/1000 -> 0.26838 | G10: =VLOOKUP($D10,specs!$K$5:$L$19,2)*IF($E$1="m",$D11,($D11*0.3048))/1000 -> 0.26838 | H10: =VLOOKUP($D10,specs!$K$5:$L$19,2)*IF($E$1="m",$D11,($D11*0.3048))/1000 -> 0.26838 | I10: =VLOOKUP($D10,specs!$K$5:$L$19,2)*IF($E$1="m",$D11,($D11*0.3048))/1000 -> 0.26838 | J10: =VLOOKUP($D10,specs!$K$5:$L$19,2)*IF($E$1="m",$D11,($D11*0.3048))/1000 -> 0.26838 | K10: =VLOOKUP($D10,specs!$K$5:$L$19,2)*IF($E$1="m",$D11,($D11*0.3048))/1000 -> 0.26838 | L10: =VLOOKUP($D10,specs!$K$5:$L$19,2)*IF($E$1="m",$D11,($D11*0.3048))/1000 -> 0.26838 | M10: =VLOOKUP($D10,specs!$K$5:$L$19,2)*IF($E$1="m",$D11,($D11*0.3048))/1000 -> 0.26838 | N10: =VLOOKUP($D10,specs!$K$5:$L$19,2)*IF($E$1="m",$D11,($D11*0.3048))/1000 -> 0.26838 | O10: =VLOOKUP($D10,specs!$K$5:$L$19,2)*IF($E$1="m",$D11,($D11*0.3048))/1000 -> 0.26838
C11: span length,m | D11: 63 | E11: 0 | F11: =VLOOKUP($D12,specs!$D$5:$H$17,4)/IF(F12<67,(F12/1.03),65)*$E12+F14 -> 0.6151077871 | G11: =VLOOKUP($D12,specs!$D$5:$H$17,4)/IF(G12<67,(G12/1.03),65)*$E12+G14 -> 0.6292594787 | H11: =VLOOKUP($D12,specs!$D$5:$H$17,4)/IF(H12<67,(H12/1.03),65)*$E12+H14 -> 0.6295917125 | I11: =VLOOKUP($D12,specs!$D$5:$H$17,4)/IF(I12<67,(I12/1.03),65)*$E12+I14 -> 0.6295995156 | J11: =VLOOKUP($D12,specs!$D$5:$H$17,4)/IF(J12<67,(J12/1.03),65)*$E12+J14 -> 0.6295996989 | K11: =VLOOKUP($D12,specs!$D$5:$H$17,4)/IF(K12<67,(K12/1.03),65)*$E12+K14 -> 0.6295997032 | L11: =VLOOKUP($D12,specs!$D$5:$H$17,4)/IF(L12<67,(L12/1.03),65)*$E12+L14 -> 0.6295997033 | M11: =VLOOKUP($D12,specs!$D$5:$H$17,4)/IF(M12<67,(M12/1.03),65)*$E12+M14 -> 0.6295997033 | N11: =VLOOKUP($D12,specs!$D$5:$H$17,4)/IF(N12<67,(N12/1.03),65)*$E12+N14 -> 0.6295997033 | O11: =VLOOKUP($D12,specs!$D$5:$H$17,4)/IF(O12<67,(O12/1.03),65)*$E12+O14 -> 0.6295997033
C12: amplifier | D12: DBLE | E12: 1 | F12: =F15+F14*F13 -> 46.88609152 | G12: =G15+G14*G13 -> 45.83164971 | H12: 45.80746447 | I12: 45.80689674 | J12: 45.80688341 | K12: 45.80688309 | L12: 45.80688308 | M12: 45.80688308 | N12: 45.80688308 | O12: =O15+O14*O13 -> 45.80688308
C13: cable type | D13: cable | E13: 0 | F13: =VLOOKUP($D13,specs!$K$5:$L$19,2)*IF($E$1="m",$D14,($D14*0.3048))/1000 -> 0 | G13: =VLOOKUP($D13,specs!$K$5:$L$19,2)*IF($E$1="m",$D14,($D14*0.3048))/1000 -> 0 | H13: =VLOOKUP($D13,specs!$K$5:$L$19,2)*IF($E$1="m",$D14,($D14*0.3048))/1000 -> 0 | I13: =VLOOKUP($D13,specs!$K$5:$L$19,2)*IF($E$1="m",$D14,($D14*0.3048))/1000 -> 0 | J13: =VLOOKUP($D13,specs!$K$5:$L$19,2)*IF($E$1="m",$D14,($D14*0.3048))/1000 -> 0 | K13: =VLOOKUP($D13,specs!$K$5:$L$19,2)*IF($E$1="m",$D14,($D14*0.3048))/1000 -> 0 | L13: =VLOOKUP($D13,specs!$K$5:$L$19,2)*IF($E$1="m",$D14,($D14*0.3048))/1000 -> 0 | M13: =VLOOKUP($D13,specs!$K$5:$L$19,2)*IF($E$1="m",$D14,($D14*0.3048))/1000 -> 0 | N13: =VLOOKUP($D13,specs!$K$5:$L$19,2)*IF($E$1="m",$D14,($D14*0.3048))/1000 -> 0 | O13: =VLOOKUP($D13,specs!$K$5:$L$19,2)*IF($E$1="m",$D14,($D14*0.3048))/1000 -> 0
C14: span length,m | D14: 0 | E14: 0 | F14: =VLOOKUP($D15,specs!$D$5:$H$17,4)/IF(F15<67,(F15/1.03),65)*$E15+F17 -> 0 | G14: =VLOOKUP($D15,specs!$D$5:$H$17,4)/IF(G15<67,(G15/1.03),65)*$E15+G17 -> 0 | H14: =VLOOKUP($D15,specs!$D$5:$H$17,4)/IF(H15<67,(H15/1.03),65)*$E15+H17 -> 0 | I14: =VLOOKUP($D15,specs!$D$5:$H$17,4)/IF(I15<67,(I15/1.03),65)*$E15+I17 -> 0 | J14: =VLOOKUP($D15,specs!$D$5:$H$17,4)/IF(J15<67,(J15/1.03),65)*$E15+J17 -> 0 | K14: =VLOOKUP($D15,specs!$D$5:$H$17,4)/IF(K15<67,(K15/1.03),65)*$E15+K17 -> 0 | L14: =VLOOKUP($D15,specs!$D$5:$H$17,4)/IF(L15<67,(L15/1.03),65)*$E15+L17 -> 0 | M14: =VLOOKUP($D15,specs!$D$5:$H$17,4)/IF(M15<67,(M15/1.03),65)*$E15+M17 -> 0 | N14: =VLOOKUP($D15,specs!$D$5:$H$17,4)/IF(N15<67,(N15/1.03),65)*$E15+N17 -> 0 | O14: =VLOOKUP($D15,specs!$D$5:$H$17,4)/IF(O15<67,(O15/1.03),65)*$E15+O17 -> 0
C15: amplifier | D15: load | E15: 0 | F15: =F18+F17*F16 -> 46.88609152 | G15: =G18+G17*G16 -> 45.83164971 | H15: 45.80746447 | I15: 45.80689674 | J15: 45.80688341 | K15: 45.80688309 | L15: 45.80688308 | M15: 45.80688308 | N15: 45.80688308 | O15: =O18+O17*O16 -> 45.80688308
C16: cable type | D16: cable | E16: 0 | F16: =VLOOKUP($D16,specs!$K$5:$L$19,2)*IF($E$1="m",$D17,($D17*0.3048))/1000 -> 0 | G16: =VLOOKUP($D16,specs!$K$5:$L$19,2)*IF($E$1="m",$D17,($D17*0.3048))/1000 -> 0 | H16: =VLOOKUP($D16,specs!$K$5:$L$19,2)*IF($E$1="m",$D17,($D17*0.3048))/1000 -> 0 | I16: =VLOOKUP($D16,specs!$K$5:$L$19,2)*IF($E$1="m",$D17,($D17*0.3048))/1000 -> 0 | J16: =VLOOKUP($D16,specs!$K$5:$L$19,2)*IF($E$1="m",$D17,($D17*0.3048))/1000 -> 0 | K16: =VLOOKUP($D16,specs!$K$5:$L$19,2)*IF($E$1="m",$D17,($D17*0.3048))/1000 -> 0 | L16: =VLOOKUP($D16,specs!$K$5:$L$19,2)*IF($E$1="m",$D17,($D17*0.3048))/1000 -> 0 | M16: =VLOOKUP($D16,specs!$K$5:$L$19,2)*IF($E$1="m",$D17,($D17*0.3048))/1000 -> 0 | N16: =VLOOKUP($D16,specs!$K$5:$L$19,2)*IF($E$1="m",$D17,($D17*0.3048))/1000 -> 0 | O16: =VLOOKUP($D16,specs!$K$5:$L$19,2)*IF($E$1="m",$D17,($D17*0.3048))/1000 -> 0
C17: span length,m | D17: 0 | E17: 0 | F17: =VLOOKUP($D18,specs!$D$5:$H$17,4)/IF(F18<67,(F18/1.03),65)*$E18+F20 -> 0 | G17: =VLOOKUP($D18,specs!$D$5:$H$17,4)/IF(G18<67,(G18/1.03),65)*$E18+G20 -> 0 | H17: =VLOOKUP($D18,specs!$D$5:$H$17,4)/IF(H18<67,(H18/1.03),65)*$E18+H20 -> 0 | I17: =VLOOKUP($D18,specs!$D$5:$H$17,4)/IF(I18<67,(I18/1.03),65)*$E18+I20 -> 0 | J17: =VLOOKUP($D18,specs!$D$5:$H$17,4)/IF(J18<67,(J18/1.03),65)*$E18+J20 -> 0 | K17: =VLOOKUP($D18,specs!$D$5:$H$17,4)/IF(K18<67,(K18/1.03),65)*$E18+K20 -> 0 | L17: =VLOOKUP($D18,specs!$D$5:$H$17,4)/IF(L18<67,(L18/1.03),65)*$E18+L20 -> 0 | M17: =VLOOKUP($D18,specs!$D$5:$H$17,4)/IF(M18<67,(M18/1.03),65)*$E18+M20 -> 0 | N17: =VLOOKUP($D18,specs!$D$5:$H$17,4)/IF(N18<67,(N18/1.03),65)*$E18+N20 -> 0 | O17: =VLOOKUP($D18,specs!$D$5:$H$17,4)/IF(O18<67,(O18/1.03),65)*$E18+O20 -> 0
C18: amplifier | D18: load | E18: 0 | F18: =F21+F20*F19 -> 46.88609152 | G18: =G21+G20*G19 -> 45.83164971 | H18: 45.80746447 | I18: 45.80689674 | J18: 45.80688341 | K18: 45.80688309 | L18: 45.80688308 | M18: 45.80688308 | N18: 45.80688308 | O18: =O21+O20*O19 -> 45.80688308
C19: cable type | D19: cable | E19: 0 | F19: =VLOOKUP($D19,specs!$K$5:$L$19,2)*IF($E$1="m",$D20,($D20*0.3048))/1000 -> 0 | G19: =VLOOKUP($D19,specs!$K$5:$L$19,2)*IF($E$1="m",$D20,($D20*0.3048))/1000 -> 0 | H19: =VLOOKUP($D19,specs!$K$5:$L$19,2)*IF($E$1="m",$D20,($D20*0.3048))/1000 -> 0 | I19: =VLOOKUP($D19,specs!$K$5:$L$19,2)*IF($E$1="m",$D20,($D20*0.3048))/1000 -> 0 | J19: =VLOOKUP($D19,specs!$K$5:$L$19,2)*IF($E$1="m",$D20,($D20*0.3048))/1000 -> 0 | K19: =VLOOKUP($D19,specs!$K$5:$L$19,2)*IF($E$1="m",$D20,($D20*0.3048))/1000 -> 0 | L19: =VLOOKUP($D19,specs!$K$5:$L$19,2)*IF($E$1="m",$D20,($D20*0.3048))/1000 -> 0 | M19: =VLOOKUP($D19,specs!$K$5:$L$19,2)*IF($E$1="m",$D20,($D20*0.3048))/1000 -> 0 | N19: =VLOOKUP($D19,specs!$K$5:$L$19,2)*IF($E$1="m",$D20,($D20*0.3048))/1000 -> 0 | O19: =VLOOKUP($D19,specs!$K$5:$L$19,2)*IF($E$1="m",$D20,($D20*0.3048))/1000 -> 0
C20: span length,m | D20: 0 | E20: 0 | F20: =$E21*VLOOKUP($D21,specs!$D$5:$H$17,4)/IF(F21<67,(F21/1.03),65)+F23 -> 0 | G20: =$E21*VLOOKUP($D21,specs!$D$5:$H$17,4)/IF(G21<67,(G21/1.03),65)+G23 -> 0 | H20: =$E21*VLOOKUP($D21,specs!$D$5:$H$17,4)/IF(H21<67,(H21/1.03),65)+H23 -> 0 | I20: =$E21*VLOOKUP($D21,specs!$D$5:$H$17,4)/IF(I21<67,(I21/1.03),65)+I23 -> 0 | J20: =$E21*VLOOKUP($D21,specs!$D$5:$H$17,4)/IF(J21<67,(J21/1.03),65)+J23 -> 0 | K20: =$E21*VLOOKUP($D21,specs!$D$5:$H$17,4)/IF(K21<67,(K21/1.03),65)+K23 -> 0 | L20: =$E21*VLOOKUP($D21,specs!$D$5:$H$17,4)/IF(L21<67,(L21/1.03),65)+L23 -> 0 | M20: =$E21*VLOOKUP($D21,specs!$D$5:$H$17,4)/IF(M21<67,(M21/1.03),65)+M23 -> 0 | N20: =$E21*VLOOKUP($D21,specs!$D$5:$H$17,4)/IF(N21<67,(N21/1.03),65)+N23 -> 0 | O20: =$E21*VLOOKUP($D21,specs!$D$5:$H$17,4)/IF(O21<67,(O21/1.03),65)+O23 -> 0
C21: amplifier | D21: load | E21: 0 | F21: =B2 -> 46.88609152 | G21: =F21-(F3-$B$2) -> 45.83164971 | H21: 45.80746447 | I21: 45.80689674 | J21: 45.80688341 | K21: 45.80688309 | L21: 45.80688308 | M21: 45.80688308 | N21: 45.80688308 | O21: 45.80688308
F22: =IF(F21<0,1,0) -> 0 | G22: =IF(G21<0,1,0) -> 0 | H22: 0 | I22: 0 | J22: 0 | K22: 0 | L22: 0 | M22: 0 | N22: 0 | O22: 0
C24: User added Branch
M27: =O21 -> 45.80688308
F34: Main Branch Net11

Sheet AUX (hidden)
D2: R,Ohm | H2: Vdrop,V
B3: length,m | C3: I,A | D3: 540 | E3: 860 | F3: 750 | G3: 3x10 | H3: 540 | I3: 860 | J3: 750 | K3: 3x10 | L3: amp type | M3: Inom,A | N3: Vnom,V | O3: Pnom,W | P3: factor_i | Q3: cable | R3: loop_res | AA3: LIST
A4: 1 | D4: =B4*$R$4 -> 0 | E4: =B4*$R$5 -> 0 | F4: =B4*$R$6 -> 0 | G4: =+B4*$R$7 -> 0 | H4: =$C4*D4 -> 0 | I4: =$C4*E4 -> 0 | J4: =$C4*F4 -> 0 | K4: =$C4*G4 -> 0 | L4: HLN | M4: 1.4 | N4: 60 | O4: 84 | P4: =M4/(O4/N4) -> 1 | Q4: QR540 | R4: =S4/1000 -> 0.00528 | S4: 5.28 | T4: C500 | U4: =V4/1000 -> 0.00564 | V4: 5.64 | AA4: Net11
A5: 2 | D5: 0 | E5: 0 | F5: 0 | G5: =+B5*$R$7 -> 0 | H5: =$C5*D5 -> 0 | I5: =$C5*E5 -> 0 | J5: =$C5*F5 -> 0 | K5: =$C5*G5 -> 0 | L5: TNA | M5: 1 | N5: 60 | O5: 60 | P5: =M5/(O5/N5) -> 1 | Q5: QR860 | R5: =S5/1000 -> 0.00237 | S5: 2.37 | T5: C625 | U5: =V5/1000 -> 0.00361 | V5: 3.61 | AA5: Net12
A6: 3 | D6: 0 | E6: 0 | F6: 0 | G6: =+B6*$R$7 -> 0 | H6: 0 | I6: 0 | J6: 0 | K6: 0 | L6: LEX | M6: 0.5 | N6: 60 | O6: 36 | P6: =M6/(O6/N6) -> 0.8333333333 | Q6: C750 | R6: =S6/1000 -> 0.00249 | S6: 2.49 | AA6: Net21
A7: 4 | D7: 0 | E7: 0 | F7: 0 | G7: 0 | H7: 0 | I7: 0 | J7: 0 | K7: 0 | L7: DBLE | M7: 0.6 | N7: 60 | O7: 24 | P7: =M7/(O7/N7) -> 1.5 | Q7: 3x10 | R7: =+S7/1000 -> 0.0025 | S7: 2.5 | AA7: Net22
A8: 5 | D8: 0 | E8: 0 | F8: 0 | G8: 0 | H8: =$C8*D8 -> 0 | I8: =$C8*E8 -> 0 | J8: 0 | K8: 0 | L8: GNA | M8: 1 | N8: 60 | O8: 60 | P8: =M8/(O8/N8) -> 1 | Q8: C500 | R8: =S8/1000 -> 0.00564 | S8: 5.64 | AA8: Net31
A9: 6 | D9: 0 | E9: 0 | F9: 0 | G9: 0 | H9: =$C9*D9 -> 0 | I9: =$C9*E9 -> 0 | J9: 0 | K9: 0 | Q9: C625 | R9: 0.00361 | S9: 3.61 | AA9: Net32
A10: 7 | D10: 0 | E10: 0 | F10: 0 | G10: 0 | H10: 0 | I10: 0 | J10: 0 | K10: 0 | Q10: 2x10 | R10: 0.00366 | S10: 3.66 | AA10: Net41
A11: 8 | D11: 0 | E11: 0 | F11: 0 | G11: 0 | H11: 0 | I11: 0 | J11: 0 | K11: 0 | Q11: 2x6 | R11: 0.006 | S11: 6 | AA11: Net42
A12: 9 | D12: 0 | E12: 0 | F12: 0 | G12: 0 | H12: 0 | I12: 0 | J12: 0 | K12: 0 | Q12: 4x10 | R12: 0.00183 | S12: 1.83
A13: 10 | D13: 0 | E13: 0 | F13: 0 | G13: 0 | H13: 0 | I13: 0 | J13: 0 | K13: 0 | Q13: 4x6 | R13: 0.003 | S13: 3

Sheet specs
D3: 1 | E3: 2 | F3: 3 | G3: 4 | H3: 5 | K3: 1 | L3: 2
C4: amp type | D4: sorted | E4: Inom,A | F4: Vnom,V | G4: Pnom,W | I4: original | J4: cable | K4: sorted | L4: loop_res | O4: original
C5: load | D5: DBLE | F5: 60 | G5: 28 | H5: 1 | I5: 30 | J5: cable | K5: 2x10 | L5: 3.66 | M5: cable | N5: 1 | O5: 3.66
C6: HLN | D6: future1 | F6: 60 | G6: 0 | H6: 1 | I6: 0 | J6: QR860 | K6: 2x6 | L6: 6 | M6: QR860 | N6: 2 | O6: 6
C7: TNA | D7: future2 | F7: 60 | G7: 0 | H7: 1 | I7: 0 | J7: C750 | K7: 3x10 | L7: 2.5 | M7: C750 | N7: 3 | O7: 2.5
C8: GNA | D8: future3 | F8: 60 | G8: 0 | H8: 1 | I8: 0 | J8: QR715 | K8: 4x10 | L8: 1.83 | M8: QR715 | N8: 4 | O8: 1.83
C9: LEX | D9: future4 | F9: 60 | G9: 0 | H9: 1 | I9: 0 | J9: C625 | K9: 4x6 | L9: 3 | M9: C625 | N9: 5 | O9: 3
C10: DBLE | D10: future5 | F10: 60 | G10: 0 | H10: 1 | I10: 0 | J10: C565 | K10: C500 | L10: 5.64 | M10: C565 | N10: 6 | O10: 5.64
C11: future1 | D11: future6 | F11: 60 | G11: 0 | H11: 1 | I11: 0 | J11: QR540 | K11: C565 | L11: 4.26 | M11: QR540 | N11: 7 | O11: 4.26
C12: future2 | D12: future7 | F12: 60 | G12: 0 | H12: 1 | I12: 0 | J12: C500 | K12: C625 | L12: 3.61 | M12: C500 | N12: 8 | O12: 3.61
C13: future3 | D13: GNA | F13: 60 | G13: 48 | H13: 1 | I13: 48 | J13: QR1125 | K13: C750 | L13: 2.49 | M13: QR1125 | N13: 9 | O13: 2.49
C14: future4 | D14: HLN | F14: 60 | G14: 84 | H14: 1 | I14: 84 | J14: 3x10 | K14: cable | L14: 0 | M14: 2x10 | N14: 10 | O14: 0
C15: future5 | D15: LEX | F15: 60 | G15: 24 | H15: 1 | I15: 24 | J15: 4x10 | K15: QR1125 | L15: 1.3 | M15: 2x6 | N15: 11 | O15: 1.3
C16: future6 | D16: load | F16: 1 | G16: 0 | H16: 0 | I16: 0 | J16: 2x10 | K16: QR540 | L16: 5.28 | M16: 3x10 | N16: 12 | O16: 5.28
C17: future7 | D17: TNA | F17: 60 | G17: 48 | H17: 1 | I17: 52 | J17: 2x6 | K17: QR715 | L17: 3.27 | M17: 4x10 | N17: 13 | O17: 3.27
J18: 4x6 | K18: QR860 | L18: 1.7 | M18: 4x6 | N18: 14 | O18: 2.37
F19: Range $D$5:$H$17 | J19: type | K19: spare | L19: 0 | O19: 0
D22: Efficiency | F22: tangens alpha | K22: Range $K$5:$L$19 | M22: Cable type | N22: ρ (Ω/Km)
C23: Load,% | D23: Super2M-90 | E23: T-former | F23: Super2M-90 | G23: T-former | H23: load span | I23: SpanN | M23: QR-540 | N23: 5.28
B24: L0 | C24: 4 | D24: 36.55806621 | E24: 62.08372093 | F24: =(D25-D24)/($C25-$C24) -> 4.260676312 | G24: =+(E25-E24)/($C25-$C24) -> 3.48933788 | H24: =+C25-C24 -> 4 | I24: 1 | M24: QR-715 | N24: 3.27
B25: L1 | C25: 8 | D25: 53.60077146 | E25: 76.04107245 | F25: =(D26-D25)/($C26-$C25) -> 2.444555993 | G25: 1.576814017 | H25: =+C26-C25 -> 4 | I25: 2 | M25: QR-860 | N25: 2.37
B26: L2 | C26: 12 | D26: 63.37899543 | E26: 82.34832852 | F26: 1.445186705 | G26: 0.795816365 | H26: 8 | I26: 3 | M26: P3-500 | N26: 5.64
B27: L3 | C27: 20 | D27: 74.94048907 | E27: 88.71485944 | F27: 0.715539049 | G27: 0.271305184 | H27: 10 | I27: 4 | M27: P3-565 | N27: 4.26
B28: L4 | C28: 30 | D28: 82.09587956 | E28: 91.42791128 | F28: 0.484873774 | G28: 0.129423258 | H28: 10 | I28: 5 | M28: P3-625 | N28: 3.61
B29: L5 | C29: 40 | D29: 86.9446173 | E29: 92.72214386 | F29: 0.17963341 | G29: 0.111739769 | H29: 10 | I29: 6
B30: L6 | C30: 50 | D30: 88.7409514 | E30: 93.83954155 | F30: 0.112770009 | G30: 0.036879178 | H30: 10 | I30: 7
B31: L7 | C31: 60 | D31: 89.86865149 | E31: 94.20833333 | F31: 0.089180478 | G31: 0.038966667 | H31: 10 | I31: 8
B32: L8 | C32: 70 | D32: 90.76045627 | E32: 94.598 | F32: 0.051471152 | G32: -0.005637724 | H32: 10 | I32: 9
B33: L9 | C33: 80 | D33: 91.27516779 | E33: 94.54162276 | F33: 0.000400636 | G33: -0.03817227 | H33: 10 | I33: 10
B34: L10 | C34: 90 | D34: 91.27917415 | E34: 94.15990006 | F34: 0.036039225 | G34: -0.087130946 | H34: 10 | I34: 11
B35: L11 | C35: 100 | D35: 91.6395664 | E35: 93.2885906
